Publisher Label,Publisher URI,Body Name,Service Area Categorisation,Service Division Categorisation,Expenses Type,Date,Transaction Number,Amount,Capital or Revenue,Supplier Name,Merchant Category
Peterborough,http://opendatacommunities.org/id/unitary-authority/peterborough,Peterborough City Council,Deficit/(Surplus) on Trading Undertakings,Trading Account Surpluses & Deficits,Supplies and Services,01/07/2013 00:00,546681,5531.4,REVENUE,RMS Engineers LTD,
Peterborough,http://opendatacommunities.org/id/unitary-authority/peterborough,Peterborough City Council,Planning Services,More than one Service Division,Employees,01/07/2013 00:00,549934,1099.66,REVENUE,The Synergy Group,
Peterborough,http://opendatacommunities.org/id/unitary-authority/peterborough,Peterborough City Council,Adult Social Care,Older People,Supplies and Services,01/07/2013 00:00,554762,2878.58,REVENUE,ABBEYGATE REST HOME,
Peterborough,http://opendatacommunities.org/id/unitary-authority/peterborough,Peterborough City Council,Adult Social Care,Older People,Supplies and Services,01/07/2013 00:00,554764,2600,REVENUE,ABBEYGATE REST HOME,
Peterborough,http://opendatacommunities.org/id/unitary-authority/peterborough,Peterborough City Council,Adult Social Care,Older People,Supplies and Services,01/07/2013 00:00,554765,2600,REVENUE,ABBEYGATE REST HOME,
Peterborough,http://opendatacommunities.org/id/unitary-authority/peterborough,Peterborough City Council,Children's & Education Services - Children's Social Care,Family Support Services,Employees,01/07/2013 00:00,555415,1168.2,REVENUE,SWP Consulting,
Peterborough,http://opendatacommunities.org/id/unitary-authority/peterborough,Peterborough City Council,Children's & Education Services - Children's Social Care,Family Support Services,Employees,01/07/2013 00:00,555417,1465.2,REVENUE,SWP Consulting,
Peterborough,http://opendatacommunities.org/id/unitary-authority/peterborough,Peterborough City Council,Corporate & Democratic Core,Democratic Representation & Managemetn,Premises,01/07/2013 00:00,555426,555.6,REVENUE,Bull & Co Ltd,
Peterborough,http://opendatacommunities.org/id/unitary-authority/peterborough,Peterborough City Council,Adult Social Care,Support Services & Management Costs,Employees,01/07/2013 00:00,555886,1415.04,REVENUE,Flick Schofield Ltd,
Peterborough,http://opendatacommunities.org/id/unitary-authority/peterborough,Peterborough City Council,Cultural and Related Services,Recreation & Sport,Supplies and Services,01/07/2013 00:00,555979,556.8,REVENUE,E S P Magazine,
Peterborough,http://opendatacommunities.org/id/unitary-authority/peterborough,Peterborough City Council,Children's & Education Services - Children's Social Care,Children Looked After,Supplies and Services - Transfer Payments,01/07/2013 00:00,556020,3917.14,REVENUE,Sixteen Plus Limited,
Peterborough,http://opendatacommunities.org/id/unitary-authority/peterborough,Peterborough City Council,Children's & Education Services - Children's Social Care,Family Support Services,Employees,01/07/2013 00:00,556136,1354.37,REVENUE,Pulse,
Peterborough,http://opendatacommunities.org/id/unitary-authority/peterborough,Peterborough City Council,Children's & Education Services - Children's Social Care,Children Looked After,Supplies and Services - Transfer Payments,01/07/2013 00:00,556383,25500,REVENUE,New Forest Care Ltd,
Peterborough,http://opendatacommunities.org/id/unitary-authority/peterborough,Peterborough City Council,Adult Social Care,Adult Learning Disabilities,Supplies and Services,01/07/2013 00:00,558053,4834.08,REVENUE,Voyage,
Peterborough,http://opendatacommunities.org/id/unitary-authority/peterborough,Peterborough City Council,Adult Social Care,Adult Learning Disabilities,Supplies and Services,01/07/2013 00:00,558058,3075.44,REVENUE,Voyage,
Peterborough,http://opendatacommunities.org/id/unitary-authority/peterborough,Peterborough City Council,Adult Social Care,Adult Learning Disabilities,Supplies and Services,01/07/2013 00:00,558062,2999.96,REVENUE,Voyage,
Peterborough,http://opendatacommunities.org/id/unitary-authority/peterborough,Peterborough City Council,Adult Social Care,Adult Learning Disabilities,Supplies and Services,01/07/2013 00:00,558067,4980.08,REVENUE,Voyage,
Peterborough,http://opendatacommunities.org/id/unitary-authority/peterborough,Peterborough City Council,Adult Social Care,Adult Learning Disabilities,Supplies and Services,01/07/2013 00:00,558069,3075.44,REVENUE,Voyage,
Peterborough,http://opendatacommunities.org/id/unitary-authority/peterborough,Peterborough City Council,Adult Social Care,Adult Learning Disabilities,Supplies and Services,01/07/2013 00:00,558070,5120.08,REVENUE,Voyage,
Peterborough,http://opendatacommunities.org/id/unitary-authority/peterborough,Peterborough City Council,Adult Social Care,Adult Learning Disabilities,Supplies and Services,01/07/2013 00:00,558072,5120,REVENUE,Voyage,
Peterborough,http://opendatacommunities.org/id/unitary-authority/peterborough,Peterborough City Council,Adult Social Care,Adult Learning Disabilities,Supplies and Services,01/07/2013 00:00,558074,6125.84,REVENUE,Voyage,
Peterborough,http://opendatacommunities.org/id/unitary-authority/peterborough,Peterborough City Council,More than one Service Area Category,More than one Service Division,Transport,01/07/2013 00:00,558221,43791.6,REVENUE,Specialist Fleet Services,
Peterborough,http://opendatacommunities.org/id/unitary-authority/peterborough,Peterborough City Council,Housing Services,Private Sector Housing Renewal,Supplies and Services,01/07/2013 00:00,558241,1445,REVENUE,Deprez Developments,
Peterborough,http://opendatacommunities.org/id/unitary-authority/peterborough,Peterborough City Council,Children's & Education Services - Children's Social Care,Youth Justice,Premises,01/07/2013 00:00,558308,4471.24,REVENUE,Artesian Property Partnership,
Peterborough,http://opendatacommunities.org/id/unitary-authority/peterborough,Peterborough City Council,Children's & Education Services - Children's Social Care,Youth Justice,Premises,01/07/2013 00:00,558312,4191.78,REVENUE,Artesian Property Partnership,
Peterborough,http://opendatacommunities.org/id/unitary-authority/peterborough,Peterborough City Council,Support Services,Support Services,Premises,01/07/2013 00:00,558315,5597.98,REVENUE,Baker Perkins Ltd,
Peterborough,http://opendatacommunities.org/id/unitary-authority/peterborough,Peterborough City Council,Highways and Transport Services,"Transport planning, policy and strategy",Supplies and Services,01/07/2013 00:00,558372,1020,REVENUE,Outspoken Training,
Peterborough,http://opendatacommunities.org/id/unitary-authority/peterborough,Peterborough City Council,Children's & Education Services - Children's Social Care,Children Looked After,Supplies and Services - Transfer Payments,01/07/2013 00:00,558438,3484,REVENUE,Lincolns Care Ltd,
Peterborough,http://opendatacommunities.org/id/unitary-authority/peterborough,Peterborough City Council,Children's & Education Services - Education,Other School -related Education Functions,Supplies and Services,01/07/2013 00:00,558456,62548.43,REVENUE,Capita Absence Management Services Ltd,
Peterborough,http://opendatacommunities.org/id/unitary-authority/peterborough,Peterborough City Council,Children's & Education Services - Children's Social Care,Children Looked After,Supplies and Services - Transfer Payments,01/07/2013 00:00,558457,3484,REVENUE,Lincolns Care Ltd,
Peterborough,http://opendatacommunities.org/id/unitary-authority/peterborough,Peterborough City Council,Children's & Education Services - Children's Social Care,Children Looked After,Supplies and Services - Transfer Payments,01/07/2013 00:00,558459,3916,REVENUE,Lincolns Care Ltd,
Peterborough,http://opendatacommunities.org/id/unitary-authority/peterborough,Peterborough City Council,Children's & Education Services - Children's Social Care,Children Looked After,Supplies and Services - Transfer Payments,01/07/2013 00:00,558489,3076,REVENUE,Lincolns Care Ltd,
Peterborough,http://opendatacommunities.org/id/unitary-authority/peterborough,Peterborough City Council,Children's & Education Services - Children's Social Care,Children Looked After,Supplies and Services - Transfer Payments,01/07/2013 00:00,558492,9912.5,REVENUE,Lincolns Care Ltd,
Peterborough,http://opendatacommunities.org/id/unitary-authority/peterborough,Peterborough City Council,Children's & Education Services - Children's Social Care,Children Looked After,Supplies and Services - Transfer Payments,01/07/2013 00:00,558494,630,REVENUE,Lincolns Care Ltd,
Peterborough,http://opendatacommunities.org/id/unitary-authority/peterborough,Peterborough City Council,Capital,Capital,Capital Pending Update to BS,01/07/2013 00:00,558504,1134.25,CAPITAL,Pinsent Masons,
Peterborough,http://opendatacommunities.org/id/unitary-authority/peterborough,Peterborough City Council,Capital,Capital,Capital Pending Update to BS,01/07/2013 00:00,558505,52188.18,CAPITAL,Pinsent Masons,
Peterborough,http://opendatacommunities.org/id/unitary-authority/peterborough,Peterborough City Council,More than one Service Area Category,More than one Service Division,Transport,01/07/2013 00:00,558594,48510,REVENUE,Specialist Fleet Services,
Peterborough,http://opendatacommunities.org/id/unitary-authority/peterborough,Peterborough City Council,More than one Service Area Category,More than one Service Division,Transport,01/07/2013 00:00,558596,48510,REVENUE,Specialist Fleet Services,
Peterborough,http://opendatacommunities.org/id/unitary-authority/peterborough,Peterborough City Council,Adult Social Care,Support Services & Management Costs,Third Party Payments,01/07/2013 00:00,558644,2262,REVENUE,Spikes Cavell Analytic Ltd,
Peterborough,http://opendatacommunities.org/id/unitary-authority/peterborough,Peterborough City Council,Children's & Education Services - Children's Social Care,Other Children's & Families Services,Supplies and Services,01/07/2013 00:00,558776,1336.32,REVENUE,Psychology Clinic of East Anglia,
Peterborough,http://opendatacommunities.org/id/unitary-authority/peterborough,Peterborough City Council,Adult Social Care,Adult Learning Disabilities,Supplies and Services,01/07/2013 00:00,558937,628.4,REVENUE,THE ASSIST TRUST LTD,
Peterborough,http://opendatacommunities.org/id/unitary-authority/peterborough,Peterborough City Council,Children's & Education Services - Education,Other School -related Education Functions,Employees,01/07/2013 00:00,558939,7068.6,REVENUE,Top Class Tutors,
Peterborough,http://opendatacommunities.org/id/unitary-authority/peterborough,Peterborough City Council,Children's & Education Services - Children's Social Care,More than one Service Division,More than one Expenses Type,01/07/2013 00:00,559009,21921.34,REVENUE,West Sussex County Council,
Peterborough,http://opendatacommunities.org/id/unitary-authority/peterborough,Peterborough City Council,Children's & Education Services - Children's Social Care,Youth Justice,Supplies and Services,01/07/2013 00:00,559145,818.79,REVENUE,Cording Asset Manage. LLP Client A/C,
Peterborough,http://opendatacommunities.org/id/unitary-authority/peterborough,Peterborough City Council,Children's & Education Services - Children's Social Care,Children Looked After,Supplies and Services,01/07/2013 00:00,559347,734.21,REVENUE,Walter Clarke EFG,
Peterborough,http://opendatacommunities.org/id/unitary-authority/peterborough,Peterborough City Council,Children's & Education Services - Children's Social Care,Children Looked After,Supplies and Services - Transfer Payments,01/07/2013 00:00,559430,880,REVENUE,Redacted Personal Data,
Peterborough,http://opendatacommunities.org/id/unitary-authority/peterborough,Peterborough City Council,Adult Social Care,Adult Mental Health,Supplies and Services,01/07/2013 00:00,559451,1771.92,REVENUE,GSE Residential Ltd (Kemps Place),
Peterborough,http://opendatacommunities.org/id/unitary-authority/peterborough,Peterborough City Council,Adult Social Care,Adult Mental Health,Supplies and Services,01/07/2013 00:00,559454,1283.68,REVENUE,GSE Residential Ltd (Kemps Place),
Peterborough,http://opendatacommunities.org/id/unitary-authority/peterborough,Peterborough City Council,Children's & Education Services - Children's Social Care,Children's Services - Commissioning and Social Work,Employees,01/07/2013 00:00,559480,985.68,REVENUE,Medicare First,
Peterborough,http://opendatacommunities.org/id/unitary-authority/peterborough,Peterborough City Council,Adult Social Care,Adult Learning Disabilities,Supplies and Services,01/07/2013 00:00,559485,3321.36,REVENUE,HAZELWOOD LODGE LTD,
Peterborough,http://opendatacommunities.org/id/unitary-authority/peterborough,Peterborough City Council,Children's & Education Services - Children's Social Care,Children's Services - Commissioning and Social Work,Employees,01/07/2013 00:00,559486,1243.2,REVENUE,Medicare First,
Peterborough,http://opendatacommunities.org/id/unitary-authority/peterborough,Peterborough City Council,Children's & Education Services - Children's Social Care,Children's Services - Commissioning and Social Work,Employees,01/07/2013 00:00,559488,1207.68,REVENUE,Medicare First,
Peterborough,http://opendatacommunities.org/id/unitary-authority/peterborough,Peterborough City Council,Children's & Education Services - Children's Social Care,Children's Services - Commissioning and Social Work,Employees,01/07/2013 00:00,559490,1278,REVENUE,Medicare First,
Peterborough,http://opendatacommunities.org/id/unitary-authority/peterborough,Peterborough City Council,Adult Social Care,Adult Learning Disabilities,Supplies and Services,01/07/2013 00:00,559491,3321.36,REVENUE,HAZELWOOD LODGE LTD,
Peterborough,http://opendatacommunities.org/id/unitary-authority/peterborough,Peterborough City Council,Children's & Education Services - Children's Social Care,Children's Services - Commissioning and Social Work,Employees,01/07/2013 00:00,559493,1728,REVENUE,Medicare First,
Peterborough,http://opendatacommunities.org/id/unitary-authority/peterborough,Peterborough City Council,Adult Social Care,Adult Learning Disabilities,Supplies and Services,01/07/2013 00:00,559494,3321.36,REVENUE,HAZELWOOD LODGE LTD,
Peterborough,http://opendatacommunities.org/id/unitary-authority/peterborough,Peterborough City Council,Children's & Education Services - Children's Social Care,Children's Services - Commissioning and Social Work,Employees,01/07/2013 00:00,559495,1243.2,REVENUE,Medicare First,
Peterborough,http://opendatacommunities.org/id/unitary-authority/peterborough,Peterborough City Council,Children's & Education Services - Children's Social Care,Children Looked After,Employees,01/07/2013 00:00,559500,1282.62,REVENUE,Medicare First,
Peterborough,http://opendatacommunities.org/id/unitary-authority/peterborough,Peterborough City Council,Adult Social Care,Adult Learning Disabilities,Supplies and Services,01/07/2013 00:00,559501,2132.8,REVENUE,LINK HOUSE,
Peterborough,http://opendatacommunities.org/id/unitary-authority/peterborough,Peterborough City Council,Adult Social Care,Older People,Supplies and Services,01/07/2013 00:00,559503,7045.5,REVENUE,MEARS GROUP,
Peterborough,http://opendatacommunities.org/id/unitary-authority/peterborough,Peterborough City Council,Adult Social Care,Older People,Supplies and Services,01/07/2013 00:00,559511,1122.71,REVENUE,MEARS GROUP,
Peterborough,http://opendatacommunities.org/id/unitary-authority/peterborough,Peterborough City Council,Adult Social Care,Older People,Supplies and Services,01/07/2013 00:00,559513,538.03,REVENUE,MEARS GROUP,
Peterborough,http://opendatacommunities.org/id/unitary-authority/peterborough,Peterborough City Council,Adult Social Care,Older People,Supplies and Services,01/07/2013 00:00,559520,749.51,REVENUE,MEARS GROUP,
Peterborough,http://opendatacommunities.org/id/unitary-authority/peterborough,Peterborough City Council,Corporate & Democratic Core,Democratic Representation & Managemetn,Supplies and Services,01/07/2013 00:00,559533,1460.36,REVENUE,Northgate Information Solutions,
Peterborough,http://opendatacommunities.org/id/unitary-authority/peterborough,Peterborough City Council,Adult Social Care,Older People,Supplies and Services,01/07/2013 00:00,559535,544.25,REVENUE,MEARS GROUP,
Peterborough,http://opendatacommunities.org/id/unitary-authority/peterborough,Peterborough City Council,Adult Social Care,Older People,Supplies and Services,01/07/2013 00:00,559540,500.71,REVENUE,MEARS GROUP,
Peterborough,http://opendatacommunities.org/id/unitary-authority/peterborough,Peterborough City Council,Adult Social Care,Older People,Supplies and Services,01/07/2013 00:00,559543,1625.49,REVENUE,MEARS GROUP,
Peterborough,http://opendatacommunities.org/id/unitary-authority/peterborough,Peterborough City Council,Adult Social Care,Older People,Supplies and Services,01/07/2013 00:00,559545,1931.31,REVENUE,MEARS GROUP,
Peterborough,http://opendatacommunities.org/id/unitary-authority/peterborough,Peterborough City Council,Adult Social Care,Older People,Supplies and Services,01/07/2013 00:00,559548,752.62,REVENUE,MEARS GROUP,
Peterborough,http://opendatacommunities.org/id/unitary-authority/peterborough,Peterborough City Council,Adult Social Care,Older People,Supplies and Services,01/07/2013 00:00,559550,2096.14,REVENUE,MEARS GROUP,
Peterborough,http://opendatacommunities.org/id/unitary-authority/peterborough,Peterborough City Council,Adult Social Care,Older People,Supplies and Services,01/07/2013 00:00,559553,652.06,REVENUE,MEARS GROUP,
Peterborough,http://opendatacommunities.org/id/unitary-authority/peterborough,Peterborough City Council,Adult Social Care,Older People,Supplies and Services,01/07/2013 00:00,559555,609.56,REVENUE,MEARS GROUP,
Peterborough,http://opendatacommunities.org/id/unitary-authority/peterborough,Peterborough City Council,Adult Social Care,Older People,Supplies and Services,01/07/2013 00:00,559560,892.56,REVENUE,MEARS GROUP,
Peterborough,http://opendatacommunities.org/id/unitary-authority/peterborough,Peterborough City Council,Adult Social Care,Older People,Supplies and Services,01/07/2013 00:00,559572,1038.74,REVENUE,MEARS GROUP,
Peterborough,http://opendatacommunities.org/id/unitary-authority/peterborough,Peterborough City Council,Adult Social Care,Older People,Supplies and Services,01/07/2013 00:00,559576,1788.25,REVENUE,MEARS GROUP,
Peterborough,http://opendatacommunities.org/id/unitary-authority/peterborough,Peterborough City Council,Adult Social Care,Older People,Supplies and Services,01/07/2013 00:00,559598,821.04,REVENUE,MEARS GROUP,
Peterborough,http://opendatacommunities.org/id/unitary-authority/peterborough,Peterborough City Council,Adult Social Care,Older People,Supplies and Services,01/07/2013 00:00,559601,612.67,REVENUE,MEARS GROUP,
Peterborough,http://opendatacommunities.org/id/unitary-authority/peterborough,Peterborough City Council,Adult Social Care,Older People,Supplies and Services,01/07/2013 00:00,559604,705.97,REVENUE,MEARS GROUP,
Peterborough,http://opendatacommunities.org/id/unitary-authority/peterborough,Peterborough City Council,Adult Social Care,Adult Learning Disabilities,Supplies and Services,01/07/2013 00:00,559702,11344.44,REVENUE,Autism Care (UK) Ltd,
Peterborough,http://opendatacommunities.org/id/unitary-authority/peterborough,Peterborough City Council,Adult Social Care,Adult Learning Disabilities,Supplies and Services,01/07/2013 00:00,560237,815.4,REVENUE,Voyage,
Peterborough,http://opendatacommunities.org/id/unitary-authority/peterborough,Peterborough City Council,Children's & Education Services - Children's Social Care,Children's Services - Commissioning and Social Work,Employees,01/07/2013 00:00,560448,2709.3,REVENUE,The Ministry of Parenting,
Peterborough,http://opendatacommunities.org/id/unitary-authority/peterborough,Peterborough City Council,Capital,Capital,Capital Pending Update to BS,01/07/2013 00:00,560649,5504.49,CAPITAL,Blakedown Sport & Play,
Peterborough,http://opendatacommunities.org/id/unitary-authority/peterborough,Peterborough City Council,Children's & Education Services - Children's Social Care,Children Looked After,Premises,01/07/2013 00:00,560651,838.15,REVENUE,Bunzl UK Ltd t/a Industrial Supplies,
Peterborough,http://opendatacommunities.org/id/unitary-authority/peterborough,Peterborough City Council,Deficit/(Surplus) on Trading Undertakings,Trading Account Surpluses & Deficits,Supplies and Services,01/07/2013 00:00,560655,7962.82,REVENUE,BW Aluminium Ltd,
Peterborough,http://opendatacommunities.org/id/unitary-authority/peterborough,Peterborough City Council,Adult Social Care,Older People,Supplies and Services,01/07/2013 00:00,560846,5972,REVENUE,BRAIN INJURY REHABILITATION TRUST,
Peterborough,http://opendatacommunities.org/id/unitary-authority/peterborough,Peterborough City Council,More than one Service Area Category,More than one Service Division,Balance Sheet,01/07/2013 00:00,560878,777.6,Balance Sheet,"Harris, Mr Paul",
Peterborough,http://opendatacommunities.org/id/unitary-authority/peterborough,Peterborough City Council,Adult Social Care,Older People,Supplies and Services,01/07/2013 00:00,561042,522.48,REVENUE,MEARS GROUP,
Peterborough,http://opendatacommunities.org/id/unitary-authority/peterborough,Peterborough City Council,Adult Social Care,Older People,Supplies and Services,01/07/2013 00:00,561044,2786.56,REVENUE,MEARS GROUP,
Peterborough,http://opendatacommunities.org/id/unitary-authority/peterborough,Peterborough City Council,Adult Social Care,Older People,Supplies and Services,01/07/2013 00:00,561046,600.23,REVENUE,MEARS GROUP,
Peterborough,http://opendatacommunities.org/id/unitary-authority/peterborough,Peterborough City Council,Adult Social Care,Older People,Supplies and Services,01/07/2013 00:00,561048,957.88,REVENUE,MEARS GROUP,
Peterborough,http://opendatacommunities.org/id/unitary-authority/peterborough,Peterborough City Council,Adult Social Care,Adult Learning Disabilities,Supplies and Services,01/07/2013 00:00,561091,3605.72,REVENUE,SOCIAL CARE SOLUTIONS LTD,
Peterborough,http://opendatacommunities.org/id/unitary-authority/peterborough,Peterborough City Council,Adult Social Care,Adult Learning Disabilities,Supplies and Services,01/07/2013 00:00,561093,3140.12,REVENUE,SOCIAL CARE SOLUTIONS LTD,
Peterborough,http://opendatacommunities.org/id/unitary-authority/peterborough,Peterborough City Council,Adult Social Care,Adult Learning Disabilities,Supplies and Services,01/07/2013 00:00,561099,3379.32,REVENUE,SOCIAL CARE SOLUTIONS LTD,
Peterborough,http://opendatacommunities.org/id/unitary-authority/peterborough,Peterborough City Council,Adult Social Care,Adult Learning Disabilities,Supplies and Services,01/07/2013 00:00,561102,2710.08,REVENUE,SOCIAL CARE SOLUTIONS LTD,
Peterborough,http://opendatacommunities.org/id/unitary-authority/peterborough,Peterborough City Council,Adult Social Care,Adult Learning Disabilities,Supplies and Services,01/07/2013 00:00,561104,3379.32,REVENUE,SOCIAL CARE SOLUTIONS LTD,
Peterborough,http://opendatacommunities.org/id/unitary-authority/peterborough,Peterborough City Council,Adult Social Care,Adult Learning Disabilities,Supplies and Services,01/07/2013 00:00,561107,4776.96,REVENUE,SOCIAL CARE SOLUTIONS LTD,
Peterborough,http://opendatacommunities.org/id/unitary-authority/peterborough,Peterborough City Council,Adult Social Care,Adult Learning Disabilities,Supplies and Services,01/07/2013 00:00,561111,2632.52,REVENUE,SOCIAL CARE SOLUTIONS LTD,
Peterborough,http://opendatacommunities.org/id/unitary-authority/peterborough,Peterborough City Council,Adult Social Care,Adult Learning Disabilities,Supplies and Services,01/07/2013 00:00,561113,2087.2,REVENUE,SOCIAL CARE SOLUTIONS LTD,
Peterborough,http://opendatacommunities.org/id/unitary-authority/peterborough,Peterborough City Council,Adult Social Care,Adult Learning Disabilities,Supplies and Services,01/07/2013 00:00,561114,3917.28,REVENUE,SOCIAL CARE SOLUTIONS LTD,
Peterborough,http://opendatacommunities.org/id/unitary-authority/peterborough,Peterborough City Council,Adult Social Care,Adult Learning Disabilities,Supplies and Services,01/07/2013 00:00,561115,7697.76,REVENUE,SOCIAL CARE SOLUTIONS LTD,
Peterborough,http://opendatacommunities.org/id/unitary-authority/peterborough,Peterborough City Council,Planning Services,Economic Development,Employees,01/07/2013 00:00,561181,1550.95,REVENUE,The Synergy Group,
Peterborough,http://opendatacommunities.org/id/unitary-authority/peterborough,Peterborough City Council,Planning Services,More than one Service Division,Employees,01/07/2013 00:00,561186,1870.02,REVENUE,The Synergy Group,
Peterborough,http://opendatacommunities.org/id/unitary-authority/peterborough,Peterborough City Council,Children's & Education Services - Children's Social Care,Children Looked After,Supplies and Services - Transfer Payments,01/07/2013 00:00,561216,4130,REVENUE,Benjamin UK Ltd,
Peterborough,http://opendatacommunities.org/id/unitary-authority/peterborough,Peterborough City Council,Adult Social Care,Older People,Supplies and Services,01/07/2013 00:00,561237,4668.96,REVENUE,The Disabilities Trust,
Peterborough,http://opendatacommunities.org/id/unitary-authority/peterborough,Peterborough City Council,Adult Social Care,Older People,Supplies and Services,01/07/2013 00:00,561292,5283.23,REVENUE,Housing 21,
Peterborough,http://opendatacommunities.org/id/unitary-authority/peterborough,Peterborough City Council,Adult Social Care,Older People,Supplies and Services,01/07/2013 00:00,561294,625.52,REVENUE,Housing 21,
Peterborough,http://opendatacommunities.org/id/unitary-authority/peterborough,Peterborough City Council,Adult Social Care,Older People,Supplies and Services,01/07/2013 00:00,561295,7373.24,REVENUE,Housing 21,
Peterborough,http://opendatacommunities.org/id/unitary-authority/peterborough,Peterborough City Council,Planning Services,Planning Policy,Employees,01/07/2013 00:00,561313,1531.07,REVENUE,The Synergy Group,
Peterborough,http://opendatacommunities.org/id/unitary-authority/peterborough,Peterborough City Council,Children's & Education Services - Children's Social Care,Other Children's & Families Services,Supplies and Services,01/07/2013 00:00,561320,1456.56,REVENUE,The Psychological Service,
Peterborough,http://opendatacommunities.org/id/unitary-authority/peterborough,Peterborough City Council,Drainage and Flood Levies,Precepts & Levies,Premises,01/07/2013 00:00,561945,38795.25,REVENUE,Environment Agency,
Peterborough,http://opendatacommunities.org/id/unitary-authority/peterborough,Peterborough City Council,Adult Social Care,Older People,Supplies and Services,01/07/2013 00:00,561965,608.19,REVENUE,THE CLAIR FRANCIS RETIREMENT HOME,
Peterborough,http://opendatacommunities.org/id/unitary-authority/peterborough,Peterborough City Council,Adult Social Care,Adult Learning Disabilities,Supplies and Services,01/07/2013 00:00,561971,2398.06,REVENUE,Linkage Community Trust Limited,
Peterborough,http://opendatacommunities.org/id/unitary-authority/peterborough,Peterborough City Council,Adult Social Care,Older People,Supplies and Services,01/07/2013 00:00,561979,774.06,REVENUE,PHILIA LODGE REST HOME,
Peterborough,http://opendatacommunities.org/id/unitary-authority/peterborough,Peterborough City Council,Adult Social Care,Older People,Supplies and Services,01/07/2013 00:00,561988,759,REVENUE,Country Court Care Homes Ltd,
Peterborough,http://opendatacommunities.org/id/unitary-authority/peterborough,Peterborough City Council,Adult Social Care,Older People,Supplies and Services,01/07/2013 00:00,562001,2307.96,REVENUE,Barchester Healthcare Homes Ltd,
Peterborough,http://opendatacommunities.org/id/unitary-authority/peterborough,Peterborough City Council,Adult Social Care,More than one Service Division,More than one Expenses Type,01/07/2013 00:00,562182,4363.04,REVENUE,Sanctuary Personnel Ltd,
Peterborough,http://opendatacommunities.org/id/unitary-authority/peterborough,Peterborough City Council,Support Services,Support Services,Premises,01/07/2013 00:00,562189,689.13,REVENUE,Zurich Insurance Company,
Peterborough,http://opendatacommunities.org/id/unitary-authority/peterborough,Peterborough City Council,Adult Social Care,Adult Learning Disabilities,Supplies and Services,01/07/2013 00:00,562258,6831.92,REVENUE,NEW BOUNDARIES COMMUNITY SERVICES LTD,
Peterborough,http://opendatacommunities.org/id/unitary-authority/peterborough,Peterborough City Council,Adult Social Care,Older People,Supplies and Services,01/07/2013 00:00,562293,1377.34,REVENUE,BUPA Care  Homes,
Peterborough,http://opendatacommunities.org/id/unitary-authority/peterborough,Peterborough City Council,Adult Social Care,Older People,Supplies and Services,01/07/2013 00:00,562294,1423.25,REVENUE,BUPA Care  Homes,
Peterborough,http://opendatacommunities.org/id/unitary-authority/peterborough,Peterborough City Council,Adult Social Care,Older People,Supplies and Services,01/07/2013 00:00,562296,1319.2,REVENUE,The Orders of St John Care Trust,
Peterborough,http://opendatacommunities.org/id/unitary-authority/peterborough,Peterborough City Council,Adult Social Care,Older People,Supplies and Services,01/07/2013 00:00,562297,1293.9,REVENUE,The Orders of St John Care Trust,
Peterborough,http://opendatacommunities.org/id/unitary-authority/peterborough,Peterborough City Council,Adult Social Care,Older People,Supplies and Services,01/07/2013 00:00,562299,1019.81,REVENUE,LAVENDER HOUSE RESIDENTIAL HOME,
Peterborough,http://opendatacommunities.org/id/unitary-authority/peterborough,Peterborough City Council,Adult Social Care,Older People,Supplies and Services,01/07/2013 00:00,562317,1957.02,REVENUE,TOTAL HOME CARE SOLUTIONS,
Peterborough,http://opendatacommunities.org/id/unitary-authority/peterborough,Peterborough City Council,Adult Social Care,Older People,Supplies and Services,01/07/2013 00:00,562322,610.68,REVENUE,TOTAL HOME CARE SOLUTIONS,
Peterborough,http://opendatacommunities.org/id/unitary-authority/peterborough,Peterborough City Council,Adult Social Care,Older People,Supplies and Services,01/07/2013 00:00,562325,714.89,REVENUE,TOTAL HOME CARE SOLUTIONS,
Peterborough,http://opendatacommunities.org/id/unitary-authority/peterborough,Peterborough City Council,Adult Social Care,Older People,Supplies and Services,01/07/2013 00:00,562327,2761.9,REVENUE,TOTAL HOME CARE SOLUTIONS,
Peterborough,http://opendatacommunities.org/id/unitary-authority/peterborough,Peterborough City Council,Adult Social Care,Older People,Supplies and Services,01/07/2013 00:00,562331,2145.94,REVENUE,TOTAL HOME CARE SOLUTIONS,
Peterborough,http://opendatacommunities.org/id/unitary-authority/peterborough,Peterborough City Council,Adult Social Care,Older People,Supplies and Services,01/07/2013 00:00,562333,651.58,REVENUE,TOTAL HOME CARE SOLUTIONS,
Peterborough,http://opendatacommunities.org/id/unitary-authority/peterborough,Peterborough City Council,Adult Social Care,Adult Learning Disabilities,Supplies and Services,01/07/2013 00:00,562345,1824.72,REVENUE,TOTAL HOME CARE SOLUTIONS,
Peterborough,http://opendatacommunities.org/id/unitary-authority/peterborough,Peterborough City Council,Adult Social Care,Older People,Supplies and Services,01/07/2013 00:00,562374,1156.29,REVENUE,TOTAL HOME CARE SOLUTIONS,
Peterborough,http://opendatacommunities.org/id/unitary-authority/peterborough,Peterborough City Council,Adult Social Care,Older People,Supplies and Services,01/07/2013 00:00,562375,1588.36,REVENUE,TOTAL HOME CARE SOLUTIONS,
Peterborough,http://opendatacommunities.org/id/unitary-authority/peterborough,Peterborough City Council,Highways and Transport Services,Public Transport,Supplies and Services,01/07/2013 00:00,562378,735.74,REVENUE,Centrebus North Ltd,
Peterborough,http://opendatacommunities.org/id/unitary-authority/peterborough,Peterborough City Council,Adult Social Care,Older People,Supplies and Services,01/07/2013 00:00,562380,702.57,REVENUE,TOTAL HOME CARE SOLUTIONS,
Peterborough,http://opendatacommunities.org/id/unitary-authority/peterborough,Peterborough City Council,Adult Social Care,Older People,Supplies and Services,01/07/2013 00:00,562399,559.15,REVENUE,Sagecare,
Peterborough,http://opendatacommunities.org/id/unitary-authority/peterborough,Peterborough City Council,Adult Social Care,Older People,Supplies and Services,01/07/2013 00:00,562402,608.66,REVENUE,Sagecare,
Peterborough,http://opendatacommunities.org/id/unitary-authority/peterborough,Peterborough City Council,Adult Social Care,Older People,Supplies and Services,01/07/2013 00:00,562443,687.83,REVENUE,Sagecare,
Peterborough,http://opendatacommunities.org/id/unitary-authority/peterborough,Peterborough City Council,Support Services,Support Services,Third Party Payments,01/07/2013 00:00,562447,987123.05,REVENUE,Serco Ltd,
Peterborough,http://opendatacommunities.org/id/unitary-authority/peterborough,Peterborough City Council,Adult Social Care,Older People,Supplies and Services,01/07/2013 00:00,562454,3363.53,REVENUE,STAR RESIDENTIAL HOME LTD,
Peterborough,http://opendatacommunities.org/id/unitary-authority/peterborough,Peterborough City Council,Adult Social Care,Older People,Supplies and Services,01/07/2013 00:00,562462,2011.16,REVENUE,TOTAL HOME CARE SOLUTIONS,
Peterborough,http://opendatacommunities.org/id/unitary-authority/peterborough,Peterborough City Council,Adult Social Care,Older People,Supplies and Services,01/07/2013 00:00,562464,1542.21,REVENUE,TOTAL HOME CARE SOLUTIONS,
Peterborough,http://opendatacommunities.org/id/unitary-authority/peterborough,Peterborough City Council,Adult Social Care,Older People,Supplies and Services,01/07/2013 00:00,562466,537.03,REVENUE,TOTAL HOME CARE SOLUTIONS,
Peterborough,http://opendatacommunities.org/id/unitary-authority/peterborough,Peterborough City Council,Adult Social Care,Support Services & Management Costs,Supplies and Services,01/07/2013 00:00,562479,2253,REVENUE,Care and Health Law,
Peterborough,http://opendatacommunities.org/id/unitary-authority/peterborough,Peterborough City Council,Adult Social Care,Older People,Supplies and Services,01/07/2013 00:00,562513,552.9,REVENUE,BUPA Care  Homes,
Peterborough,http://opendatacommunities.org/id/unitary-authority/peterborough,Peterborough City Council,Adult Social Care,Adult Learning Disabilities,Supplies and Services,01/07/2013 00:00,562515,623.64,REVENUE,Redacted Personal Data,
Peterborough,http://opendatacommunities.org/id/unitary-authority/peterborough,Peterborough City Council,Adult Social Care,Adult Learning Disabilities,Supplies and Services,01/07/2013 00:00,562525,661.56,REVENUE,THE HELPING HANDS GROUP,
Peterborough,http://opendatacommunities.org/id/unitary-authority/peterborough,Peterborough City Council,Adult Social Care,Older People,Supplies and Services,01/07/2013 00:00,562617,3418,REVENUE,Barchester Healthcare Homes Ltd,
Peterborough,http://opendatacommunities.org/id/unitary-authority/peterborough,Peterborough City Council,More than one Service Area Category,More than one Service Division,More than one Expenses Type,01/07/2013 00:00,562640,5803.2,"Mixture of Capital, Revenue and/or Balance Sheet",Warics Ltd,
Peterborough,http://opendatacommunities.org/id/unitary-authority/peterborough,Peterborough City Council,Adult Social Care,Adult Learning Disabilities,Supplies and Services,01/07/2013 00:00,562682,2530.44,REVENUE,Sense,
Peterborough,http://opendatacommunities.org/id/unitary-authority/peterborough,Peterborough City Council,Adult Social Care,Adult Learning Disabilities,Supplies and Services,01/07/2013 00:00,562687,5453.53,REVENUE,Sense,
Peterborough,http://opendatacommunities.org/id/unitary-authority/peterborough,Peterborough City Council,Children's & Education Services - Children's Social Care,Children Looked After,Transport,01/07/2013 00:00,562727,1906.8,REVENUE,A2B Euro Cars,
Peterborough,http://opendatacommunities.org/id/unitary-authority/peterborough,Peterborough City Council,Children's & Education Services - Children's Social Care,Children Looked After,Transport,01/07/2013 00:00,562728,1396.8,REVENUE,A2B Euro Cars,
Peterborough,http://opendatacommunities.org/id/unitary-authority/peterborough,Peterborough City Council,Children's & Education Services - Children's Social Care,Children Looked After,Transport,01/07/2013 00:00,562732,1060.8,REVENUE,A2B Euro Cars,
Peterborough,http://opendatacommunities.org/id/unitary-authority/peterborough,Peterborough City Council,More than one Service Area Category,More than one Service Division,Transport,01/07/2013 00:00,562733,524.16,REVENUE,R T Enterprises Ltd T/A Royal Taxis,
Peterborough,http://opendatacommunities.org/id/unitary-authority/peterborough,Peterborough City Council,More than one Service Area Category,More than one Service Division,More than one Expenses Type,01/07/2013 00:00,562748,3600,"Mixture of Capital, Revenue and/or Balance Sheet",20 Twenty Design Ltd,
Peterborough,http://opendatacommunities.org/id/unitary-authority/peterborough,Peterborough City Council,Adult Social Care,Older People,Supplies and Services,01/07/2013 00:00,562754,620,REVENUE,Redacted Personal Data,
Peterborough,http://opendatacommunities.org/id/unitary-authority/peterborough,Peterborough City Council,Adult Social Care,Older People,Supplies and Services,01/07/2013 00:00,562755,714.93,REVENUE,Redacted Personal Data,
Peterborough,http://opendatacommunities.org/id/unitary-authority/peterborough,Peterborough City Council,Adult Social Care,Adult Physical Disability & Sensory Impairment,Supplies and Services,01/07/2013 00:00,562759,1100,REVENUE,Redacted Personal Data,
Peterborough,http://opendatacommunities.org/id/unitary-authority/peterborough,Peterborough City Council,Adult Social Care,Older People,Supplies and Services,01/07/2013 00:00,562761,1401.69,REVENUE,Redacted Personal Data,
Peterborough,http://opendatacommunities.org/id/unitary-authority/peterborough,Peterborough City Council,Adult Social Care,Adult Learning Disabilities,Supplies and Services,01/07/2013 00:00,562762,2256.1,REVENUE,Redacted Personal Data,
Peterborough,http://opendatacommunities.org/id/unitary-authority/peterborough,Peterborough City Council,Adult Social Care,Adult Learning Disabilities,Supplies and Services,01/07/2013 00:00,562763,21193.67,REVENUE,Redacted Personal Data,
Peterborough,http://opendatacommunities.org/id/unitary-authority/peterborough,Peterborough City Council,More than one Service Area Category,More than one Service Division,More than one Expenses Type,01/07/2013 00:00,562765,4499,"Mixture of Capital, Revenue and/or Balance Sheet",P F S Builders & Contractors,
Peterborough,http://opendatacommunities.org/id/unitary-authority/peterborough,Peterborough City Council,More than one Service Area Category,More than one Service Division,Premises,01/07/2013 00:00,562775,1471.88,REVENUE,British Gas Business,
Peterborough,http://opendatacommunities.org/id/unitary-authority/peterborough,Peterborough City Council,More than one Service Area Category,More than one Service Division,Premises,01/07/2013 00:00,562782,4216.97,REVENUE,British Gas Business,
Peterborough,http://opendatacommunities.org/id/unitary-authority/peterborough,Peterborough City Council,More than one Service Area Category,More than one Service Division,Premises,01/07/2013 00:00,562787,715.71,REVENUE,British Gas Business,
Peterborough,http://opendatacommunities.org/id/unitary-authority/peterborough,Peterborough City Council,Children's & Education Services - Children's Social Care,Children Looked After,Supplies and Services - Transfer Payments,01/07/2013 00:00,562792,509.34,REVENUE,Redacted Personal Data,
Peterborough,http://opendatacommunities.org/id/unitary-authority/peterborough,Peterborough City Council,More than one Service Area Category,More than one Service Division,Premises,01/07/2013 00:00,562793,1841.35,REVENUE,British Gas Business,
Peterborough,http://opendatacommunities.org/id/unitary-authority/peterborough,Peterborough City Council,More than one Service Area Category,More than one Service Division,More than one Expenses Type,01/07/2013 00:00,562861,4574,"Mixture of Capital, Revenue and/or Balance Sheet",Allworks Home Improvements Ltd,
Peterborough,http://opendatacommunities.org/id/unitary-authority/peterborough,Peterborough City Council,Housing Services,Private Sector Housing Renewal,Supplies and Services,01/07/2013 00:00,562897,-1142.4,REVENUE,Fletton Electrics Ltd,
Peterborough,http://opendatacommunities.org/id/unitary-authority/peterborough,Peterborough City Council,Housing Services,Private Sector Housing Renewal,Supplies and Services,01/07/2013 00:00,562899,1428,REVENUE,Fletton Electrics Ltd,
Peterborough,http://opendatacommunities.org/id/unitary-authority/peterborough,Peterborough City Council,Capital,Capital,Capital Pending Update to BS,01/07/2013 00:00,562924,604.8,CAPITAL,House of Flags Ltd,
Peterborough,http://opendatacommunities.org/id/unitary-authority/peterborough,Peterborough City Council,Children's & Education Services - Children's Social Care,More than one Service Division,Employees,03/07/2013 00:00,519900,2244.26,REVENUE,Capita Resourcing Ltd,
Peterborough,http://opendatacommunities.org/id/unitary-authority/peterborough,Peterborough City Council,Adult Social Care,Adult Learning Disabilities,Transport,03/07/2013 00:00,522684,1039.72,REVENUE,Automotive Leasing Ltd,
Peterborough,http://opendatacommunities.org/id/unitary-authority/peterborough,Peterborough City Council,Children's & Education Services - Children's Social Care,Children Looked After,Employees,03/07/2013 00:00,552238,1529.14,REVENUE,Sanctuary Personnel Ltd,
Peterborough,http://opendatacommunities.org/id/unitary-authority/peterborough,Peterborough City Council,Adult Social Care,Adult Learning Disabilities,Employees,03/07/2013 00:00,552328,1296,REVENUE,City Resource Ltd,
Peterborough,http://opendatacommunities.org/id/unitary-authority/peterborough,Peterborough City Council,Adult Social Care,Adult Learning Disabilities,Employees,03/07/2013 00:00,554510,1554,REVENUE,Caritas Recruitment,
Peterborough,http://opendatacommunities.org/id/unitary-authority/peterborough,Peterborough City Council,Highways and Transport Services,"Transport planning, policy and strategy",Transport,03/07/2013 00:00,554806,12480,REVENUE,Atkins Limited,
Peterborough,http://opendatacommunities.org/id/unitary-authority/peterborough,Peterborough City Council,Environmental and Regulatory Services,Regulatory services,Premises,03/07/2013 00:00,556812,1756.42,REVENUE,Armadillo Self Storage,
Peterborough,http://opendatacommunities.org/id/unitary-authority/peterborough,Peterborough City Council,Children's & Education Services - Children's Social Care,Family Support Services,Employees,03/07/2013 00:00,557585,1177.02,REVENUE,Capita Resourcing Ltd,
Peterborough,http://opendatacommunities.org/id/unitary-authority/peterborough,Peterborough City Council,Children's & Education Services - Children's Social Care,Family Support Services,Supplies and Services,03/07/2013 00:00,557602,2678.82,REVENUE,Allied Healthcare (UK) Ltd,
Peterborough,http://opendatacommunities.org/id/unitary-authority/peterborough,Peterborough City Council,Children's & Education Services - Children's Social Care,Children's Services - Commissioning and Social Work,Supplies and Services,03/07/2013 00:00,558166,1300,REVENUE,Stagecoach in Peterborough,
Peterborough,http://opendatacommunities.org/id/unitary-authority/peterborough,Peterborough City Council,Children's & Education Services - Children's Social Care,Children Looked After,Employees,03/07/2013 00:00,558224,1529.14,REVENUE,Sanctuary Personnel Ltd,
Peterborough,http://opendatacommunities.org/id/unitary-authority/peterborough,Peterborough City Council,Adult Social Care,Support Services & Management Costs,Employees,03/07/2013 00:00,558612,555.98,REVENUE,Service Care Solutions Ltd,
Peterborough,http://opendatacommunities.org/id/unitary-authority/peterborough,Peterborough City Council,Adult Social Care,Older People,Supplies and Services,03/07/2013 00:00,558706,543.04,REVENUE,Sagecare,
Peterborough,http://opendatacommunities.org/id/unitary-authority/peterborough,Peterborough City Council,Highways and Transport Services,Public Transport,Supplies and Services,03/07/2013 00:00,559023,8369.27,REVENUE,Stagecoach in Peterborough,
Peterborough,http://opendatacommunities.org/id/unitary-authority/peterborough,Peterborough City Council,More than one Service Area Category,More than one Service Division,Supplies and Services,03/07/2013 00:00,559032,3466.25,REVENUE,TNT Post London Ltd,
Peterborough,http://opendatacommunities.org/id/unitary-authority/peterborough,Peterborough City Council,Adult Social Care,Adult Learning Disabilities,Employees,03/07/2013 00:00,559097,1441.08,REVENUE,Caritas Recruitment,
Peterborough,http://opendatacommunities.org/id/unitary-authority/peterborough,Peterborough City Council,Children's & Education Services - Children's Social Care,Children's Services - Commissioning and Social Work,Employees,03/07/2013 00:00,559115,1103.64,REVENUE,Sanctuary Personnel Ltd,
Peterborough,http://opendatacommunities.org/id/unitary-authority/peterborough,Peterborough City Council,Children's & Education Services - Children's Social Care,Children Looked After,Employees,03/07/2013 00:00,559117,2148.96,REVENUE,Sanctuary Personnel Ltd,
Peterborough,http://opendatacommunities.org/id/unitary-authority/peterborough,Peterborough City Council,Children's & Education Services - Children's Social Care,Children Looked After,Employees,03/07/2013 00:00,559120,1003.97,REVENUE,Sanctuary Personnel Ltd,
Peterborough,http://opendatacommunities.org/id/unitary-authority/peterborough,Peterborough City Council,Children's & Education Services - Children's Social Care,Children Looked After,Employees,03/07/2013 00:00,559121,1529.14,REVENUE,Sanctuary Personnel Ltd,
Peterborough,http://opendatacommunities.org/id/unitary-authority/peterborough,Peterborough City Council,Children's & Education Services - Children's Social Care,Family Support Services,Employees,03/07/2013 00:00,559123,1552.68,REVENUE,Sanctuary Personnel Ltd,
Peterborough,http://opendatacommunities.org/id/unitary-authority/peterborough,Peterborough City Council,Children's & Education Services - Children's Social Care,Family Support Services,Employees,03/07/2013 00:00,559124,1415.14,REVENUE,Sanctuary Personnel Ltd,
Peterborough,http://opendatacommunities.org/id/unitary-authority/peterborough,Peterborough City Council,Children's & Education Services - Children's Social Care,Children's Services - Commissioning and Social Work,Employees,03/07/2013 00:00,559126,1650,REVENUE,Sanctuary Personnel Ltd,
Peterborough,http://opendatacommunities.org/id/unitary-authority/peterborough,Peterborough City Council,Children's & Education Services - Children's Social Care,Family Support Services,Employees,03/07/2013 00:00,559129,1396.94,REVENUE,Sanctuary Personnel Ltd,
Peterborough,http://opendatacommunities.org/id/unitary-authority/peterborough,Peterborough City Council,Children's & Education Services - Children's Social Care,Children's Services - Commissioning and Social Work,Employees,03/07/2013 00:00,559130,1575,REVENUE,Sanctuary Personnel Ltd,
Peterborough,http://opendatacommunities.org/id/unitary-authority/peterborough,Peterborough City Council,Children's & Education Services - Children's Social Care,Children's Services - Commissioning and Social Work,Employees,03/07/2013 00:00,559131,1530,REVENUE,Sanctuary Personnel Ltd,
Peterborough,http://opendatacommunities.org/id/unitary-authority/peterborough,Peterborough City Council,Children's & Education Services - Children's Social Care,Children Looked After,Employees,03/07/2013 00:00,559132,1003.97,REVENUE,Sanctuary Personnel Ltd,
Peterborough,http://opendatacommunities.org/id/unitary-authority/peterborough,Peterborough City Council,Cultural and Related Services,Recreation & Sport,Supplies and Services,03/07/2013 00:00,559139,1170,REVENUE,Adver Ticket,
Peterborough,http://opendatacommunities.org/id/unitary-authority/peterborough,Peterborough City Council,Housing Services,Private Sector Housing Renewal,Supplies and Services,03/07/2013 00:00,559161,1896.79,REVENUE,Burmor Construction,
Peterborough,http://opendatacommunities.org/id/unitary-authority/peterborough,Peterborough City Council,Children's & Education Services - Children's Social Care,Children's Services - Commissioning and Social Work,Employees,03/07/2013 00:00,559190,1638.6,REVENUE,Sanctuary Personnel Ltd,
Peterborough,http://opendatacommunities.org/id/unitary-authority/peterborough,Peterborough City Council,Children's & Education Services - Education,Other School -related Education Functions,Supplies and Services,03/07/2013 00:00,559304,1920,REVENUE,Top Class Tutors,
Peterborough,http://opendatacommunities.org/id/unitary-authority/peterborough,Peterborough City Council,Children's & Education Services - Education,Other School -related Education Functions,Supplies and Services,03/07/2013 00:00,559306,864,REVENUE,Top Class Tutors,
Peterborough,http://opendatacommunities.org/id/unitary-authority/peterborough,Peterborough City Council,Children's & Education Services - Education,Other School -related Education Functions,Supplies and Services,03/07/2013 00:00,559310,1464,REVENUE,Top Class Tutors,
Peterborough,http://opendatacommunities.org/id/unitary-authority/peterborough,Peterborough City Council,Children's & Education Services - Education,Other School -related Education Functions,Supplies and Services,03/07/2013 00:00,559318,576,REVENUE,Top Class Tutors,
Peterborough,http://opendatacommunities.org/id/unitary-authority/peterborough,Peterborough City Council,Children's & Education Services - Education,Other School -related Education Functions,Supplies and Services,03/07/2013 00:00,559321,672,REVENUE,Top Class Tutors,
Peterborough,http://opendatacommunities.org/id/unitary-authority/peterborough,Peterborough City Council,Children's & Education Services - Education,Other School -related Education Functions,Supplies and Services,03/07/2013 00:00,559323,1632,REVENUE,Top Class Tutors,
Peterborough,http://opendatacommunities.org/id/unitary-authority/peterborough,Peterborough City Council,Children's & Education Services - Children's Social Care,Other Children's & Families Services,Employees,03/07/2013 00:00,559339,2128.62,REVENUE,Venn Group Ltd,
Peterborough,http://opendatacommunities.org/id/unitary-authority/peterborough,Peterborough City Council,Adult Social Care,Support Services & Management Costs,Employees,03/07/2013 00:00,559341,1326,REVENUE,Venn Group Ltd,
Peterborough,http://opendatacommunities.org/id/unitary-authority/peterborough,Peterborough City Council,Adult Social Care,Older People,Supplies and Services,03/07/2013 00:00,559370,726.81,REVENUE,Sagecare,
Peterborough,http://opendatacommunities.org/id/unitary-authority/peterborough,Peterborough City Council,Adult Social Care,Older People,Supplies and Services,03/07/2013 00:00,559375,592.94,REVENUE,Sagecare,
Peterborough,http://opendatacommunities.org/id/unitary-authority/peterborough,Peterborough City Council,Adult Social Care,Older People,Supplies and Services,03/07/2013 00:00,559377,1514.21,REVENUE,Sagecare,
Peterborough,http://opendatacommunities.org/id/unitary-authority/peterborough,Peterborough City Council,Support Services,Support Services,Supplies and Services,03/07/2013 00:00,559406,4332.59,REVENUE,Capita Business Services Ltd,
Peterborough,http://opendatacommunities.org/id/unitary-authority/peterborough,Peterborough City Council,Children's & Education Services - Children's Social Care,Family Support Services,Employees,03/07/2013 00:00,559418,-1476,REVENUE,Capita Resourcing Ltd,
Peterborough,http://opendatacommunities.org/id/unitary-authority/peterborough,Peterborough City Council,Environmental and Regulatory Services,"Cemetery, Crematorium & Mortuary Services",Premises,03/07/2013 00:00,559435,2674.8,REVENUE,Davies & Co (Engnr) Ltd,
Peterborough,http://opendatacommunities.org/id/unitary-authority/peterborough,Peterborough City Council,Children's & Education Services - Education,Other School -related Education Functions,Supplies and Services,03/07/2013 00:00,559450,2883.6,REVENUE,Learning Pool Limited,
Peterborough,http://opendatacommunities.org/id/unitary-authority/peterborough,Peterborough City Council,Environmental and Regulatory Services,Regulatory services,Supplies and Services,03/07/2013 00:00,559476,540,REVENUE,"Masters, Mr Jonathan",
Peterborough,http://opendatacommunities.org/id/unitary-authority/peterborough,Peterborough City Council,Children's & Education Services - Education,Other School -related Education Functions,Supplies and Services,03/07/2013 00:00,559496,3764,REVENUE,National Governors Association  (NGA),
Peterborough,http://opendatacommunities.org/id/unitary-authority/peterborough,Peterborough City Council,Support Services,Support Services,Premises,03/07/2013 00:00,559523,1837.18,REVENUE,Beebys Ltd,
Peterborough,http://opendatacommunities.org/id/unitary-authority/peterborough,Peterborough City Council,Children's & Education Services - Children's Social Care,Children's and Young People's Safety,Supplies and Services,03/07/2013 00:00,559562,1080,REVENUE,Risk Solutions,
Peterborough,http://opendatacommunities.org/id/unitary-authority/peterborough,Peterborough City Council,Adult Social Care,Older People,Supplies and Services,03/07/2013 00:00,559565,544.68,REVENUE,Sagecare,
Peterborough,http://opendatacommunities.org/id/unitary-authority/peterborough,Peterborough City Council,Adult Social Care,Older People,Supplies and Services,03/07/2013 00:00,559567,1414.38,REVENUE,Sagecare,
Peterborough,http://opendatacommunities.org/id/unitary-authority/peterborough,Peterborough City Council,Children's & Education Services - Children's Social Care,Children Looked After,Supplies and Services,03/07/2013 00:00,559581,979.2,REVENUE,Tough Furniture Ltd,
Peterborough,http://opendatacommunities.org/id/unitary-authority/peterborough,Peterborough City Council,Children's & Education Services - Education,Other School -related Education Functions,Supplies and Services,03/07/2013 00:00,559589,500,REVENUE,Redacted Personal Data,
Peterborough,http://opendatacommunities.org/id/unitary-authority/peterborough,Peterborough City Council,Adult Social Care,Older People,Supplies and Services,03/07/2013 00:00,559619,839.99,REVENUE,Sagecare,
Peterborough,http://opendatacommunities.org/id/unitary-authority/peterborough,Peterborough City Council,Adult Social Care,Older People,Supplies and Services,03/07/2013 00:00,559621,1095.1,REVENUE,Sagecare,
Peterborough,http://opendatacommunities.org/id/unitary-authority/peterborough,Peterborough City Council,Adult Social Care,Older People,Supplies and Services,03/07/2013 00:00,559623,704.81,REVENUE,Sagecare,
Peterborough,http://opendatacommunities.org/id/unitary-authority/peterborough,Peterborough City Council,Adult Social Care,Older People,Supplies and Services,03/07/2013 00:00,559629,628.31,REVENUE,Sagecare,
Peterborough,http://opendatacommunities.org/id/unitary-authority/peterborough,Peterborough City Council,Adult Social Care,Older People,Supplies and Services,03/07/2013 00:00,559641,524.62,REVENUE,Sagecare,
Peterborough,http://opendatacommunities.org/id/unitary-authority/peterborough,Peterborough City Council,Adult Social Care,Adult Learning Disabilities,Employees,03/07/2013 00:00,559705,743.12,REVENUE,Reed Specialist Recruitment,
Peterborough,http://opendatacommunities.org/id/unitary-authority/peterborough,Peterborough City Council,Planning Services,Development Control,Supplies and Services,03/07/2013 00:00,559727,590.62,REVENUE,Johnston Press Midlands Division,
Peterborough,http://opendatacommunities.org/id/unitary-authority/peterborough,Peterborough City Council,Adult Social Care,Older People,Supplies and Services,03/07/2013 00:00,559763,570,REVENUE,Tansor Assessment Centre,
Peterborough,http://opendatacommunities.org/id/unitary-authority/peterborough,Peterborough City Council,Support Services,Support Services,Supplies and Services,03/07/2013 00:00,560232,643.26,REVENUE,Rossendales C B Ltd,
Peterborough,http://opendatacommunities.org/id/unitary-authority/peterborough,Peterborough City Council,Children's & Education Services - Children's Social Care,More than one Service Division,Supplies and Services - Transfer Payments,03/07/2013 00:00,560235,12903.6,REVENUE,Windows for Children,
Peterborough,http://opendatacommunities.org/id/unitary-authority/peterborough,Peterborough City Council,Children's & Education Services - Children's Social Care,More than one Service Division,Supplies and Services - Transfer Payments,03/07/2013 00:00,560236,13333.72,REVENUE,Windows for Children,
Peterborough,http://opendatacommunities.org/id/unitary-authority/peterborough,Peterborough City Council,Children's & Education Services - Children's Social Care,More than one Service Division,Supplies and Services - Transfer Payments,03/07/2013 00:00,560238,12903.6,REVENUE,Windows for Children,
Peterborough,http://opendatacommunities.org/id/unitary-authority/peterborough,Peterborough City Council,Children's & Education Services - Children's Social Care,More than one Service Division,Supplies and Services - Transfer Payments,03/07/2013 00:00,560240,13333.72,REVENUE,Windows for Children,
Peterborough,http://opendatacommunities.org/id/unitary-authority/peterborough,Peterborough City Council,Children's & Education Services - Children's Social Care,More than one Service Division,Supplies and Services - Transfer Payments,03/07/2013 00:00,560242,3010.84,REVENUE,Windows for Children,
Peterborough,http://opendatacommunities.org/id/unitary-authority/peterborough,Peterborough City Council,Adult Social Care,Older People,Supplies and Services,03/07/2013 00:00,560302,788.64,REVENUE,Sagecare,
Peterborough,http://opendatacommunities.org/id/unitary-authority/peterborough,Peterborough City Council,Adult Social Care,Adult Mental Health,Supplies and Services,03/07/2013 00:00,560306,666.45,REVENUE,Sagecare,
Peterborough,http://opendatacommunities.org/id/unitary-authority/peterborough,Peterborough City Council,Adult Social Care,Adult Learning Disabilities,Supplies and Services,03/07/2013 00:00,560309,519.39,REVENUE,Sagecare,
Peterborough,http://opendatacommunities.org/id/unitary-authority/peterborough,Peterborough City Council,Adult Social Care,Older People,Supplies and Services,03/07/2013 00:00,560311,733.54,REVENUE,Sagecare,
Peterborough,http://opendatacommunities.org/id/unitary-authority/peterborough,Peterborough City Council,Capital,Capital,Capital Pending Update to BS,03/07/2013 00:00,560318,907.3,CAPITAL,Cambridgeshire County Council,
Peterborough,http://opendatacommunities.org/id/unitary-authority/peterborough,Peterborough City Council,Adult Social Care,Older People,Supplies and Services,03/07/2013 00:00,560320,541.12,REVENUE,Sagecare,
Peterborough,http://opendatacommunities.org/id/unitary-authority/peterborough,Peterborough City Council,Adult Social Care,Older People,Supplies and Services,03/07/2013 00:00,560332,765.52,REVENUE,Sagecare,
Peterborough,http://opendatacommunities.org/id/unitary-authority/peterborough,Peterborough City Council,Adult Social Care,Older People,Supplies and Services,03/07/2013 00:00,560333,701.68,REVENUE,Sagecare,
Peterborough,http://opendatacommunities.org/id/unitary-authority/peterborough,Peterborough City Council,Adult Social Care,Older People,Supplies and Services,03/07/2013 00:00,560347,608.57,REVENUE,Sagecare,
Peterborough,http://opendatacommunities.org/id/unitary-authority/peterborough,Peterborough City Council,Adult Social Care,Older People,Supplies and Services,03/07/2013 00:00,560367,583.64,REVENUE,Sagecare,
Peterborough,http://opendatacommunities.org/id/unitary-authority/peterborough,Peterborough City Council,Adult Social Care,Older People,Supplies and Services,03/07/2013 00:00,560370,557.88,REVENUE,Sagecare,
Peterborough,http://opendatacommunities.org/id/unitary-authority/peterborough,Peterborough City Council,Adult Social Care,Older People,Supplies and Services,03/07/2013 00:00,560376,621.12,REVENUE,Sagecare,
Peterborough,http://opendatacommunities.org/id/unitary-authority/peterborough,Peterborough City Council,Adult Social Care,Older People,Supplies and Services,03/07/2013 00:00,560381,707.61,REVENUE,Sagecare,
Peterborough,http://opendatacommunities.org/id/unitary-authority/peterborough,Peterborough City Council,Environmental and Regulatory Services,"Cemetery, Crematorium & Mortuary Services",Supplies and Services,03/07/2013 00:00,560391,1357.2,REVENUE,"Strickland, Mr A M",
Peterborough,http://opendatacommunities.org/id/unitary-authority/peterborough,Peterborough City Council,Adult Social Care,Older People,Supplies and Services,03/07/2013 00:00,560392,681.52,REVENUE,Sagecare,
Peterborough,http://opendatacommunities.org/id/unitary-authority/peterborough,Peterborough City Council,Environmental and Regulatory Services,"Cemetery, Crematorium & Mortuary Services",Supplies and Services,03/07/2013 00:00,560393,1584,REVENUE,"Strickland, Mr A M",
Peterborough,http://opendatacommunities.org/id/unitary-authority/peterborough,Peterborough City Council,Adult Social Care,Older People,Supplies and Services,03/07/2013 00:00,560395,692.34,REVENUE,Sagecare,
Peterborough,http://opendatacommunities.org/id/unitary-authority/peterborough,Peterborough City Council,Adult Social Care,Older People,Supplies and Services,03/07/2013 00:00,560396,697.55,REVENUE,Sagecare,
Peterborough,http://opendatacommunities.org/id/unitary-authority/peterborough,Peterborough City Council,Adult Social Care,Older People,Supplies and Services,03/07/2013 00:00,560398,1573.68,REVENUE,Sagecare,
Peterborough,http://opendatacommunities.org/id/unitary-authority/peterborough,Peterborough City Council,Adult Social Care,Older People,Supplies and Services,03/07/2013 00:00,560409,1640.04,REVENUE,Sagecare,
Peterborough,http://opendatacommunities.org/id/unitary-authority/peterborough,Peterborough City Council,Environmental and Regulatory Services,"Cemetery, Crematorium & Mortuary Services",Supplies and Services,03/07/2013 00:00,560420,976.2,REVENUE,"Strickland, Mr A M",
Peterborough,http://opendatacommunities.org/id/unitary-authority/peterborough,Peterborough City Council,Adult Social Care,Adult Mental Health,Supplies and Services,03/07/2013 00:00,560439,529.2,REVENUE,Sagecare,
Peterborough,http://opendatacommunities.org/id/unitary-authority/peterborough,Peterborough City Council,Children's & Education Services - Children's Social Care,Children's Services - Commissioning and Social Work,Supplies and Services,03/07/2013 00:00,560451,14290.5,REVENUE,Thomas Bain & Lesley Dahle Partnership,
Peterborough,http://opendatacommunities.org/id/unitary-authority/peterborough,Peterborough City Council,Adult Social Care,Older People,Supplies and Services,03/07/2013 00:00,560458,581.48,REVENUE,Sagecare,
Peterborough,http://opendatacommunities.org/id/unitary-authority/peterborough,Peterborough City Council,Adult Social Care,Older People,Supplies and Services,03/07/2013 00:00,560462,543.89,REVENUE,Sagecare,
Peterborough,http://opendatacommunities.org/id/unitary-authority/peterborough,Peterborough City Council,Children's & Education Services - Education,Other School -related Education Functions,Supplies and Services,03/07/2013 00:00,560463,4214.94,REVENUE,Granada Learning,
Peterborough,http://opendatacommunities.org/id/unitary-authority/peterborough,Peterborough City Council,Adult Social Care,Older People,Supplies and Services,03/07/2013 00:00,560467,593.82,REVENUE,Sagecare,
Peterborough,http://opendatacommunities.org/id/unitary-authority/peterborough,Peterborough City Council,Adult Social Care,Older People,Supplies and Services,03/07/2013 00:00,560470,886.05,REVENUE,Hales Group Ltd,
Peterborough,http://opendatacommunities.org/id/unitary-authority/peterborough,Peterborough City Council,Adult Social Care,Older People,Supplies and Services,03/07/2013 00:00,560475,747.94,REVENUE,Hales Group Ltd,
Peterborough,http://opendatacommunities.org/id/unitary-authority/peterborough,Peterborough City Council,Capital,Capital,Capital Pending Update to BS,03/07/2013 00:00,560479,2042.4,CAPITAL,UK Power Networks (operations) Ltd,
Peterborough,http://opendatacommunities.org/id/unitary-authority/peterborough,Peterborough City Council,Capital,Capital,Capital Pending Update to BS,03/07/2013 00:00,560481,1608,CAPITAL,UK Power Networks (operations) Ltd,
Peterborough,http://opendatacommunities.org/id/unitary-authority/peterborough,Peterborough City Council,Adult Social Care,Older People,Supplies and Services,03/07/2013 00:00,560496,508.99,REVENUE,Hales Group Ltd,
Peterborough,http://opendatacommunities.org/id/unitary-authority/peterborough,Peterborough City Council,Children's & Education Services - Children's Social Care,More than one Service Division,Supplies and Services - Transfer Payments,03/07/2013 00:00,560512,18214.28,REVENUE,Young Options College Ltd,
Peterborough,http://opendatacommunities.org/id/unitary-authority/peterborough,Peterborough City Council,Children's & Education Services - Children's Social Care,Children Looked After,Supplies and Services - Transfer Payments,03/07/2013 00:00,560513,18214.28,REVENUE,Young Options College Ltd,
Peterborough,http://opendatacommunities.org/id/unitary-authority/peterborough,Peterborough City Council,Adult Social Care,Older People,Supplies and Services,03/07/2013 00:00,560514,650.4,REVENUE,Hales Group Ltd,
Peterborough,http://opendatacommunities.org/id/unitary-authority/peterborough,Peterborough City Council,Adult Social Care,Older People,Supplies and Services,03/07/2013 00:00,560545,1262.07,REVENUE,Hales Group Ltd,
Peterborough,http://opendatacommunities.org/id/unitary-authority/peterborough,Peterborough City Council,Adult Social Care,Older People,Supplies and Services,03/07/2013 00:00,560546,600.33,REVENUE,Hales Group Ltd,
Peterborough,http://opendatacommunities.org/id/unitary-authority/peterborough,Peterborough City Council,Adult Social Care,Older People,Supplies and Services,03/07/2013 00:00,560547,974.24,REVENUE,Hales Group Ltd,
Peterborough,http://opendatacommunities.org/id/unitary-authority/peterborough,Peterborough City Council,Adult Social Care,Older People,Supplies and Services,03/07/2013 00:00,560549,1258.36,REVENUE,Hales Group Ltd,
Peterborough,http://opendatacommunities.org/id/unitary-authority/peterborough,Peterborough City Council,Adult Social Care,Older People,Supplies and Services,03/07/2013 00:00,560595,825.72,REVENUE,Hales Group Ltd,
Peterborough,http://opendatacommunities.org/id/unitary-authority/peterborough,Peterborough City Council,Adult Social Care,Older People,Supplies and Services,03/07/2013 00:00,560600,595.31,REVENUE,Hales Group Ltd,
Peterborough,http://opendatacommunities.org/id/unitary-authority/peterborough,Peterborough City Council,Adult Social Care,Older People,Supplies and Services,03/07/2013 00:00,560602,734.16,REVENUE,Hales Group Ltd,
Peterborough,http://opendatacommunities.org/id/unitary-authority/peterborough,Peterborough City Council,Housing Services,Homelessness,Supplies and Services,03/07/2013 00:00,560606,525,REVENUE,Anchor Lodge,
Peterborough,http://opendatacommunities.org/id/unitary-authority/peterborough,Peterborough City Council,Housing Services,Homelessness,Supplies and Services,03/07/2013 00:00,560610,675,REVENUE,Anchor Lodge,
Peterborough,http://opendatacommunities.org/id/unitary-authority/peterborough,Peterborough City Council,Housing Services,Homelessness,Supplies and Services,03/07/2013 00:00,560614,550,REVENUE,Anchor Lodge,
Peterborough,http://opendatacommunities.org/id/unitary-authority/peterborough,Peterborough City Council,Housing Services,Homelessness,Supplies and Services,03/07/2013 00:00,560617,630,REVENUE,Anchor Lodge,
Peterborough,http://opendatacommunities.org/id/unitary-authority/peterborough,Peterborough City Council,Adult Social Care,Older People,Supplies and Services,03/07/2013 00:00,560620,716.19,REVENUE,Hales Group Ltd,
Peterborough,http://opendatacommunities.org/id/unitary-authority/peterborough,Peterborough City Council,Adult Social Care,Older People,Supplies and Services,03/07/2013 00:00,560623,541.82,REVENUE,Hales Group Ltd,
Peterborough,http://opendatacommunities.org/id/unitary-authority/peterborough,Peterborough City Council,Adult Social Care,Older People,Supplies and Services,03/07/2013 00:00,560626,879.77,REVENUE,Hales Group Ltd,
Peterborough,http://opendatacommunities.org/id/unitary-authority/peterborough,Peterborough City Council,Adult Social Care,Older People,Supplies and Services,03/07/2013 00:00,560688,937.78,REVENUE,Hales Group Ltd,
Peterborough,http://opendatacommunities.org/id/unitary-authority/peterborough,Peterborough City Council,Adult Social Care,Older People,Supplies and Services,03/07/2013 00:00,560709,507.79,REVENUE,Hales Group Ltd,
Peterborough,http://opendatacommunities.org/id/unitary-authority/peterborough,Peterborough City Council,Adult Social Care,Older People,Supplies and Services,03/07/2013 00:00,560715,2604.1,REVENUE,Hales Group Ltd,
Peterborough,http://opendatacommunities.org/id/unitary-authority/peterborough,Peterborough City Council,Adult Social Care,Older People,Supplies and Services,03/07/2013 00:00,560727,941.43,REVENUE,Hales Group Ltd,
Peterborough,http://opendatacommunities.org/id/unitary-authority/peterborough,Peterborough City Council,Adult Social Care,Older People,Supplies and Services,03/07/2013 00:00,560731,780.38,REVENUE,Hales Group Ltd,
Peterborough,http://opendatacommunities.org/id/unitary-authority/peterborough,Peterborough City Council,Adult Social Care,Older People,Supplies and Services,03/07/2013 00:00,560741,1499.51,REVENUE,Hales Group Ltd,
Peterborough,http://opendatacommunities.org/id/unitary-authority/peterborough,Peterborough City Council,Children's & Education Services - Children's Social Care,Family Support Services,Employees,03/07/2013 00:00,560751,1198.8,REVENUE,Capita Resourcing Ltd,
Peterborough,http://opendatacommunities.org/id/unitary-authority/peterborough,Peterborough City Council,Adult Social Care,Older People,Supplies and Services,03/07/2013 00:00,560781,1642.1,REVENUE,Hales Group Ltd,
Peterborough,http://opendatacommunities.org/id/unitary-authority/peterborough,Peterborough City Council,Adult Social Care,Adult Learning Disabilities,Supplies and Services,03/07/2013 00:00,560785,967.77,REVENUE,Hales Group Ltd,
Peterborough,http://opendatacommunities.org/id/unitary-authority/peterborough,Peterborough City Council,Adult Social Care,Older People,Supplies and Services,03/07/2013 00:00,560786,2443.82,REVENUE,Hales Group Ltd,
Peterborough,http://opendatacommunities.org/id/unitary-authority/peterborough,Peterborough City Council,Adult Social Care,Older People,Supplies and Services,03/07/2013 00:00,560806,926.81,REVENUE,Hales Group Ltd,
Peterborough,http://opendatacommunities.org/id/unitary-authority/peterborough,Peterborough City Council,Adult Social Care,Older People,Supplies and Services,03/07/2013 00:00,560809,616.62,REVENUE,Hales Group Ltd,
Peterborough,http://opendatacommunities.org/id/unitary-authority/peterborough,Peterborough City Council,Adult Social Care,Older People,Supplies and Services,03/07/2013 00:00,560815,593.26,REVENUE,Hales Group Ltd,
Peterborough,http://opendatacommunities.org/id/unitary-authority/peterborough,Peterborough City Council,Environmental and Regulatory Services,Regulatory services,Third Party Payments,03/07/2013 00:00,560826,8362.61,REVENUE,Midland Environmental Contracts Ltd,
Peterborough,http://opendatacommunities.org/id/unitary-authority/peterborough,Peterborough City Council,Adult Social Care,Adult Mental Health,Supplies and Services,03/07/2013 00:00,560837,1959.36,REVENUE,CARE IN THE COMMUNITY LIMITED,
Peterborough,http://opendatacommunities.org/id/unitary-authority/peterborough,Peterborough City Council,Adult Social Care,Older People,Supplies and Services,03/07/2013 00:00,560841,995.22,REVENUE,The Huntercombe Group,
Peterborough,http://opendatacommunities.org/id/unitary-authority/peterborough,Peterborough City Council,Adult Social Care,Adult Learning Disabilities,Supplies and Services,03/07/2013 00:00,560842,4802.28,REVENUE,Thera East Anglia,
Peterborough,http://opendatacommunities.org/id/unitary-authority/peterborough,Peterborough City Council,Adult Social Care,Older People,Supplies and Services,03/07/2013 00:00,560843,1365.72,REVENUE,Bondcare,
Peterborough,http://opendatacommunities.org/id/unitary-authority/peterborough,Peterborough City Council,Children's & Education Services - Children's Social Care,Family Support Services,Supplies and Services,03/07/2013 00:00,560851,688.19,REVENUE,Sahara Community Care Services,
Peterborough,http://opendatacommunities.org/id/unitary-authority/peterborough,Peterborough City Council,Highways and Transport Services,"Environmental, Safety & Routine Maintenance",Supplies and Services,03/07/2013 00:00,560861,7560.86,REVENUE,ADC (East Anglia) Ltd,
Peterborough,http://opendatacommunities.org/id/unitary-authority/peterborough,Peterborough City Council,Children's & Education Services - Children's Social Care,Other Children's & Families Services,Supplies and Services,03/07/2013 00:00,560938,2220,REVENUE,"Bennett, Mr Jonathan",
Peterborough,http://opendatacommunities.org/id/unitary-authority/peterborough,Peterborough City Council,Adult Social Care,Older People,Supplies and Services,03/07/2013 00:00,560975,1180.91,REVENUE,Hales Group Ltd,
Peterborough,http://opendatacommunities.org/id/unitary-authority/peterborough,Peterborough City Council,Adult Social Care,Older People,Supplies and Services,03/07/2013 00:00,560985,682.05,REVENUE,Hales Group Ltd,
Peterborough,http://opendatacommunities.org/id/unitary-authority/peterborough,Peterborough City Council,Adult Social Care,Older People,Employees,03/07/2013 00:00,561096,2673,REVENUE,Caritas Recruitment,
Peterborough,http://opendatacommunities.org/id/unitary-authority/peterborough,Peterborough City Council,Adult Social Care,Older People,Supplies and Services,03/07/2013 00:00,561262,665.28,REVENUE,West Anglia Crossroads Ltd,
Peterborough,http://opendatacommunities.org/id/unitary-authority/peterborough,Peterborough City Council,Adult Social Care,Older People,Employees,03/07/2013 00:00,561274,1260,REVENUE,Caritas Recruitment,
Peterborough,http://opendatacommunities.org/id/unitary-authority/peterborough,Peterborough City Council,Adult Social Care,Older People,Supplies and Services,03/07/2013 00:00,561335,560.08,REVENUE,Hales Group Ltd,
Peterborough,http://opendatacommunities.org/id/unitary-authority/peterborough,Peterborough City Council,Highways and Transport Services,Street Lighting,Supplies and Services,03/07/2013 00:00,561340,8492.17,REVENUE,Volker Highways MEWS Ltd,
Peterborough,http://opendatacommunities.org/id/unitary-authority/peterborough,Peterborough City Council,Highways and Transport Services,Street Lighting,Supplies and Services,03/07/2013 00:00,561341,22234.61,REVENUE,Volker Highways MEWS Ltd,
Peterborough,http://opendatacommunities.org/id/unitary-authority/peterborough,Peterborough City Council,Adult Social Care,Older People,Supplies and Services,03/07/2013 00:00,561356,1290.23,REVENUE,Hales Group Ltd,
Peterborough,http://opendatacommunities.org/id/unitary-authority/peterborough,Peterborough City Council,Capital,Capital,Capital Pending Update to BS,03/07/2013 00:00,561379,13016.4,CAPITAL,Redacted Personal Data,
Peterborough,http://opendatacommunities.org/id/unitary-authority/peterborough,Peterborough City Council,Adult Social Care,Older People,Supplies and Services,03/07/2013 00:00,561401,969.62,REVENUE,Sahara Community Care Services,
Peterborough,http://opendatacommunities.org/id/unitary-authority/peterborough,Peterborough City Council,Adult Social Care,Older People,Supplies and Services,03/07/2013 00:00,561406,1147.76,REVENUE,Sahara Community Care Services,
Peterborough,http://opendatacommunities.org/id/unitary-authority/peterborough,Peterborough City Council,Adult Social Care,Older People,Supplies and Services,03/07/2013 00:00,561426,501.6,REVENUE,Sahara Community Care Services,
Peterborough,http://opendatacommunities.org/id/unitary-authority/peterborough,Peterborough City Council,Adult Social Care,Older People,Supplies and Services,03/07/2013 00:00,561427,673.3,REVENUE,Sahara Community Care Services,
Peterborough,http://opendatacommunities.org/id/unitary-authority/peterborough,Peterborough City Council,Adult Social Care,Older People,Supplies and Services,03/07/2013 00:00,561434,845.55,REVENUE,Sahara Community Care Services,
Peterborough,http://opendatacommunities.org/id/unitary-authority/peterborough,Peterborough City Council,Adult Social Care,Older People,Supplies and Services,03/07/2013 00:00,561436,3217.06,REVENUE,Sahara Community Care Services,
Peterborough,http://opendatacommunities.org/id/unitary-authority/peterborough,Peterborough City Council,Capital,Capital,Capital Pending Update to BS,03/07/2013 00:00,561438,10920.47,CAPITAL,Princebuild Limited,
Peterborough,http://opendatacommunities.org/id/unitary-authority/peterborough,Peterborough City Council,Adult Social Care,Older People,Supplies and Services,03/07/2013 00:00,561439,763.19,REVENUE,Sahara Community Care Services,
Peterborough,http://opendatacommunities.org/id/unitary-authority/peterborough,Peterborough City Council,Adult Social Care,Older People,Supplies and Services,03/07/2013 00:00,561444,1740.05,REVENUE,Sahara Community Care Services,
Peterborough,http://opendatacommunities.org/id/unitary-authority/peterborough,Peterborough City Council,Adult Social Care,Older People,Supplies and Services,03/07/2013 00:00,561445,533.5,REVENUE,Sahara Community Care Services,
Peterborough,http://opendatacommunities.org/id/unitary-authority/peterborough,Peterborough City Council,Adult Social Care,Older People,Supplies and Services,03/07/2013 00:00,561448,593.35,REVENUE,Sahara Community Care Services,
Peterborough,http://opendatacommunities.org/id/unitary-authority/peterborough,Peterborough City Council,Adult Social Care,Older People,Supplies and Services,03/07/2013 00:00,561450,1141.47,REVENUE,Sahara Community Care Services,
Peterborough,http://opendatacommunities.org/id/unitary-authority/peterborough,Peterborough City Council,Adult Social Care,Older People,Supplies and Services,03/07/2013 00:00,561454,569.83,REVENUE,Sahara Community Care Services,
Peterborough,http://opendatacommunities.org/id/unitary-authority/peterborough,Peterborough City Council,Adult Social Care,Older People,Supplies and Services,03/07/2013 00:00,561457,1084.31,REVENUE,Sahara Community Care Services,
Peterborough,http://opendatacommunities.org/id/unitary-authority/peterborough,Peterborough City Council,Adult Social Care,Older People,Supplies and Services,03/07/2013 00:00,561459,502.1,REVENUE,Sahara Community Care Services,
Peterborough,http://opendatacommunities.org/id/unitary-authority/peterborough,Peterborough City Council,Adult Social Care,Older People,Supplies and Services,03/07/2013 00:00,561462,2188.22,REVENUE,Sahara Community Care Services,
Peterborough,http://opendatacommunities.org/id/unitary-authority/peterborough,Peterborough City Council,Adult Social Care,Older People,Supplies and Services,03/07/2013 00:00,561464,2431.92,REVENUE,Sahara Community Care Services,
Peterborough,http://opendatacommunities.org/id/unitary-authority/peterborough,Peterborough City Council,Adult Social Care,Adult Learning Disabilities,Employees,03/07/2013 00:00,561655,777.6,REVENUE,City Resource Ltd,
Peterborough,http://opendatacommunities.org/id/unitary-authority/peterborough,Peterborough City Council,Adult Social Care,Older People,Supplies and Services,03/07/2013 00:00,561690,2661.47,REVENUE,LESTER HALL APARTMENTS LTD,
Peterborough,http://opendatacommunities.org/id/unitary-authority/peterborough,Peterborough City Council,Adult Social Care,Older People,Supplies and Services,03/07/2013 00:00,561794,2431.92,REVENUE,Sahara Community Care Services,
Peterborough,http://opendatacommunities.org/id/unitary-authority/peterborough,Peterborough City Council,Support Services,Support Services,Premises,03/07/2013 00:00,561899,33935.7,REVENUE,Capita Symonds Ltd,
Peterborough,http://opendatacommunities.org/id/unitary-authority/peterborough,Peterborough City Council,Support Services,Support Services,Premises,03/07/2013 00:00,561901,35337.3,REVENUE,Capita Symonds Ltd,
Peterborough,http://opendatacommunities.org/id/unitary-authority/peterborough,Peterborough City Council,Children's & Education Services - Children's Social Care,Other Children's & Families Services,Supplies and Services,03/07/2013 00:00,561953,2155,REVENUE,HM Courts and Tribunals Service (HMCTS),
Peterborough,http://opendatacommunities.org/id/unitary-authority/peterborough,Peterborough City Council,Planning Services,Community Development,Supplies and Services,03/07/2013 00:00,561964,1000,REVENUE,Paston  & Gunthorpe Comm Association,
Peterborough,http://opendatacommunities.org/id/unitary-authority/peterborough,Peterborough City Council,Adult Social Care,Adult Learning Disabilities,Supplies and Services,03/07/2013 00:00,561984,6400,REVENUE,Community Care Solutions Ltd,
Peterborough,http://opendatacommunities.org/id/unitary-authority/peterborough,Peterborough City Council,Adult Social Care,Adult Learning Disabilities,Supplies and Services,03/07/2013 00:00,561985,5198.44,REVENUE,Community Care Solutions Ltd,
Peterborough,http://opendatacommunities.org/id/unitary-authority/peterborough,Peterborough City Council,Capital,Capital,Capital Pending Update to BS,03/07/2013 00:00,562256,727191.54,CAPITAL,Kier Eastern,
Peterborough,http://opendatacommunities.org/id/unitary-authority/peterborough,Peterborough City Council,Children's & Education Services - Children's Social Care,Other Children's & Families Services,Supplies and Services,03/07/2013 00:00,562262,2155,REVENUE,HM Courts and Tribunals Service (HMCTS),
Peterborough,http://opendatacommunities.org/id/unitary-authority/peterborough,Peterborough City Council,More than one Service Area Category,More than one Service Division,Employees,03/07/2013 00:00,562291,600,REVENUE,Redacted Personal Data,
Peterborough,http://opendatacommunities.org/id/unitary-authority/peterborough,Peterborough City Council,Children's & Education Services - Education,Other School -related Education Functions,Supplies and Services,03/07/2013 00:00,562298,7126.63,REVENUE,Nottingham City Council,
Peterborough,http://opendatacommunities.org/id/unitary-authority/peterborough,Peterborough City Council,Adult Social Care,Other Adult Services,Third Party Payments,03/07/2013 00:00,562499,8240,REVENUE,DRINKSENSE,
Peterborough,http://opendatacommunities.org/id/unitary-authority/peterborough,Peterborough City Council,Adult Social Care,Older People,Supplies and Services,03/07/2013 00:00,562533,735.2,REVENUE,Sahara Community Care Services,
Peterborough,http://opendatacommunities.org/id/unitary-authority/peterborough,Peterborough City Council,Adult Social Care,Older People,Supplies and Services,03/07/2013 00:00,562537,838.26,REVENUE,Sahara Community Care Services,
Peterborough,http://opendatacommunities.org/id/unitary-authority/peterborough,Peterborough City Council,Adult Social Care,Older People,Supplies and Services,03/07/2013 00:00,562538,894.55,REVENUE,Sahara Community Care Services,
Peterborough,http://opendatacommunities.org/id/unitary-authority/peterborough,Peterborough City Council,Adult Social Care,Older People,Supplies and Services,03/07/2013 00:00,562550,883.27,REVENUE,Sahara Community Care Services,
Peterborough,http://opendatacommunities.org/id/unitary-authority/peterborough,Peterborough City Council,Adult Social Care,Older People,Supplies and Services,03/07/2013 00:00,562552,2264.16,REVENUE,Sahara Community Care Services,
Peterborough,http://opendatacommunities.org/id/unitary-authority/peterborough,Peterborough City Council,Adult Social Care,Older People,Supplies and Services,03/07/2013 00:00,562554,781.28,REVENUE,Sahara Community Care Services,
Peterborough,http://opendatacommunities.org/id/unitary-authority/peterborough,Peterborough City Council,Adult Social Care,Older People,Supplies and Services,03/07/2013 00:00,562556,530.55,REVENUE,Sahara Community Care Services,
Peterborough,http://opendatacommunities.org/id/unitary-authority/peterborough,Peterborough City Council,Adult Social Care,Older People,Supplies and Services,03/07/2013 00:00,562559,1515.54,REVENUE,Sahara Community Care Services,
Peterborough,http://opendatacommunities.org/id/unitary-authority/peterborough,Peterborough City Council,Adult Social Care,Adult Mental Health,Supplies and Services,03/07/2013 00:00,562562,530.75,REVENUE,Sahara Community Care Services,
Peterborough,http://opendatacommunities.org/id/unitary-authority/peterborough,Peterborough City Council,Adult Social Care,Older People,Supplies and Services,03/07/2013 00:00,562568,824.42,REVENUE,Sahara Community Care Services,
Peterborough,http://opendatacommunities.org/id/unitary-authority/peterborough,Peterborough City Council,Adult Social Care,Older People,Supplies and Services,03/07/2013 00:00,562573,560.36,REVENUE,Sahara Community Care Services,
Peterborough,http://opendatacommunities.org/id/unitary-authority/peterborough,Peterborough City Council,Adult Social Care,Older People,Supplies and Services,03/07/2013 00:00,562579,2500.95,REVENUE,Sahara Community Care Services,
Peterborough,http://opendatacommunities.org/id/unitary-authority/peterborough,Peterborough City Council,Adult Social Care,Older People,Supplies and Services,03/07/2013 00:00,562580,1308.07,REVENUE,Sahara Community Care Services,
Peterborough,http://opendatacommunities.org/id/unitary-authority/peterborough,Peterborough City Council,Adult Social Care,Older People,Supplies and Services,03/07/2013 00:00,562583,923.75,REVENUE,Sahara Community Care Services,
Peterborough,http://opendatacommunities.org/id/unitary-authority/peterborough,Peterborough City Council,Adult Social Care,Older People,Supplies and Services,03/07/2013 00:00,562584,1404.5,REVENUE,Sahara Community Care Services,
Peterborough,http://opendatacommunities.org/id/unitary-authority/peterborough,Peterborough City Council,Adult Social Care,Older People,Supplies and Services,03/07/2013 00:00,562585,601.66,REVENUE,Sahara Community Care Services,
Peterborough,http://opendatacommunities.org/id/unitary-authority/peterborough,Peterborough City Council,Adult Social Care,Older People,Supplies and Services,03/07/2013 00:00,562587,2172.11,REVENUE,Sahara Community Care Services,
Peterborough,http://opendatacommunities.org/id/unitary-authority/peterborough,Peterborough City Council,Adult Social Care,More than one Service Division,Supplies and Services,03/07/2013 00:00,562725,1500,REVENUE,Sensory Integration Network,
Peterborough,http://opendatacommunities.org/id/unitary-authority/peterborough,Peterborough City Council,Children's & Education Services - Children's Social Care,Children Looked After,Transport,03/07/2013 00:00,562730,1279.2,REVENUE,A2B Euro Cars,
Peterborough,http://opendatacommunities.org/id/unitary-authority/peterborough,Peterborough City Council,Adult Social Care,Older People,Supplies and Services,03/07/2013 00:00,562742,750.57,REVENUE,Sagecare,
Peterborough,http://opendatacommunities.org/id/unitary-authority/peterborough,Peterborough City Council,Adult Social Care,Older People,Supplies and Services,03/07/2013 00:00,562747,623.75,REVENUE,Sagecare,
Peterborough,http://opendatacommunities.org/id/unitary-authority/peterborough,Peterborough City Council,Adult Social Care,Older People,Supplies and Services,03/07/2013 00:00,562749,638.35,REVENUE,Sagecare,
Peterborough,http://opendatacommunities.org/id/unitary-authority/peterborough,Peterborough City Council,Adult Social Care,Older People,Supplies and Services,03/07/2013 00:00,562764,814.81,REVENUE,Sagecare,
Peterborough,http://opendatacommunities.org/id/unitary-authority/peterborough,Peterborough City Council,Adult Social Care,Older People,Supplies and Services,03/07/2013 00:00,562766,631.04,REVENUE,Sagecare,
Peterborough,http://opendatacommunities.org/id/unitary-authority/peterborough,Peterborough City Council,Adult Social Care,Older People,Supplies and Services,03/07/2013 00:00,562769,600.19,REVENUE,Sagecare,
Peterborough,http://opendatacommunities.org/id/unitary-authority/peterborough,Peterborough City Council,Adult Social Care,Older People,Supplies and Services,03/07/2013 00:00,562772,581.44,REVENUE,Sagecare,
Peterborough,http://opendatacommunities.org/id/unitary-authority/peterborough,Peterborough City Council,Adult Social Care,Older People,Supplies and Services,03/07/2013 00:00,562773,655.73,REVENUE,Sagecare,
Peterborough,http://opendatacommunities.org/id/unitary-authority/peterborough,Peterborough City Council,Adult Social Care,Older People,Supplies and Services,03/07/2013 00:00,562779,574.11,REVENUE,Sagecare,
Peterborough,http://opendatacommunities.org/id/unitary-authority/peterborough,Peterborough City Council,Adult Social Care,Older People,Supplies and Services,03/07/2013 00:00,562783,553.9,REVENUE,Sagecare,
Peterborough,http://opendatacommunities.org/id/unitary-authority/peterborough,Peterborough City Council,More than one Service Area Category,More than one Service Division,More than one Expenses Type,03/07/2013 00:00,562784,5155,"Mixture of Capital, Revenue and/or Balance Sheet",Heating & Plumbing Services,
Peterborough,http://opendatacommunities.org/id/unitary-authority/peterborough,Peterborough City Council,Adult Social Care,Adult Learning Disabilities,Supplies and Services,03/07/2013 00:00,562785,625.41,REVENUE,Sagecare,
Peterborough,http://opendatacommunities.org/id/unitary-authority/peterborough,Peterborough City Council,Adult Social Care,Older People,Supplies and Services,03/07/2013 00:00,562795,1524.24,REVENUE,Sagecare,
Peterborough,http://opendatacommunities.org/id/unitary-authority/peterborough,Peterborough City Council,Adult Social Care,Adult Mental Health,Supplies and Services,03/07/2013 00:00,562805,662.63,REVENUE,Sagecare,
Peterborough,http://opendatacommunities.org/id/unitary-authority/peterborough,Peterborough City Council,Adult Social Care,Older People,Supplies and Services,03/07/2013 00:00,562824,748.44,REVENUE,Sagecare,
Peterborough,http://opendatacommunities.org/id/unitary-authority/peterborough,Peterborough City Council,Adult Social Care,Older People,Supplies and Services,03/07/2013 00:00,562832,696.75,REVENUE,Sagecare,
Peterborough,http://opendatacommunities.org/id/unitary-authority/peterborough,Peterborough City Council,Adult Social Care,Older People,Supplies and Services,03/07/2013 00:00,562833,517.14,REVENUE,Sagecare,
Peterborough,http://opendatacommunities.org/id/unitary-authority/peterborough,Peterborough City Council,Adult Social Care,Older People,Supplies and Services,03/07/2013 00:00,562839,530.65,REVENUE,Sagecare,
Peterborough,http://opendatacommunities.org/id/unitary-authority/peterborough,Peterborough City Council,Adult Social Care,More than one Service Division,Supplies and Services,03/07/2013 00:00,562853,1500,REVENUE,Sensory Integration Network,
Peterborough,http://opendatacommunities.org/id/unitary-authority/peterborough,Peterborough City Council,Adult Social Care,Older People,Supplies and Services,03/07/2013 00:00,562854,1121.92,REVENUE,Sagecare,
Peterborough,http://opendatacommunities.org/id/unitary-authority/peterborough,Peterborough City Council,More than one Service Area Category,More than one Service Division,Premises,03/07/2013 00:00,562872,2827.04,REVENUE,British Gas Business,
Peterborough,http://opendatacommunities.org/id/unitary-authority/peterborough,Peterborough City Council,More than one Service Area Category,More than one Service Division,Premises,03/07/2013 00:00,562877,1377.1,REVENUE,British Gas Business,
Peterborough,http://opendatacommunities.org/id/unitary-authority/peterborough,Peterborough City Council,Adult Social Care,Older People,Supplies and Services,03/07/2013 00:00,562881,1043.85,REVENUE,Sahara Community Care Services,
Peterborough,http://opendatacommunities.org/id/unitary-authority/peterborough,Peterborough City Council,Adult Social Care,Older People,Supplies and Services,03/07/2013 00:00,562893,1445.96,REVENUE,Sahara Community Care Services,
Peterborough,http://opendatacommunities.org/id/unitary-authority/peterborough,Peterborough City Council,Adult Social Care,Older People,Supplies and Services,03/07/2013 00:00,562896,1507.71,REVENUE,Sahara Community Care Services,
Peterborough,http://opendatacommunities.org/id/unitary-authority/peterborough,Peterborough City Council,Adult Social Care,Older People,Supplies and Services,03/07/2013 00:00,562903,711.12,REVENUE,MEARS GROUP,
Peterborough,http://opendatacommunities.org/id/unitary-authority/peterborough,Peterborough City Council,Adult Social Care,Older People,Supplies and Services,03/07/2013 00:00,562906,1687.6,REVENUE,MEARS GROUP,
Peterborough,http://opendatacommunities.org/id/unitary-authority/peterborough,Peterborough City Council,Adult Social Care,Older People,Supplies and Services,03/07/2013 00:00,562911,1431.23,REVENUE,Sahara Community Care Services,
Peterborough,http://opendatacommunities.org/id/unitary-authority/peterborough,Peterborough City Council,Environmental and Regulatory Services,Waste Collection,Supplies and Services,03/07/2013 00:00,562913,690520.28,REVENUE,Enterprise Managed Services Limited,
Peterborough,http://opendatacommunities.org/id/unitary-authority/peterborough,Peterborough City Council,Adult Social Care,Adult Physical Disability & Sensory Impairment,Supplies and Services,03/07/2013 00:00,562916,716.64,REVENUE,Action on Hearing Loss,
Peterborough,http://opendatacommunities.org/id/unitary-authority/peterborough,Peterborough City Council,Adult Social Care,Older People,Supplies and Services,03/07/2013 00:00,562918,562.21,REVENUE,Sahara Community Care Services,
Peterborough,http://opendatacommunities.org/id/unitary-authority/peterborough,Peterborough City Council,Adult Social Care,Older People,Supplies and Services,03/07/2013 00:00,562926,882.83,REVENUE,MEARS GROUP,
Peterborough,http://opendatacommunities.org/id/unitary-authority/peterborough,Peterborough City Council,Corporate & Democratic Core,Democratic Representation & Managemetn,Supplies and Services,03/07/2013 00:00,562937,1500,REVENUE,J's Catering,
Peterborough,http://opendatacommunities.org/id/unitary-authority/peterborough,Peterborough City Council,Adult Social Care,Adult Physical Disability & Sensory Impairment,Supplies and Services,03/07/2013 00:00,562974,1360.4,REVENUE,ABOUT ME CARE AND SUPPORT LTD,
Peterborough,http://opendatacommunities.org/id/unitary-authority/peterborough,Peterborough City Council,Capital,Capital,Capital Pending Update to BS,03/07/2013 00:00,562986,178990.72,CAPITAL,Ringway Infrastructure Services,
Peterborough,http://opendatacommunities.org/id/unitary-authority/peterborough,Peterborough City Council,Deficit/(Surplus) on Trading Undertakings,Trading Account Surpluses & Deficits,Supplies and Services,03/07/2013 00:00,562988,607.68,REVENUE,Barron Clark Castings Ltd,
Peterborough,http://opendatacommunities.org/id/unitary-authority/peterborough,Peterborough City Council,Deficit/(Surplus) on Trading Undertakings,Trading Account Surpluses & Deficits,Supplies and Services,03/07/2013 00:00,562991,759.6,REVENUE,Barron Clark Castings Ltd,
Peterborough,http://opendatacommunities.org/id/unitary-authority/peterborough,Peterborough City Council,Deficit/(Surplus) on Trading Undertakings,Trading Account Surpluses & Deficits,Supplies and Services,03/07/2013 00:00,562992,759.6,REVENUE,Barron Clark Castings Ltd,
Peterborough,http://opendatacommunities.org/id/unitary-authority/peterborough,Peterborough City Council,Deficit/(Surplus) on Trading Undertakings,Trading Account Surpluses & Deficits,Supplies and Services,03/07/2013 00:00,562995,607.68,REVENUE,Barron Clark Castings Ltd,
Peterborough,http://opendatacommunities.org/id/unitary-authority/peterborough,Peterborough City Council,Capital,Capital,Capital Pending Update to BS,03/07/2013 00:00,562997,41579.3,CAPITAL,Ringway Infrastructure Services,
Peterborough,http://opendatacommunities.org/id/unitary-authority/peterborough,Peterborough City Council,Adult Social Care,Older People,Supplies and Services,03/07/2013 00:00,563006,818.22,REVENUE,THE CLAIR FRANCIS RETIREMENT HOME,
Peterborough,http://opendatacommunities.org/id/unitary-authority/peterborough,Peterborough City Council,Deficit/(Surplus) on Trading Undertakings,Trading Account Surpluses & Deficits,Supplies and Services,03/07/2013 00:00,563013,1020.49,REVENUE,Barron Clark Castings Ltd,
Peterborough,http://opendatacommunities.org/id/unitary-authority/peterborough,Peterborough City Council,Deficit/(Surplus) on Trading Undertakings,Trading Account Surpluses & Deficits,Supplies and Services,03/07/2013 00:00,563016,759.6,REVENUE,Barron Clark Castings Ltd,
Peterborough,http://opendatacommunities.org/id/unitary-authority/peterborough,Peterborough City Council,Adult Social Care,Older People,Supplies and Services,03/07/2013 00:00,563020,748.24,REVENUE,Better Healthcare Services,
Peterborough,http://opendatacommunities.org/id/unitary-authority/peterborough,Peterborough City Council,Adult Social Care,Older People,Supplies and Services,03/07/2013 00:00,563021,824.03,REVENUE,Better Healthcare Services,
Peterborough,http://opendatacommunities.org/id/unitary-authority/peterborough,Peterborough City Council,Adult Social Care,Older People,Supplies and Services,03/07/2013 00:00,563022,605.95,REVENUE,Better Healthcare Services,
Peterborough,http://opendatacommunities.org/id/unitary-authority/peterborough,Peterborough City Council,Adult Social Care,Older People,Supplies and Services,03/07/2013 00:00,563024,698.83,REVENUE,Better Healthcare Services,
Peterborough,http://opendatacommunities.org/id/unitary-authority/peterborough,Peterborough City Council,Adult Social Care,Older People,Supplies and Services,03/07/2013 00:00,563025,1143.48,REVENUE,Better Healthcare Services,
Peterborough,http://opendatacommunities.org/id/unitary-authority/peterborough,Peterborough City Council,Adult Social Care,Older People,Supplies and Services,03/07/2013 00:00,563029,691.35,REVENUE,Better Healthcare Services,
Peterborough,http://opendatacommunities.org/id/unitary-authority/peterborough,Peterborough City Council,Adult Social Care,Older People,Supplies and Services,03/07/2013 00:00,563031,784.95,REVENUE,Better Healthcare Services,
Peterborough,http://opendatacommunities.org/id/unitary-authority/peterborough,Peterborough City Council,Adult Social Care,Older People,Supplies and Services,03/07/2013 00:00,563033,504.46,REVENUE,Better Healthcare Services,
Peterborough,http://opendatacommunities.org/id/unitary-authority/peterborough,Peterborough City Council,Support Services,Support Services,Supplies and Services,03/07/2013 00:00,563035,20464.06,REVENUE,Edenred,
Peterborough,http://opendatacommunities.org/id/unitary-authority/peterborough,Peterborough City Council,Adult Social Care,Older People,Supplies and Services,03/07/2013 00:00,563038,588.16,REVENUE,Better Healthcare Services,
Peterborough,http://opendatacommunities.org/id/unitary-authority/peterborough,Peterborough City Council,Adult Social Care,Older People,Supplies and Services,03/07/2013 00:00,563040,706.07,REVENUE,Better Healthcare Services,
Peterborough,http://opendatacommunities.org/id/unitary-authority/peterborough,Peterborough City Council,Adult Social Care,Older People,Supplies and Services,03/07/2013 00:00,563044,641.33,REVENUE,Better Healthcare Services,
Peterborough,http://opendatacommunities.org/id/unitary-authority/peterborough,Peterborough City Council,Adult Social Care,Adult Physical Disability & Sensory Impairment,Supplies and Services,03/07/2013 00:00,563046,511.6,REVENUE,Better Healthcare Services,
Peterborough,http://opendatacommunities.org/id/unitary-authority/peterborough,Peterborough City Council,Adult Social Care,Older People,Supplies and Services,03/07/2013 00:00,563048,737.74,REVENUE,Better Healthcare Services,
Peterborough,http://opendatacommunities.org/id/unitary-authority/peterborough,Peterborough City Council,Adult Social Care,Older People,Supplies and Services,03/07/2013 00:00,563049,756.34,REVENUE,Better Healthcare Services,
Peterborough,http://opendatacommunities.org/id/unitary-authority/peterborough,Peterborough City Council,Deficit/(Surplus) on Trading Undertakings,Trading Account Surpluses & Deficits,Premises,03/07/2013 00:00,563079,710.26,REVENUE,British Gas Business,
Peterborough,http://opendatacommunities.org/id/unitary-authority/peterborough,Peterborough City Council,More than one Service Area Category,More than one Service Division,Transport,03/07/2013 00:00,563115,1308.65,REVENUE,Redacted Personal Data,
Peterborough,http://opendatacommunities.org/id/unitary-authority/peterborough,Peterborough City Council,Children's & Education Services - Children's Social Care,Children Looked After,Transport,03/07/2013 00:00,563117,1274.4,REVENUE,Redacted Personal Data,
Peterborough,http://opendatacommunities.org/id/unitary-authority/peterborough,Peterborough City Council,More than one Service Area Category,More than one Service Division,Transport,03/07/2013 00:00,563118,1062.9,REVENUE,Redacted Personal Data,
Peterborough,http://opendatacommunities.org/id/unitary-authority/peterborough,Peterborough City Council,Children's & Education Services - Children's Social Care,Children Looked After,Transport,03/07/2013 00:00,563119,895.95,REVENUE,Redacted Personal Data,
Peterborough,http://opendatacommunities.org/id/unitary-authority/peterborough,Peterborough City Council,More than one Service Area Category,More than one Service Division,Transport,03/07/2013 00:00,563120,594.3,REVENUE,Redacted Personal Data,
Peterborough,http://opendatacommunities.org/id/unitary-authority/peterborough,Peterborough City Council,Children's & Education Services - Children's Social Care,Children Looked After,More than one Expenses Type,03/07/2013 00:00,563121,943.85,REVENUE,Redacted Personal Data,
Peterborough,http://opendatacommunities.org/id/unitary-authority/peterborough,Peterborough City Council,Children's & Education Services - Education,Other School -related Education Functions,Transport,03/07/2013 00:00,563122,1260,REVENUE,A2B Euro Cars,
Peterborough,http://opendatacommunities.org/id/unitary-authority/peterborough,Peterborough City Council,Children's & Education Services - Education,Other School -related Education Functions,Transport,03/07/2013 00:00,563134,884.4,REVENUE,Goldstar Cabs Ltd,
Peterborough,http://opendatacommunities.org/id/unitary-authority/peterborough,Peterborough City Council,Children's & Education Services - Education,Other School -related Education Functions,Transport,03/07/2013 00:00,563135,921.72,REVENUE,Goldstar Cabs Ltd,
Peterborough,http://opendatacommunities.org/id/unitary-authority/peterborough,Peterborough City Council,Children's & Education Services - Education,Other School -related Education Functions,Transport,03/07/2013 00:00,563136,1000.44,REVENUE,Goldstar Cabs Ltd,
Peterborough,http://opendatacommunities.org/id/unitary-authority/peterborough,Peterborough City Council,Children's & Education Services - Education,Other School -related Education Functions,Transport,03/07/2013 00:00,563137,1406.64,REVENUE,Goldstar Cabs Ltd,
Peterborough,http://opendatacommunities.org/id/unitary-authority/peterborough,Peterborough City Council,Children's & Education Services - Education,Other School -related Education Functions,Transport,03/07/2013 00:00,563138,813.36,REVENUE,Goldstar Cabs Ltd,
Peterborough,http://opendatacommunities.org/id/unitary-authority/peterborough,Peterborough City Council,Children's & Education Services - Education,Other School -related Education Functions,Transport,03/07/2013 00:00,563139,1307.64,REVENUE,Goldstar Cabs Ltd,
Peterborough,http://opendatacommunities.org/id/unitary-authority/peterborough,Peterborough City Council,Children's & Education Services - Education,Other School -related Education Functions,Transport,03/07/2013 00:00,563140,621.6,REVENUE,Goldstar Cabs Ltd,
Peterborough,http://opendatacommunities.org/id/unitary-authority/peterborough,Peterborough City Council,Children's & Education Services - Education,Other School -related Education Functions,Transport,03/07/2013 00:00,563141,884.4,REVENUE,Goldstar Cabs Ltd,
Peterborough,http://opendatacommunities.org/id/unitary-authority/peterborough,Peterborough City Council,Children's & Education Services - Education,Other School -related Education Functions,Transport,03/07/2013 00:00,563142,2423.69,REVENUE,May Gurney Fleet and Passenger Services,
Peterborough,http://opendatacommunities.org/id/unitary-authority/peterborough,Peterborough City Council,Children's & Education Services - Education,Other School -related Education Functions,Transport,03/07/2013 00:00,563143,2032.01,REVENUE,May Gurney Fleet and Passenger Services,
Peterborough,http://opendatacommunities.org/id/unitary-authority/peterborough,Peterborough City Council,Children's & Education Services - Education,Other School -related Education Functions,Transport,03/07/2013 00:00,563144,2489.19,REVENUE,May Gurney Fleet and Passenger Services,
Peterborough,http://opendatacommunities.org/id/unitary-authority/peterborough,Peterborough City Council,Children's & Education Services - Education,Other School -related Education Functions,Transport,03/07/2013 00:00,563145,2227.17,REVENUE,May Gurney Fleet and Passenger Services,
Peterborough,http://opendatacommunities.org/id/unitary-authority/peterborough,Peterborough City Council,Children's & Education Services - Education,Other School -related Education Functions,Transport,03/07/2013 00:00,563146,2320.33,REVENUE,May Gurney Fleet and Passenger Services,
Peterborough,http://opendatacommunities.org/id/unitary-authority/peterborough,Peterborough City Council,Children's & Education Services - Education,Other School -related Education Functions,Transport,03/07/2013 00:00,563150,1059.6,REVENUE,Goldstar Cabs Ltd,
Peterborough,http://opendatacommunities.org/id/unitary-authority/peterborough,Peterborough City Council,Children's & Education Services - Education,Other School -related Education Functions,Transport,03/07/2013 00:00,563151,571.2,REVENUE,Redacted Personal Data,
Peterborough,http://opendatacommunities.org/id/unitary-authority/peterborough,Peterborough City Council,More than one Service Area Category,More than one Service Division,More than one Expenses Type,03/07/2013 00:00,563166,2905,"Mixture of Capital, Revenue and/or Balance Sheet",S R K Engineering,
Peterborough,http://opendatacommunities.org/id/unitary-authority/peterborough,Peterborough City Council,Cultural and Related Services,Recreation & Sport,Supplies and Services,03/07/2013 00:00,563170,540,REVENUE,Standfirst Media Ltd,
Peterborough,http://opendatacommunities.org/id/unitary-authority/peterborough,Peterborough City Council,Highways and Transport Services,Support Services,Employees,03/07/2013 00:00,563171,984,REVENUE,TCPSS Services Ltd,
Peterborough,http://opendatacommunities.org/id/unitary-authority/peterborough,Peterborough City Council,Adult Social Care,Older People,Supplies and Services,03/07/2013 00:00,563175,2985.6,REVENUE,P F S Builders & Contractors,
Peterborough,http://opendatacommunities.org/id/unitary-authority/peterborough,Peterborough City Council,Adult Social Care,Older People,Supplies and Services,03/07/2013 00:00,563178,2995.2,REVENUE,P F S Builders & Contractors,
Peterborough,http://opendatacommunities.org/id/unitary-authority/peterborough,Peterborough City Council,Children's & Education Services - Children's Social Care,Other Children's & Families Services,Supplies and Services,03/07/2013 00:00,563206,700,REVENUE,HM Courts and Tribunals Service (HMCTS),
Peterborough,http://opendatacommunities.org/id/unitary-authority/peterborough,Peterborough City Council,Children's & Education Services - Children's Social Care,Children Looked After,Supplies and Services - Transfer Payments,03/07/2013 00:00,563220,625.73,REVENUE,Redacted Personal Data,
Peterborough,http://opendatacommunities.org/id/unitary-authority/peterborough,Peterborough City Council,Children's & Education Services - Children's Social Care,Other Children's & Families Services,Supplies and Services - Transfer Payments,03/07/2013 00:00,563239,600,REVENUE,Redacted Personal Data,
Peterborough,http://opendatacommunities.org/id/unitary-authority/peterborough,Peterborough City Council,Children's & Education Services - Children's Social Care,Other Children's & Families Services,Supplies and Services - Transfer Payments,03/07/2013 00:00,563240,613.6,REVENUE,Redacted Personal Data,
Peterborough,http://opendatacommunities.org/id/unitary-authority/peterborough,Peterborough City Council,Children's & Education Services - Children's Social Care,Children Looked After,Supplies and Services - Transfer Payments,03/07/2013 00:00,563336,688.98,REVENUE,Redacted Personal Data,
Peterborough,http://opendatacommunities.org/id/unitary-authority/peterborough,Peterborough City Council,Children's & Education Services - Children's Social Care,Children Looked After,Supplies and Services - Transfer Payments,03/07/2013 00:00,563337,563.92,REVENUE,Redacted Personal Data,
Peterborough,http://opendatacommunities.org/id/unitary-authority/peterborough,Peterborough City Council,Children's & Education Services - Children's Social Care,Children Looked After,Supplies and Services - Transfer Payments,03/07/2013 00:00,563338,602.7,REVENUE,Redacted Personal Data,
Peterborough,http://opendatacommunities.org/id/unitary-authority/peterborough,Peterborough City Council,Children's & Education Services - Children's Social Care,Children Looked After,Supplies and Services - Transfer Payments,03/07/2013 00:00,563339,563.92,REVENUE,Redacted Personal Data,
Peterborough,http://opendatacommunities.org/id/unitary-authority/peterborough,Peterborough City Council,Children's & Education Services - Children's Social Care,Children Looked After,Supplies and Services - Transfer Payments,03/07/2013 00:00,563340,602.7,REVENUE,Redacted Personal Data,
Peterborough,http://opendatacommunities.org/id/unitary-authority/peterborough,Peterborough City Council,Children's & Education Services - Children's Social Care,Children Looked After,Supplies and Services - Transfer Payments,03/07/2013 00:00,563341,563.92,REVENUE,Redacted Personal Data,
Peterborough,http://opendatacommunities.org/id/unitary-authority/peterborough,Peterborough City Council,Children's & Education Services - Children's Social Care,Children Looked After,Supplies and Services - Transfer Payments,03/07/2013 00:00,563342,563.92,REVENUE,Redacted Personal Data,
Peterborough,http://opendatacommunities.org/id/unitary-authority/peterborough,Peterborough City Council,Children's & Education Services - Children's Social Care,Children Looked After,Supplies and Services - Transfer Payments,03/07/2013 00:00,563343,602.7,REVENUE,Redacted Personal Data,
Peterborough,http://opendatacommunities.org/id/unitary-authority/peterborough,Peterborough City Council,Children's & Education Services - Children's Social Care,Children Looked After,Supplies and Services - Transfer Payments,03/07/2013 00:00,563344,563.92,REVENUE,Redacted Personal Data,
Peterborough,http://opendatacommunities.org/id/unitary-authority/peterborough,Peterborough City Council,Children's & Education Services - Children's Social Care,Children Looked After,Supplies and Services - Transfer Payments,03/07/2013 00:00,563346,563.92,REVENUE,Redacted Personal Data,
Peterborough,http://opendatacommunities.org/id/unitary-authority/peterborough,Peterborough City Council,Children's & Education Services - Children's Social Care,Children Looked After,Supplies and Services - Transfer Payments,03/07/2013 00:00,563347,563.92,REVENUE,Redacted Personal Data,
Peterborough,http://opendatacommunities.org/id/unitary-authority/peterborough,Peterborough City Council,Children's & Education Services - Children's Social Care,Children Looked After,Supplies and Services - Transfer Payments,03/07/2013 00:00,563348,563.92,REVENUE,Redacted Personal Data,
Peterborough,http://opendatacommunities.org/id/unitary-authority/peterborough,Peterborough City Council,Children's & Education Services - Children's Social Care,Children Looked After,Supplies and Services - Transfer Payments,03/07/2013 00:00,563349,602.7,REVENUE,Redacted Personal Data,
Peterborough,http://opendatacommunities.org/id/unitary-authority/peterborough,Peterborough City Council,Children's & Education Services - Children's Social Care,Children Looked After,Supplies and Services - Transfer Payments,03/07/2013 00:00,563350,563.92,REVENUE,Redacted Personal Data,
Peterborough,http://opendatacommunities.org/id/unitary-authority/peterborough,Peterborough City Council,Children's & Education Services - Children's Social Care,Children Looked After,Supplies and Services - Transfer Payments,03/07/2013 00:00,563351,800.59,REVENUE,Redacted Personal Data,
Peterborough,http://opendatacommunities.org/id/unitary-authority/peterborough,Peterborough City Council,Children's & Education Services - Children's Social Care,Children Looked After,Supplies and Services - Transfer Payments,03/07/2013 00:00,563352,511.7,REVENUE,Redacted Personal Data,
Peterborough,http://opendatacommunities.org/id/unitary-authority/peterborough,Peterborough City Council,Children's & Education Services - Children's Social Care,Children Looked After,Supplies and Services - Transfer Payments,03/07/2013 00:00,563353,563.92,REVENUE,Redacted Personal Data,
Peterborough,http://opendatacommunities.org/id/unitary-authority/peterborough,Peterborough City Council,Children's & Education Services - Children's Social Care,Children Looked After,Supplies and Services - Transfer Payments,03/07/2013 00:00,563354,602.7,REVENUE,Redacted Personal Data,
Peterborough,http://opendatacommunities.org/id/unitary-authority/peterborough,Peterborough City Council,Children's & Education Services - Children's Social Care,Children Looked After,Supplies and Services - Transfer Payments,03/07/2013 00:00,563356,511.7,REVENUE,Redacted Personal Data,
Peterborough,http://opendatacommunities.org/id/unitary-authority/peterborough,Peterborough City Council,Children's & Education Services - Children's Social Care,Children Looked After,Supplies and Services - Transfer Payments,03/07/2013 00:00,563357,511.7,REVENUE,Redacted Personal Data,
Peterborough,http://opendatacommunities.org/id/unitary-authority/peterborough,Peterborough City Council,Children's & Education Services - Children's Social Care,Children Looked After,Supplies and Services - Transfer Payments,03/07/2013 00:00,563358,563.92,REVENUE,Redacted Personal Data,
Peterborough,http://opendatacommunities.org/id/unitary-authority/peterborough,Peterborough City Council,Children's & Education Services - Children's Social Care,Children Looked After,Supplies and Services - Transfer Payments,03/07/2013 00:00,563359,511.7,REVENUE,Redacted Personal Data,
Peterborough,http://opendatacommunities.org/id/unitary-authority/peterborough,Peterborough City Council,Children's & Education Services - Children's Social Care,Children Looked After,Supplies and Services - Transfer Payments,03/07/2013 00:00,563360,668.22,REVENUE,Redacted Personal Data,
Peterborough,http://opendatacommunities.org/id/unitary-authority/peterborough,Peterborough City Council,Children's & Education Services - Children's Social Care,Children Looked After,Supplies and Services - Transfer Payments,03/07/2013 00:00,563361,563.92,REVENUE,Redacted Personal Data,
Peterborough,http://opendatacommunities.org/id/unitary-authority/peterborough,Peterborough City Council,Children's & Education Services - Children's Social Care,Children Looked After,Supplies and Services - Transfer Payments,03/07/2013 00:00,563362,563.92,REVENUE,Redacted Personal Data,
Peterborough,http://opendatacommunities.org/id/unitary-authority/peterborough,Peterborough City Council,Children's & Education Services - Children's Social Care,Children Looked After,Supplies and Services - Transfer Payments,03/07/2013 00:00,563363,511.7,REVENUE,Redacted Personal Data,
Peterborough,http://opendatacommunities.org/id/unitary-authority/peterborough,Peterborough City Council,Children's & Education Services - Children's Social Care,Children Looked After,Supplies and Services - Transfer Payments,03/07/2013 00:00,563364,885.08,REVENUE,Redacted Personal Data,
Peterborough,http://opendatacommunities.org/id/unitary-authority/peterborough,Peterborough City Council,Children's & Education Services - Children's Social Care,Children Looked After,Supplies and Services - Transfer Payments,03/07/2013 00:00,563366,602.7,REVENUE,Redacted Personal Data,
Peterborough,http://opendatacommunities.org/id/unitary-authority/peterborough,Peterborough City Council,Children's & Education Services - Children's Social Care,Children Looked After,Supplies and Services - Transfer Payments,03/07/2013 00:00,563368,563.92,REVENUE,Redacted Personal Data,
Peterborough,http://opendatacommunities.org/id/unitary-authority/peterborough,Peterborough City Council,Children's & Education Services - Children's Social Care,Children Looked After,Supplies and Services - Transfer Payments,03/07/2013 00:00,563374,511.7,REVENUE,Redacted Personal Data,
Peterborough,http://opendatacommunities.org/id/unitary-authority/peterborough,Peterborough City Council,Children's & Education Services - Children's Social Care,Children Looked After,Supplies and Services - Transfer Payments,03/07/2013 00:00,563375,563.92,REVENUE,Redacted Personal Data,
Peterborough,http://opendatacommunities.org/id/unitary-authority/peterborough,Peterborough City Council,Children's & Education Services - Children's Social Care,Children Looked After,Supplies and Services - Transfer Payments,03/07/2013 00:00,563376,761.7,REVENUE,Redacted Personal Data,
Peterborough,http://opendatacommunities.org/id/unitary-authority/peterborough,Peterborough City Council,Children's & Education Services - Children's Social Care,Children's Services - Commissioning and Social Work,Supplies and Services,03/07/2013 00:00,563380,1148.22,REVENUE,Redacted Personal Data,
Peterborough,http://opendatacommunities.org/id/unitary-authority/peterborough,Peterborough City Council,Children's & Education Services - Children's Social Care,Children Looked After,Supplies and Services - Transfer Payments,03/07/2013 00:00,563391,885.08,REVENUE,Redacted Personal Data,
Peterborough,http://opendatacommunities.org/id/unitary-authority/peterborough,Peterborough City Council,Children's & Education Services - Children's Social Care,Children Looked After,Supplies and Services - Transfer Payments,03/07/2013 00:00,563396,602.7,REVENUE,Redacted Personal Data,
Peterborough,http://opendatacommunities.org/id/unitary-authority/peterborough,Peterborough City Council,Children's & Education Services - Children's Social Care,Children Looked After,Supplies and Services - Transfer Payments,03/07/2013 00:00,563404,602.7,REVENUE,Redacted Personal Data,
Peterborough,http://opendatacommunities.org/id/unitary-authority/peterborough,Peterborough City Council,Children's & Education Services - Children's Social Care,Children Looked After,Supplies and Services - Transfer Payments,03/07/2013 00:00,563405,563.92,REVENUE,Redacted Personal Data,
Peterborough,http://opendatacommunities.org/id/unitary-authority/peterborough,Peterborough City Council,Children's & Education Services - Children's Social Care,Children Looked After,Supplies and Services - Transfer Payments,03/07/2013 00:00,563417,885.08,REVENUE,Redacted Personal Data,
Peterborough,http://opendatacommunities.org/id/unitary-authority/peterborough,Peterborough City Council,Children's & Education Services - Children's Social Care,Children Looked After,Supplies and Services - Transfer Payments,03/07/2013 00:00,563423,563.92,REVENUE,Redacted Personal Data,
Peterborough,http://opendatacommunities.org/id/unitary-authority/peterborough,Peterborough City Council,Children's & Education Services - Children's Social Care,Children Looked After,Supplies and Services - Transfer Payments,03/07/2013 00:00,563428,563.92,REVENUE,Redacted Personal Data,
Peterborough,http://opendatacommunities.org/id/unitary-authority/peterborough,Peterborough City Council,Children's & Education Services - Children's Social Care,Children Looked After,Supplies and Services - Transfer Payments,03/07/2013 00:00,563433,511.7,REVENUE,Redacted Personal Data,
Peterborough,http://opendatacommunities.org/id/unitary-authority/peterborough,Peterborough City Council,Children's & Education Services - Children's Social Care,Children Looked After,Supplies and Services - Transfer Payments,03/07/2013 00:00,563434,511.7,REVENUE,Redacted Personal Data,
Peterborough,http://opendatacommunities.org/id/unitary-authority/peterborough,Peterborough City Council,Children's & Education Services - Children's Social Care,Children Looked After,Supplies and Services - Transfer Payments,03/07/2013 00:00,563437,602.7,REVENUE,Redacted Personal Data,
Peterborough,http://opendatacommunities.org/id/unitary-authority/peterborough,Peterborough City Council,Children's & Education Services - Children's Social Care,Children Looked After,Supplies and Services - Transfer Payments,03/07/2013 00:00,563448,563.92,REVENUE,Redacted Personal Data,
Peterborough,http://opendatacommunities.org/id/unitary-authority/peterborough,Peterborough City Council,Children's & Education Services - Children's Social Care,Children Looked After,Supplies and Services - Transfer Payments,03/07/2013 00:00,563456,511.7,REVENUE,Redacted Personal Data,
Peterborough,http://opendatacommunities.org/id/unitary-authority/peterborough,Peterborough City Council,Children's & Education Services - Children's Social Care,Children Looked After,Supplies and Services - Transfer Payments,03/07/2013 00:00,563460,885.08,REVENUE,Redacted Personal Data,
Peterborough,http://opendatacommunities.org/id/unitary-authority/peterborough,Peterborough City Council,Children's & Education Services - Children's Social Care,Children Looked After,Supplies and Services - Transfer Payments,03/07/2013 00:00,563463,563.92,REVENUE,Redacted Personal Data,
Peterborough,http://opendatacommunities.org/id/unitary-authority/peterborough,Peterborough City Council,Children's & Education Services - Children's Social Care,Children Looked After,Supplies and Services - Transfer Payments,03/07/2013 00:00,563464,563.92,REVENUE,Redacted Personal Data,
Peterborough,http://opendatacommunities.org/id/unitary-authority/peterborough,Peterborough City Council,Children's & Education Services - Children's Social Care,Children Looked After,Supplies and Services - Transfer Payments,03/07/2013 00:00,563465,511.7,REVENUE,Redacted Personal Data,
Peterborough,http://opendatacommunities.org/id/unitary-authority/peterborough,Peterborough City Council,Children's & Education Services - Children's Social Care,Children Looked After,Supplies and Services - Transfer Payments,03/07/2013 00:00,563466,511.7,REVENUE,Redacted Personal Data,
Peterborough,http://opendatacommunities.org/id/unitary-authority/peterborough,Peterborough City Council,Children's & Education Services - Children's Social Care,Children Looked After,Supplies and Services - Transfer Payments,03/07/2013 00:00,563467,511.7,REVENUE,Redacted Personal Data,
Peterborough,http://opendatacommunities.org/id/unitary-authority/peterborough,Peterborough City Council,Children's & Education Services - Children's Social Care,Children Looked After,Supplies and Services - Transfer Payments,03/07/2013 00:00,563477,602.7,REVENUE,Redacted Personal Data,
Peterborough,http://opendatacommunities.org/id/unitary-authority/peterborough,Peterborough City Council,Children's & Education Services - Children's Social Care,Children Looked After,Supplies and Services - Transfer Payments,03/07/2013 00:00,563478,511.7,REVENUE,Redacted Personal Data,
Peterborough,http://opendatacommunities.org/id/unitary-authority/peterborough,Peterborough City Council,Children's & Education Services - Children's Social Care,Children Looked After,Supplies and Services - Transfer Payments,03/07/2013 00:00,563480,602.7,REVENUE,Redacted Personal Data,
Peterborough,http://opendatacommunities.org/id/unitary-authority/peterborough,Peterborough City Council,Children's & Education Services - Children's Social Care,Children Looked After,Supplies and Services - Transfer Payments,03/07/2013 00:00,563481,839.37,REVENUE,Redacted Personal Data,
Peterborough,http://opendatacommunities.org/id/unitary-authority/peterborough,Peterborough City Council,Children's & Education Services - Children's Social Care,Children Looked After,Supplies and Services - Transfer Payments,03/07/2013 00:00,563486,563.92,REVENUE,Redacted Personal Data,
Peterborough,http://opendatacommunities.org/id/unitary-authority/peterborough,Peterborough City Council,Children's & Education Services - Children's Social Care,Children Looked After,Supplies and Services - Transfer Payments,03/07/2013 00:00,563487,511.7,REVENUE,Redacted Personal Data,
Peterborough,http://opendatacommunities.org/id/unitary-authority/peterborough,Peterborough City Council,Children's & Education Services - Children's Social Care,Children Looked After,Supplies and Services - Transfer Payments,03/07/2013 00:00,563501,602.7,REVENUE,Redacted Personal Data,
Peterborough,http://opendatacommunities.org/id/unitary-authority/peterborough,Peterborough City Council,Children's & Education Services - Children's Social Care,Children Looked After,Supplies and Services - Transfer Payments,03/07/2013 00:00,563509,563.92,REVENUE,Redacted Personal Data,
Peterborough,http://opendatacommunities.org/id/unitary-authority/peterborough,Peterborough City Council,Children's & Education Services - Children's Social Care,Children Looked After,Supplies and Services - Transfer Payments,03/07/2013 00:00,563510,563.92,REVENUE,Redacted Personal Data,
Peterborough,http://opendatacommunities.org/id/unitary-authority/peterborough,Peterborough City Council,Children's & Education Services - Children's Social Care,Children Looked After,Supplies and Services - Transfer Payments,03/07/2013 00:00,563511,826,REVENUE,Redacted Personal Data,
Peterborough,http://opendatacommunities.org/id/unitary-authority/peterborough,Peterborough City Council,Children's & Education Services - Children's Social Care,Children Looked After,Supplies and Services - Transfer Payments,03/07/2013 00:00,563512,885.08,REVENUE,Redacted Personal Data,
Peterborough,http://opendatacommunities.org/id/unitary-authority/peterborough,Peterborough City Council,Children's & Education Services - Children's Social Care,Children Looked After,Supplies and Services - Transfer Payments,03/07/2013 00:00,563514,563.92,REVENUE,Redacted Personal Data,
Peterborough,http://opendatacommunities.org/id/unitary-authority/peterborough,Peterborough City Council,Children's & Education Services - Children's Social Care,Children Looked After,Supplies and Services - Transfer Payments,03/07/2013 00:00,563516,602.7,REVENUE,Redacted Personal Data,
Peterborough,http://opendatacommunities.org/id/unitary-authority/peterborough,Peterborough City Council,Children's & Education Services - Children's Social Care,Children Looked After,Supplies and Services - Transfer Payments,03/07/2013 00:00,563528,602.7,REVENUE,Redacted Personal Data,
Peterborough,http://opendatacommunities.org/id/unitary-authority/peterborough,Peterborough City Council,Children's & Education Services - Children's Social Care,Children Looked After,Supplies and Services - Transfer Payments,03/07/2013 00:00,563534,602.7,REVENUE,Redacted Personal Data,
Peterborough,http://opendatacommunities.org/id/unitary-authority/peterborough,Peterborough City Council,Children's & Education Services - Children's Social Care,Children Looked After,Supplies and Services - Transfer Payments,03/07/2013 00:00,563535,563.92,REVENUE,Redacted Personal Data,
Peterborough,http://opendatacommunities.org/id/unitary-authority/peterborough,Peterborough City Council,Children's & Education Services - Children's Social Care,Children's Services - Commissioning and Social Work,Supplies and Services,03/07/2013 00:00,563536,782.64,REVENUE,Redacted Personal Data,
Peterborough,http://opendatacommunities.org/id/unitary-authority/peterborough,Peterborough City Council,Children's & Education Services - Children's Social Care,Children Looked After,Supplies and Services - Transfer Payments,03/07/2013 00:00,563552,563.92,REVENUE,Redacted Personal Data,
Peterborough,http://opendatacommunities.org/id/unitary-authority/peterborough,Peterborough City Council,Children's & Education Services - Children's Social Care,Children Looked After,Supplies and Services - Transfer Payments,03/07/2013 00:00,563561,1414.98,REVENUE,Redacted Personal Data,
Peterborough,http://opendatacommunities.org/id/unitary-authority/peterborough,Peterborough City Council,Children's & Education Services - Children's Social Care,Children Looked After,Supplies and Services - Transfer Payments,03/07/2013 00:00,563570,602.7,REVENUE,Redacted Personal Data,
Peterborough,http://opendatacommunities.org/id/unitary-authority/peterborough,Peterborough City Council,Children's & Education Services - Children's Social Care,Children Looked After,Supplies and Services - Transfer Payments,03/07/2013 00:00,563582,602.7,REVENUE,Redacted Personal Data,
Peterborough,http://opendatacommunities.org/id/unitary-authority/peterborough,Peterborough City Council,Children's & Education Services - Children's Social Care,Children Looked After,Supplies and Services - Transfer Payments,03/07/2013 00:00,563583,511.7,REVENUE,Redacted Personal Data,
Peterborough,http://opendatacommunities.org/id/unitary-authority/peterborough,Peterborough City Council,Children's & Education Services - Children's Social Care,Children Looked After,Supplies and Services - Transfer Payments,03/07/2013 00:00,563591,814.98,REVENUE,Redacted Personal Data,
Peterborough,http://opendatacommunities.org/id/unitary-authority/peterborough,Peterborough City Council,Children's & Education Services - Children's Social Care,Children Looked After,Supplies and Services - Transfer Payments,03/07/2013 00:00,563593,563.92,REVENUE,Redacted Personal Data,
Peterborough,http://opendatacommunities.org/id/unitary-authority/peterborough,Peterborough City Council,Children's & Education Services - Children's Social Care,Children Looked After,Supplies and Services - Transfer Payments,03/07/2013 00:00,563603,602.7,REVENUE,Redacted Personal Data,
Peterborough,http://opendatacommunities.org/id/unitary-authority/peterborough,Peterborough City Council,Children's & Education Services - Children's Social Care,Children Looked After,Supplies and Services - Transfer Payments,03/07/2013 00:00,563606,602.7,REVENUE,Redacted Personal Data,
Peterborough,http://opendatacommunities.org/id/unitary-authority/peterborough,Peterborough City Council,Children's & Education Services - Children's Social Care,Children Looked After,Supplies and Services - Transfer Payments,03/07/2013 00:00,563608,602.7,REVENUE,Redacted Personal Data,
Peterborough,http://opendatacommunities.org/id/unitary-authority/peterborough,Peterborough City Council,Children's & Education Services - Children's Social Care,Other Children's & Families Services,Supplies and Services - Transfer Payments,03/07/2013 00:00,563617,1212.31,REVENUE,Redacted Personal Data,
Peterborough,http://opendatacommunities.org/id/unitary-authority/peterborough,Peterborough City Council,Children's & Education Services - Children's Social Care,Children Looked After,Supplies and Services - Transfer Payments,03/07/2013 00:00,563621,665.04,REVENUE,Redacted Personal Data,
Peterborough,http://opendatacommunities.org/id/unitary-authority/peterborough,Peterborough City Council,Children's & Education Services - Children's Social Care,Children Looked After,Supplies and Services - Transfer Payments,03/07/2013 00:00,563622,970.04,REVENUE,Redacted Personal Data,
Peterborough,http://opendatacommunities.org/id/unitary-authority/peterborough,Peterborough City Council,Children's & Education Services - Children's Social Care,Children Looked After,Supplies and Services - Transfer Payments,03/07/2013 00:00,563623,970.04,REVENUE,Redacted Personal Data,
Peterborough,http://opendatacommunities.org/id/unitary-authority/peterborough,Peterborough City Council,Children's & Education Services - Children's Social Care,Children Looked After,Supplies and Services - Transfer Payments,03/07/2013 00:00,563637,1136.22,REVENUE,Redacted Personal Data,
Peterborough,http://opendatacommunities.org/id/unitary-authority/peterborough,Peterborough City Council,Children's & Education Services - Children's Social Care,Children Looked After,Supplies and Services - Transfer Payments,03/07/2013 00:00,563640,948.3,REVENUE,Redacted Personal Data,
Peterborough,http://opendatacommunities.org/id/unitary-authority/peterborough,Peterborough City Council,Children's & Education Services - Children's Social Care,Children's Services - Commissioning and Social Work,Supplies and Services,03/07/2013 00:00,563645,1284.65,REVENUE,Redacted Personal Data,
Peterborough,http://opendatacommunities.org/id/unitary-authority/peterborough,Peterborough City Council,Children's & Education Services - Education,Secondary,Employees,03/07/2013 00:00,563685,6421.16,REVENUE,Vision for Education Ltd,
Peterborough,http://opendatacommunities.org/id/unitary-authority/peterborough,Peterborough City Council,Housing Services,Homelessness,Supplies and Services,03/07/2013 00:00,563690,800,REVENUE,Capitol Lettors,
Peterborough,http://opendatacommunities.org/id/unitary-authority/peterborough,Peterborough City Council,Deficit/(Surplus) on Trading Undertakings,Trading Account Surpluses & Deficits,Supplies and Services,03/07/2013 00:00,563714,563.9,REVENUE,HSS Hire Service Group Plc,
Peterborough,http://opendatacommunities.org/id/unitary-authority/peterborough,Peterborough City Council,Adult Social Care,Adult Learning Disabilities,Supplies and Services,03/07/2013 00:00,563794,3203.36,REVENUE,P'Boro Council For Voluntary Srvs (PCVS),
Peterborough,http://opendatacommunities.org/id/unitary-authority/peterborough,Peterborough City Council,Adult Social Care,Adult Learning Disabilities,Supplies and Services,03/07/2013 00:00,563834,3203.36,REVENUE,P'Boro Council For Voluntary Srvs (PCVS),
Peterborough,http://opendatacommunities.org/id/unitary-authority/peterborough,Peterborough City Council,Adult Social Care,Adult Learning Disabilities,Supplies and Services,03/07/2013 00:00,563838,1484.8,REVENUE,HEREWARD CARE SERVICES LIMITED,
Peterborough,http://opendatacommunities.org/id/unitary-authority/peterborough,Peterborough City Council,Adult Social Care,Adult Learning Disabilities,Supplies and Services,03/07/2013 00:00,563839,1196.08,REVENUE,HEREWARD CARE SERVICES LIMITED,
Peterborough,http://opendatacommunities.org/id/unitary-authority/peterborough,Peterborough City Council,Adult Social Care,Adult Learning Disabilities,Supplies and Services,03/07/2013 00:00,563840,2727.64,REVENUE,HEREWARD CARE SERVICES LIMITED,
Peterborough,http://opendatacommunities.org/id/unitary-authority/peterborough,Peterborough City Council,Adult Social Care,Adult Learning Disabilities,Supplies and Services,03/07/2013 00:00,563841,2119.76,REVENUE,HEREWARD CARE SERVICES LIMITED,
Peterborough,http://opendatacommunities.org/id/unitary-authority/peterborough,Peterborough City Council,Adult Social Care,Adult Learning Disabilities,Supplies and Services,03/07/2013 00:00,563842,1181.44,REVENUE,HEREWARD CARE SERVICES LIMITED,
Peterborough,http://opendatacommunities.org/id/unitary-authority/peterborough,Peterborough City Council,Adult Social Care,Adult Learning Disabilities,Supplies and Services,03/07/2013 00:00,563843,508.12,REVENUE,HEREWARD CARE SERVICES LIMITED,
Peterborough,http://opendatacommunities.org/id/unitary-authority/peterborough,Peterborough City Council,Adult Social Care,Adult Learning Disabilities,Supplies and Services,03/07/2013 00:00,563844,1877.8,REVENUE,HEREWARD CARE SERVICES LIMITED,
Peterborough,http://opendatacommunities.org/id/unitary-authority/peterborough,Peterborough City Council,Adult Social Care,Adult Learning Disabilities,Supplies and Services,03/07/2013 00:00,563846,1443.12,REVENUE,HEREWARD CARE SERVICES LIMITED,
Peterborough,http://opendatacommunities.org/id/unitary-authority/peterborough,Peterborough City Council,Adult Social Care,Adult Learning Disabilities,Supplies and Services,03/07/2013 00:00,563847,1272.32,REVENUE,HEREWARD CARE SERVICES LIMITED,
Peterborough,http://opendatacommunities.org/id/unitary-authority/peterborough,Peterborough City Council,Adult Social Care,Adult Learning Disabilities,Supplies and Services,03/07/2013 00:00,563848,1801.96,REVENUE,HEREWARD CARE SERVICES LIMITED,
Peterborough,http://opendatacommunities.org/id/unitary-authority/peterborough,Peterborough City Council,Capital,Capital,Capital Pending Update to BS,03/07/2013 00:00,563849,281793.8,CAPITAL,Viridor Peterborough Ltd,
Peterborough,http://opendatacommunities.org/id/unitary-authority/peterborough,Peterborough City Council,Adult Social Care,Adult Learning Disabilities,Supplies and Services,03/07/2013 00:00,563850,3187.48,REVENUE,HEREWARD CARE SERVICES LIMITED,
Peterborough,http://opendatacommunities.org/id/unitary-authority/peterborough,Peterborough City Council,Adult Social Care,Adult Learning Disabilities,Supplies and Services,03/07/2013 00:00,563851,1272,REVENUE,HEREWARD CARE SERVICES LIMITED,
Peterborough,http://opendatacommunities.org/id/unitary-authority/peterborough,Peterborough City Council,Adult Social Care,Adult Learning Disabilities,Supplies and Services,03/07/2013 00:00,563852,1386.8,REVENUE,HEREWARD CARE SERVICES LIMITED,
Peterborough,http://opendatacommunities.org/id/unitary-authority/peterborough,Peterborough City Council,Adult Social Care,Adult Learning Disabilities,Supplies and Services,03/07/2013 00:00,563853,1835.2,REVENUE,HEREWARD CARE SERVICES LIMITED,
Peterborough,http://opendatacommunities.org/id/unitary-authority/peterborough,Peterborough City Council,More than one Service Area Category,More than one Service Division,Balance Sheet,03/07/2013 00:00,563865,791210.15,Balance Sheet,Teachers Pensions,
Peterborough,http://opendatacommunities.org/id/unitary-authority/peterborough,Peterborough City Council,More than one Service Area Category,More than one Service Division,Premises,03/07/2013 00:00,563888,2933.66,REVENUE,Anglian Water,
Peterborough,http://opendatacommunities.org/id/unitary-authority/peterborough,Peterborough City Council,More than one Service Area Category,More than one Service Division,Premises,03/07/2013 00:00,563889,1156.64,REVENUE,Anglian Water,
Peterborough,http://opendatacommunities.org/id/unitary-authority/peterborough,Peterborough City Council,Children's & Education Services - Children's Social Care,Family Support Services,Supplies and Services - Transfer Payments,03/07/2013 00:00,563955,1019.5,REVENUE,Cherry Lodge,
Peterborough,http://opendatacommunities.org/id/unitary-authority/peterborough,Peterborough City Council,Adult Social Care,Older People,More than one Expenses Type,03/07/2013 00:00,563979,2976.75,REVENUE,Fieldwork Admin Team (IMPREST),
Peterborough,http://opendatacommunities.org/id/unitary-authority/peterborough,Peterborough City Council,More than one Service Area Category,More than one Service Division,More than one Expenses Type,03/07/2013 00:00,564068,649.89,REVENUE,Peterborough City Council,
Peterborough,http://opendatacommunities.org/id/unitary-authority/peterborough,Peterborough City Council,Adult Social Care,Older People,Supplies and Services,05/07/2013 00:00,548015,1339.8,REVENUE,ALLIED STAFFING PROFESSIONAL LTD,
Peterborough,http://opendatacommunities.org/id/unitary-authority/peterborough,Peterborough City Council,Adult Social Care,Older People,Supplies and Services,05/07/2013 00:00,548124,1477.62,REVENUE,ALLIED STAFFING PROFESSIONAL LTD,
Peterborough,http://opendatacommunities.org/id/unitary-authority/peterborough,Peterborough City Council,Planning Services,Building Control,Supplies and Services,05/07/2013 00:00,551046,1974,REVENUE,Hawk Audio Visual,
Peterborough,http://opendatacommunities.org/id/unitary-authority/peterborough,Peterborough City Council,Highways and Transport Services,Structural Maintenance,Transport,05/07/2013 00:00,552118,1347.68,REVENUE,Atkins Limited,
Peterborough,http://opendatacommunities.org/id/unitary-authority/peterborough,Peterborough City Council,Children's & Education Services - Children's Social Care,Children Looked After,Supplies and Services - Transfer Payments,05/07/2013 00:00,553363,3556.01,REVENUE,Core Assets Fostering Ltd,
Peterborough,http://opendatacommunities.org/id/unitary-authority/peterborough,Peterborough City Council,Children's & Education Services - Children's Social Care,Children Looked After,Employees,05/07/2013 00:00,554657,552.22,REVENUE,Reed Specialist Recruitment,
Peterborough,http://opendatacommunities.org/id/unitary-authority/peterborough,Peterborough City Council,Highways and Transport Services,"Transport planning, policy and strategy",Transport,05/07/2013 00:00,555150,531.52,REVENUE,Atkins Limited,
Peterborough,http://opendatacommunities.org/id/unitary-authority/peterborough,Peterborough City Council,Children's & Education Services - Children's Social Care,Children Looked After,Supplies and Services - Transfer Payments,05/07/2013 00:00,556379,2876.34,REVENUE,Carefirst Services Limited,
Peterborough,http://opendatacommunities.org/id/unitary-authority/peterborough,Peterborough City Council,Capital,Capital,Capital Pending Update to BS,05/07/2013 00:00,558307,3390.14,CAPITAL,Atkins Limited,
Peterborough,http://opendatacommunities.org/id/unitary-authority/peterborough,Peterborough City Council,Capital,Capital,Capital Pending Update to BS,05/07/2013 00:00,558321,2443.78,CAPITAL,Atkins Limited,
Peterborough,http://opendatacommunities.org/id/unitary-authority/peterborough,Peterborough City Council,Capital,Capital,Capital Pending Update to BS,05/07/2013 00:00,558331,7516.48,CAPITAL,Atkins Limited,
Peterborough,http://opendatacommunities.org/id/unitary-authority/peterborough,Peterborough City Council,Capital,Capital,Capital Pending Update to BS,05/07/2013 00:00,558332,3623.18,CAPITAL,Atkins Limited,
Peterborough,http://opendatacommunities.org/id/unitary-authority/peterborough,Peterborough City Council,Highways and Transport Services,Structural Maintenance,Transport,05/07/2013 00:00,559254,1006.46,REVENUE,Atkins Limited,
Peterborough,http://opendatacommunities.org/id/unitary-authority/peterborough,Peterborough City Council,Highways and Transport Services,"Transport planning, policy and strategy",Transport,05/07/2013 00:00,559256,1224.58,REVENUE,Atkins Limited,
Peterborough,http://opendatacommunities.org/id/unitary-authority/peterborough,Peterborough City Council,Highways and Transport Services,Structural Maintenance,Transport,05/07/2013 00:00,559261,1329.49,REVENUE,Atkins Limited,
Peterborough,http://opendatacommunities.org/id/unitary-authority/peterborough,Peterborough City Council,Highways and Transport Services,"Transport planning, policy and strategy",Transport,05/07/2013 00:00,559263,6783.1,REVENUE,Atkins Limited,
Peterborough,http://opendatacommunities.org/id/unitary-authority/peterborough,Peterborough City Council,Capital,Capital,Capital Pending Update to BS,05/07/2013 00:00,559265,12343.93,CAPITAL,Atkins Limited,
Peterborough,http://opendatacommunities.org/id/unitary-authority/peterborough,Peterborough City Council,Capital,Capital,Capital Pending Update to BS,05/07/2013 00:00,559267,5048.03,CAPITAL,Atkins Limited,
Peterborough,http://opendatacommunities.org/id/unitary-authority/peterborough,Peterborough City Council,Capital,Capital,Capital Pending Update to BS,05/07/2013 00:00,559271,6414.1,CAPITAL,Atkins Limited,
Peterborough,http://opendatacommunities.org/id/unitary-authority/peterborough,Peterborough City Council,Highways and Transport Services,"Transport planning, policy and strategy",Transport,05/07/2013 00:00,559272,644.93,REVENUE,Atkins Limited,
Peterborough,http://opendatacommunities.org/id/unitary-authority/peterborough,Peterborough City Council,Highways and Transport Services,"Transport planning, policy and strategy",Transport,05/07/2013 00:00,559274,5659.56,REVENUE,Atkins Limited,
Peterborough,http://opendatacommunities.org/id/unitary-authority/peterborough,Peterborough City Council,Highways and Transport Services,"Transport planning, policy and strategy",Transport,05/07/2013 00:00,559281,817.58,REVENUE,Atkins Limited,
Peterborough,http://opendatacommunities.org/id/unitary-authority/peterborough,Peterborough City Council,Highways and Transport Services,"Transport planning, policy and strategy",Transport,05/07/2013 00:00,559287,1928.72,REVENUE,Atkins Limited,
Peterborough,http://opendatacommunities.org/id/unitary-authority/peterborough,Peterborough City Council,Capital,Capital,Capital Pending Update to BS,05/07/2013 00:00,559301,4081.12,CAPITAL,Atkins Limited,
Peterborough,http://opendatacommunities.org/id/unitary-authority/peterborough,Peterborough City Council,Support Services,Support Services,Premises,05/07/2013 00:00,559423,612.52,REVENUE,Capita Symonds Ltd,
Peterborough,http://opendatacommunities.org/id/unitary-authority/peterborough,Peterborough City Council,Support Services,Support Services,Premises,05/07/2013 00:00,559424,686.5,REVENUE,Capita Symonds Ltd,
Peterborough,http://opendatacommunities.org/id/unitary-authority/peterborough,Peterborough City Council,Support Services,Support Services,Premises,05/07/2013 00:00,559426,664.4,REVENUE,Capita Symonds Ltd,
Peterborough,http://opendatacommunities.org/id/unitary-authority/peterborough,Peterborough City Council,Planning Services,Community Development,Third Party Payments,05/07/2013 00:00,559436,21000,REVENUE,Dial Peterborough,
Peterborough,http://opendatacommunities.org/id/unitary-authority/peterborough,Peterborough City Council,Children's & Education Services - Children's Social Care,Children Looked After,Employees,05/07/2013 00:00,560305,562.86,REVENUE,Blue Arrow Ltd,
Peterborough,http://opendatacommunities.org/id/unitary-authority/peterborough,Peterborough City Council,Planning Services,Economic Development,Employees,05/07/2013 00:00,561182,1550.95,REVENUE,The Synergy Group,
Peterborough,http://opendatacommunities.org/id/unitary-authority/peterborough,Peterborough City Council,Support Services,Support Services,Premises,05/07/2013 00:00,561903,28087.5,REVENUE,Capita Symonds Ltd,
Peterborough,http://opendatacommunities.org/id/unitary-authority/peterborough,Peterborough City Council,More than one Service Area Category,More than one Service Division,Premises,05/07/2013 00:00,562460,1168.55,REVENUE,British Gas Business,
Peterborough,http://opendatacommunities.org/id/unitary-authority/peterborough,Peterborough City Council,More than one Service Area Category,More than one Service Division,Premises,05/07/2013 00:00,562467,5444.89,REVENUE,British Gas Business,
Peterborough,http://opendatacommunities.org/id/unitary-authority/peterborough,Peterborough City Council,More than one Service Area Category,More than one Service Division,Premises,05/07/2013 00:00,562468,2111.55,REVENUE,British Gas Business,
Peterborough,http://opendatacommunities.org/id/unitary-authority/peterborough,Peterborough City Council,Children's & Education Services - Children's Social Care,Other Children's & Families Services,Supplies and Services,05/07/2013 00:00,562743,540,REVENUE,"Hunt, Miss Alison",
Peterborough,http://opendatacommunities.org/id/unitary-authority/peterborough,Peterborough City Council,Adult Social Care,More than one Service Division,More than one Expenses Type,05/07/2013 00:00,562878,7705.42,REVENUE,Housing 21,
Peterborough,http://opendatacommunities.org/id/unitary-authority/peterborough,Peterborough City Council,Adult Social Care,More than one Service Division,More than one Expenses Type,05/07/2013 00:00,562885,27773.42,REVENUE,Housing 21,
Peterborough,http://opendatacommunities.org/id/unitary-authority/peterborough,Peterborough City Council,Planning Services,Economic Development,Third Party Payments,05/07/2013 00:00,563192,30000,REVENUE,P'Boro Council For Voluntary Srvs (PCVS),
Peterborough,http://opendatacommunities.org/id/unitary-authority/peterborough,Peterborough City Council,Planning Services,Economic Development,Third Party Payments,05/07/2013 00:00,563194,15000,REVENUE,P'Boro Council For Voluntary Srvs (PCVS),
Peterborough,http://opendatacommunities.org/id/unitary-authority/peterborough,Peterborough City Council,Adult Social Care,Support Services & Management Costs,Transport,05/07/2013 00:00,563699,575.62,REVENUE,Allstar Business Solutions Ltd,
Peterborough,http://opendatacommunities.org/id/unitary-authority/peterborough,Peterborough City Council,Adult Social Care,Support Services & Management Costs,Transport,05/07/2013 00:00,563715,1680.07,REVENUE,Allstar Business Solutions Ltd,
Peterborough,http://opendatacommunities.org/id/unitary-authority/peterborough,Peterborough City Council,Adult Social Care,Adult Learning Disabilities,Supplies and Services,05/07/2013 00:00,563890,1025.24,REVENUE,HEREWARD CARE SERVICES LIMITED,
Peterborough,http://opendatacommunities.org/id/unitary-authority/peterborough,Peterborough City Council,Adult Social Care,Adult Learning Disabilities,Supplies and Services,05/07/2013 00:00,563891,3524.92,REVENUE,HEREWARD CARE SERVICES LIMITED,
Peterborough,http://opendatacommunities.org/id/unitary-authority/peterborough,Peterborough City Council,Adult Social Care,Adult Learning Disabilities,Supplies and Services,05/07/2013 00:00,563892,2487.08,REVENUE,HEREWARD CARE SERVICES LIMITED,
Peterborough,http://opendatacommunities.org/id/unitary-authority/peterborough,Peterborough City Council,Adult Social Care,Adult Learning Disabilities,Supplies and Services,05/07/2013 00:00,563894,1196.64,REVENUE,HEREWARD CARE SERVICES LIMITED,
Peterborough,http://opendatacommunities.org/id/unitary-authority/peterborough,Peterborough City Council,Adult Social Care,Adult Learning Disabilities,Supplies and Services,05/07/2013 00:00,563896,2290.56,REVENUE,HEREWARD CARE SERVICES LIMITED,
Peterborough,http://opendatacommunities.org/id/unitary-authority/peterborough,Peterborough City Council,Adult Social Care,Adult Learning Disabilities,Supplies and Services,05/07/2013 00:00,563900,1589.72,REVENUE,HEREWARD CARE SERVICES LIMITED,
Peterborough,http://opendatacommunities.org/id/unitary-authority/peterborough,Peterborough City Council,Children's & Education Services - Education,Other School -related Education Functions,Supplies and Services,05/07/2013 00:00,563901,500,REVENUE,Cromwell Community College,
Peterborough,http://opendatacommunities.org/id/unitary-authority/peterborough,Peterborough City Council,Adult Social Care,Adult Learning Disabilities,Supplies and Services,05/07/2013 00:00,563906,6458.6,REVENUE,HEREWARD CARE SERVICES LIMITED,
Peterborough,http://opendatacommunities.org/id/unitary-authority/peterborough,Peterborough City Council,Adult Social Care,Adult Learning Disabilities,Supplies and Services,05/07/2013 00:00,563909,5634.52,REVENUE,HEREWARD CARE SERVICES LIMITED,
Peterborough,http://opendatacommunities.org/id/unitary-authority/peterborough,Peterborough City Council,Adult Social Care,Adult Learning Disabilities,Supplies and Services,05/07/2013 00:00,563910,1548.32,REVENUE,HEREWARD CARE SERVICES LIMITED,
Peterborough,http://opendatacommunities.org/id/unitary-authority/peterborough,Peterborough City Council,Adult Social Care,Adult Learning Disabilities,Supplies and Services,05/07/2013 00:00,563912,1050.8,REVENUE,HEREWARD CARE SERVICES LIMITED,
Peterborough,http://opendatacommunities.org/id/unitary-authority/peterborough,Peterborough City Council,Adult Social Care,Adult Learning Disabilities,Supplies and Services,05/07/2013 00:00,563914,1625,REVENUE,HEREWARD CARE SERVICES LIMITED,
Peterborough,http://opendatacommunities.org/id/unitary-authority/peterborough,Peterborough City Council,Adult Social Care,Adult Learning Disabilities,Supplies and Services,05/07/2013 00:00,563918,2498,REVENUE,HEREWARD CARE SERVICES LIMITED,
Peterborough,http://opendatacommunities.org/id/unitary-authority/peterborough,Peterborough City Council,Adult Social Care,Adult Learning Disabilities,Supplies and Services,05/07/2013 00:00,563921,956.2,REVENUE,HEREWARD CARE SERVICES LIMITED,
Peterborough,http://opendatacommunities.org/id/unitary-authority/peterborough,Peterborough City Council,Adult Social Care,Adult Learning Disabilities,Supplies and Services,05/07/2013 00:00,563924,8515.72,REVENUE,HEREWARD CARE SERVICES LIMITED,
Peterborough,http://opendatacommunities.org/id/unitary-authority/peterborough,Peterborough City Council,Adult Social Care,Adult Learning Disabilities,Supplies and Services,05/07/2013 00:00,563925,2447.28,REVENUE,HEREWARD CARE SERVICES LIMITED,
Peterborough,http://opendatacommunities.org/id/unitary-authority/peterborough,Peterborough City Council,Adult Social Care,Adult Learning Disabilities,Supplies and Services,05/07/2013 00:00,563927,1273.04,REVENUE,HEREWARD CARE SERVICES LIMITED,
Peterborough,http://opendatacommunities.org/id/unitary-authority/peterborough,Peterborough City Council,Adult Social Care,Adult Learning Disabilities,Supplies and Services,05/07/2013 00:00,563928,1443.12,REVENUE,HEREWARD CARE SERVICES LIMITED,
Peterborough,http://opendatacommunities.org/id/unitary-authority/peterborough,Peterborough City Council,Adult Social Care,Adult Learning Disabilities,Supplies and Services,05/07/2013 00:00,563933,1446.84,REVENUE,HEREWARD CARE SERVICES LIMITED,
Peterborough,http://opendatacommunities.org/id/unitary-authority/peterborough,Peterborough City Council,Adult Social Care,Adult Learning Disabilities,Supplies and Services,05/07/2013 00:00,563939,2292.8,REVENUE,HEREWARD CARE SERVICES LIMITED,
Peterborough,http://opendatacommunities.org/id/unitary-authority/peterborough,Peterborough City Council,Adult Social Care,Adult Learning Disabilities,Supplies and Services,05/07/2013 00:00,563941,1809.44,REVENUE,HEREWARD CARE SERVICES LIMITED,
Peterborough,http://opendatacommunities.org/id/unitary-authority/peterborough,Peterborough City Council,Adult Social Care,Adult Mental Health,Supplies and Services,05/07/2013 00:00,563977,504.36,REVENUE,Sagecare,
Peterborough,http://opendatacommunities.org/id/unitary-authority/peterborough,Peterborough City Council,Adult Social Care,Older People,Supplies and Services,05/07/2013 00:00,564037,1487.6,REVENUE,Sagecare,
Peterborough,http://opendatacommunities.org/id/unitary-authority/peterborough,Peterborough City Council,Adult Social Care,Older People,Supplies and Services,05/07/2013 00:00,564038,629.9,REVENUE,Sagecare,
Peterborough,http://opendatacommunities.org/id/unitary-authority/peterborough,Peterborough City Council,Adult Social Care,Older People,Supplies and Services,05/07/2013 00:00,564039,744.82,REVENUE,Sagecare,
Peterborough,http://opendatacommunities.org/id/unitary-authority/peterborough,Peterborough City Council,Adult Social Care,Adult Learning Disabilities,Supplies and Services,05/07/2013 00:00,564042,560.87,REVENUE,Sagecare,
Peterborough,http://opendatacommunities.org/id/unitary-authority/peterborough,Peterborough City Council,Adult Social Care,Older People,Supplies and Services,05/07/2013 00:00,564044,1362.62,REVENUE,Sagecare,
Peterborough,http://opendatacommunities.org/id/unitary-authority/peterborough,Peterborough City Council,Children's & Education Services - Education,Early Years,Supplies and Services,05/07/2013 00:00,564191,624,REVENUE,Jenny's Pre School Playgroup,
Peterborough,http://opendatacommunities.org/id/unitary-authority/peterborough,Peterborough City Council,Adult Social Care,Older People,Supplies and Services,05/07/2013 00:00,564246,622.39,REVENUE,Sagecare,
Peterborough,http://opendatacommunities.org/id/unitary-authority/peterborough,Peterborough City Council,Adult Social Care,Older People,Supplies and Services,05/07/2013 00:00,564257,1577.07,REVENUE,Sagecare,
Peterborough,http://opendatacommunities.org/id/unitary-authority/peterborough,Peterborough City Council,Adult Social Care,Older People,Supplies and Services,05/07/2013 00:00,564267,575.57,REVENUE,Sagecare,
Peterborough,http://opendatacommunities.org/id/unitary-authority/peterborough,Peterborough City Council,More than one Service Area Category,More than one Service Division,Third Party Payments,05/07/2013 00:00,564294,29287,REVENUE,Age Concern Peterborough.,
Peterborough,http://opendatacommunities.org/id/unitary-authority/peterborough,Peterborough City Council,Children's & Education Services - Children's Social Care,Children Looked After,Transport,05/07/2013 00:00,564299,918,REVENUE,Redacted Personal Data,
Peterborough,http://opendatacommunities.org/id/unitary-authority/peterborough,Peterborough City Council,More than one Service Area Category,More than one Service Division,More than one Expenses Type,05/07/2013 00:00,564300,1697.95,REVENUE,Redacted Personal Data,
Peterborough,http://opendatacommunities.org/id/unitary-authority/peterborough,Peterborough City Council,Children's & Education Services - Children's Social Care,Children Looked After,Transport,05/07/2013 00:00,564301,2032.2,REVENUE,Redacted Personal Data,
Peterborough,http://opendatacommunities.org/id/unitary-authority/peterborough,Peterborough City Council,Children's & Education Services - Children's Social Care,Children Looked After,Transport,05/07/2013 00:00,564302,1470.15,REVENUE,Redacted Personal Data,
Peterborough,http://opendatacommunities.org/id/unitary-authority/peterborough,Peterborough City Council,Children's & Education Services - Children's Social Care,Children Looked After,Transport,05/07/2013 00:00,564303,2389.8,REVENUE,Redacted Personal Data,
Peterborough,http://opendatacommunities.org/id/unitary-authority/peterborough,Peterborough City Council,Adult Social Care,Older People,Supplies and Services,05/07/2013 00:00,564306,1049.93,REVENUE,BROADLEIGH NURSING HOME,
Peterborough,http://opendatacommunities.org/id/unitary-authority/peterborough,Peterborough City Council,Adult Social Care,Older People,Supplies and Services,05/07/2013 00:00,564308,948.32,REVENUE,BROADLEIGH NURSING HOME,
Peterborough,http://opendatacommunities.org/id/unitary-authority/peterborough,Peterborough City Council,Children's & Education Services - Education,Other School -related Education Functions,Employees,05/07/2013 00:00,564310,27724.2,REVENUE,Teachers Pensions,
Peterborough,http://opendatacommunities.org/id/unitary-authority/peterborough,Peterborough City Council,Children's & Education Services - Children's Social Care,Children's Services - Commissioning and Social Work,Supplies and Services,05/07/2013 00:00,564329,2316.9,REVENUE,Social Support Limited,
Peterborough,http://opendatacommunities.org/id/unitary-authority/peterborough,Peterborough City Council,Adult Social Care,Older People,Supplies and Services,05/07/2013 00:00,564359,1739.7,REVENUE,Beaumont Healthcare Limited,
Peterborough,http://opendatacommunities.org/id/unitary-authority/peterborough,Peterborough City Council,More than one Service Area Category,More than one Service Division,Supplies and Services,05/07/2013 00:00,564360,4430.4,REVENUE,Purebrand Creative Communications,
Peterborough,http://opendatacommunities.org/id/unitary-authority/peterborough,Peterborough City Council,Adult Social Care,Older People,Supplies and Services,05/07/2013 00:00,564369,671.5,REVENUE,Cozy Care,
Peterborough,http://opendatacommunities.org/id/unitary-authority/peterborough,Peterborough City Council,Adult Social Care,Older People,Supplies and Services,05/07/2013 00:00,564370,671.5,REVENUE,Cozy Care,
Peterborough,http://opendatacommunities.org/id/unitary-authority/peterborough,Peterborough City Council,Adult Social Care,Older People,Supplies and Services,05/07/2013 00:00,564384,922.64,REVENUE,Cozy Care,
Peterborough,http://opendatacommunities.org/id/unitary-authority/peterborough,Peterborough City Council,Adult Social Care,Older People,Supplies and Services,05/07/2013 00:00,564397,508.63,REVENUE,Cozy Care,
Peterborough,http://opendatacommunities.org/id/unitary-authority/peterborough,Peterborough City Council,Adult Social Care,Older People,Supplies and Services,05/07/2013 00:00,564399,864.91,REVENUE,Cozy Care,
Peterborough,http://opendatacommunities.org/id/unitary-authority/peterborough,Peterborough City Council,Adult Social Care,Older People,Supplies and Services,05/07/2013 00:00,564404,1173.76,REVENUE,HEREWARD CARE SERVICES LIMITED,
Peterborough,http://opendatacommunities.org/id/unitary-authority/peterborough,Peterborough City Council,Children's & Education Services - Children's Social Care,Other Children's & Families Services,Supplies and Services,05/07/2013 00:00,564434,600,REVENUE,"Ganteaume, Ms Natalie",
Peterborough,http://opendatacommunities.org/id/unitary-authority/peterborough,Peterborough City Council,Adult Social Care,Older People,Supplies and Services,05/07/2013 00:00,564513,6663.32,REVENUE,Care UK Homecare Ltd,
Peterborough,http://opendatacommunities.org/id/unitary-authority/peterborough,Peterborough City Council,Adult Social Care,Older People,Supplies and Services,05/07/2013 00:00,564544,1034.22,REVENUE,COMFORCARE SENIOR SERVICES,
Peterborough,http://opendatacommunities.org/id/unitary-authority/peterborough,Peterborough City Council,Adult Social Care,Older People,Supplies and Services,05/07/2013 00:00,564554,2057.38,REVENUE,COMFORCARE SENIOR SERVICES,
Peterborough,http://opendatacommunities.org/id/unitary-authority/peterborough,Peterborough City Council,Adult Social Care,Older People,Supplies and Services,05/07/2013 00:00,564556,1959.81,REVENUE,COMFORCARE SENIOR SERVICES,
Peterborough,http://opendatacommunities.org/id/unitary-authority/peterborough,Peterborough City Council,Children's & Education Services - Education,Early Years,Supplies and Services,05/07/2013 00:00,564557,11011.37,REVENUE,Busy Bees Pre-School,
Peterborough,http://opendatacommunities.org/id/unitary-authority/peterborough,Peterborough City Council,Children's & Education Services - Education,Early Years,Supplies and Services,05/07/2013 00:00,564560,572,REVENUE,The Learning Tree Kindergarten,
Peterborough,http://opendatacommunities.org/id/unitary-authority/peterborough,Peterborough City Council,Children's & Education Services - Education,Early Years,Supplies and Services,05/07/2013 00:00,564562,624,REVENUE,Birchtree Pre-School,
Peterborough,http://opendatacommunities.org/id/unitary-authority/peterborough,Peterborough City Council,Adult Social Care,Older People,Supplies and Services,05/07/2013 00:00,564580,698.52,REVENUE,Peterborough Home Care (CAREWATCH)  (F.P.S.),
Peterborough,http://opendatacommunities.org/id/unitary-authority/peterborough,Peterborough City Council,Adult Social Care,Older People,Supplies and Services,05/07/2013 00:00,564581,709.61,REVENUE,Peterborough Home Care (CAREWATCH)  (F.P.S.),
Peterborough,http://opendatacommunities.org/id/unitary-authority/peterborough,Peterborough City Council,Children's & Education Services - Children's Social Care,Children Looked After,Supplies and Services - Transfer Payments,05/07/2013 00:00,564591,2631.3,REVENUE,Alliance Foster Care,
Peterborough,http://opendatacommunities.org/id/unitary-authority/peterborough,Peterborough City Council,More than one Service Area Category,More than one Service Division,More than one Expenses Type,05/07/2013 00:00,564601,3608,"Mixture of Capital, Revenue and/or Balance Sheet",Casbon Building Services,
Peterborough,http://opendatacommunities.org/id/unitary-authority/peterborough,Peterborough City Council,More than one Service Area Category,More than one Service Division,More than one Expenses Type,05/07/2013 00:00,564602,3566,"Mixture of Capital, Revenue and/or Balance Sheet",Casbon Building Services,
Peterborough,http://opendatacommunities.org/id/unitary-authority/peterborough,Peterborough City Council,More than one Service Area Category,More than one Service Division,Balance Sheet,05/07/2013 00:00,564604,2980,Balance Sheet,Learning Disability & Autism Team (IMPREST),
Peterborough,http://opendatacommunities.org/id/unitary-authority/peterborough,Peterborough City Council,Children's & Education Services - Children's Social Care,Children Looked After,More than one Expenses Type,05/07/2013 00:00,564605,1459.95,REVENUE,Clare Lodge Secure Unit,
Peterborough,http://opendatacommunities.org/id/unitary-authority/peterborough,Peterborough City Council,Adult Social Care,Older People,Supplies and Services,05/07/2013 00:00,564695,2034.24,REVENUE,PHILIA LODGE REST HOME,
Peterborough,http://opendatacommunities.org/id/unitary-authority/peterborough,Peterborough City Council,Adult Social Care,Older People,Supplies and Services,05/07/2013 00:00,564698,1334.97,REVENUE,PHILIA LODGE REST HOME,
Peterborough,http://opendatacommunities.org/id/unitary-authority/peterborough,Peterborough City Council,Adult Social Care,Adult Learning Disabilities,Supplies and Services,05/07/2013 00:00,564701,3120,REVENUE,Positive Steps (Care Services) Ltd,
Peterborough,http://opendatacommunities.org/id/unitary-authority/peterborough,Peterborough City Council,Adult Social Care,Adult Learning Disabilities,Supplies and Services,05/07/2013 00:00,564705,9239.44,REVENUE,Positive Steps (Care Services) Ltd,
Peterborough,http://opendatacommunities.org/id/unitary-authority/peterborough,Peterborough City Council,Adult Social Care,Adult Learning Disabilities,Supplies and Services,05/07/2013 00:00,564707,4919.88,REVENUE,Positive Steps (Care Services) Ltd,
Peterborough,http://opendatacommunities.org/id/unitary-authority/peterborough,Peterborough City Council,Adult Social Care,Adult Learning Disabilities,Supplies and Services,05/07/2013 00:00,564709,5703.6,REVENUE,Positive Steps (Care Services) Ltd,
Peterborough,http://opendatacommunities.org/id/unitary-authority/peterborough,Peterborough City Council,More than one Service Area Category,More than one Service Division,Supplies and Services,05/07/2013 00:00,564710,8340,REVENUE,Intermedical,
Peterborough,http://opendatacommunities.org/id/unitary-authority/peterborough,Peterborough City Council,Children's & Education Services - Education,Other School -related Education Functions,Supplies and Services,05/07/2013 00:00,564713,1971.12,REVENUE,Updata Infrastructure UK Ltd,
Peterborough,http://opendatacommunities.org/id/unitary-authority/peterborough,Peterborough City Council,Children's & Education Services - Education,Other School -related Education Functions,Supplies and Services,05/07/2013 00:00,564715,3933.2,REVENUE,Updata Infrastructure UK Ltd,
Peterborough,http://opendatacommunities.org/id/unitary-authority/peterborough,Peterborough City Council,Adult Social Care,Older People,Supplies and Services,05/07/2013 00:00,564731,2341.91,REVENUE,ADVANCED HEALTH & CARE,
Peterborough,http://opendatacommunities.org/id/unitary-authority/peterborough,Peterborough City Council,Adult Social Care,Adult Learning Disabilities,Supplies and Services,05/07/2013 00:00,564813,12886.72,REVENUE,Positive Steps (Care Services) Ltd,
Peterborough,http://opendatacommunities.org/id/unitary-authority/peterborough,Peterborough City Council,Adult Social Care,Support Services & Management Costs,Third Party Payments,05/07/2013 00:00,564820,29632,REVENUE,P'Boro Council For Voluntary Srvs (PCVS),
Peterborough,http://opendatacommunities.org/id/unitary-authority/peterborough,Peterborough City Council,Children's & Education Services - Children's Social Care,Other Children's & Families Services,Supplies and Services,05/07/2013 00:00,564827,868,REVENUE,Restover Lodge Hotel,
Peterborough,http://opendatacommunities.org/id/unitary-authority/peterborough,Peterborough City Council,More than one Service Area Category,More than one Service Division,Balance Sheet,08/07/2013 00:00,535594,575.88,Balance Sheet,Redacted Personal Data,
Peterborough,http://opendatacommunities.org/id/unitary-authority/peterborough,Peterborough City Council,Capital,Capital,Capital Pending Update to BS,08/07/2013 00:00,548348,6389.88,CAPITAL,Princebuild Limited,
Peterborough,http://opendatacommunities.org/id/unitary-authority/peterborough,Peterborough City Council,Support Services,Support Services,Premises,08/07/2013 00:00,557580,49695,REVENUE,Alps Group Ltd,
Peterborough,http://opendatacommunities.org/id/unitary-authority/peterborough,Peterborough City Council,Support Services,Support Services,Premises,08/07/2013 00:00,557582,8436,REVENUE,Alps Group Ltd,
Peterborough,http://opendatacommunities.org/id/unitary-authority/peterborough,Peterborough City Council,Children's & Education Services - Children's Social Care,Children Looked After,Employees,08/07/2013 00:00,557608,1465.2,REVENUE,Capita Resourcing Ltd,
Peterborough,http://opendatacommunities.org/id/unitary-authority/peterborough,Peterborough City Council,Children's & Education Services - Children's Social Care,Children Looked After,Supplies and Services - Transfer Payments,08/07/2013 00:00,558071,3620.8,REVENUE,Archway Care Ltd,
Peterborough,http://opendatacommunities.org/id/unitary-authority/peterborough,Peterborough City Council,Children's & Education Services - Education,Early Years,Supplies and Services,08/07/2013 00:00,558149,11897.84,REVENUE,Little Poppets Day Nursery,
Peterborough,http://opendatacommunities.org/id/unitary-authority/peterborough,Peterborough City Council,Children's & Education Services - Education,Early Years,Supplies and Services,08/07/2013 00:00,558180,4709,REVENUE,Shiny Stars Pre-School,
Peterborough,http://opendatacommunities.org/id/unitary-authority/peterborough,Peterborough City Council,Children's & Education Services - Children's Social Care,Children Looked After,Supplies and Services - Transfer Payments,08/07/2013 00:00,558395,13285.67,REVENUE,Acorn Homes (KENT) Ltd,
Peterborough,http://opendatacommunities.org/id/unitary-authority/peterborough,Peterborough City Council,Children's & Education Services - Children's Social Care,Family Support Services,Employees,08/07/2013 00:00,558397,1692.96,REVENUE,Pulse,
Peterborough,http://opendatacommunities.org/id/unitary-authority/peterborough,Peterborough City Council,Support Services,Support Services,Supplies and Services,08/07/2013 00:00,558765,2160,REVENUE,Pinsent Masons,
Peterborough,http://opendatacommunities.org/id/unitary-authority/peterborough,Peterborough City Council,Highways and Transport Services,Public Transport,Supplies and Services,08/07/2013 00:00,559020,29973.43,REVENUE,Stagecoach in Peterborough,
Peterborough,http://opendatacommunities.org/id/unitary-authority/peterborough,Peterborough City Council,Environmental and Regulatory Services,Community Safety (CCTV),Supplies and Services,08/07/2013 00:00,559142,861,REVENUE,British Telecom PLC,
Peterborough,http://opendatacommunities.org/id/unitary-authority/peterborough,Peterborough City Council,Children's & Education Services - Children's Social Care,Children Looked After,Supplies and Services - Transfer Payments,08/07/2013 00:00,559489,12090,REVENUE,MJ Childrens Services,
Peterborough,http://opendatacommunities.org/id/unitary-authority/peterborough,Peterborough City Council,Children's & Education Services - Children's Social Care,Children's Services - Commissioning and Social Work,Employees,08/07/2013 00:00,559519,1530,REVENUE,Medicare First,
Peterborough,http://opendatacommunities.org/id/unitary-authority/peterborough,Peterborough City Council,Children's & Education Services - Children's Social Care,Children Looked After,Employees,08/07/2013 00:00,559521,1572.9,REVENUE,Medicare First,
Peterborough,http://opendatacommunities.org/id/unitary-authority/peterborough,Peterborough City Council,Children's & Education Services - Children's Social Care,Children's Services - Commissioning and Social Work,Employees,08/07/2013 00:00,559524,1554,REVENUE,Medicare First,
Peterborough,http://opendatacommunities.org/id/unitary-authority/peterborough,Peterborough City Council,Children's & Education Services - Children's Social Care,Children's Services - Commissioning and Social Work,Employees,08/07/2013 00:00,559526,1314.24,REVENUE,Medicare First,
Peterborough,http://opendatacommunities.org/id/unitary-authority/peterborough,Peterborough City Council,Children's & Education Services - Children's Social Care,Children's Services - Commissioning and Social Work,Employees,08/07/2013 00:00,559528,1583.16,REVENUE,Medicare First,
Peterborough,http://opendatacommunities.org/id/unitary-authority/peterborough,Peterborough City Council,Children's & Education Services - Children's Social Care,Children's Services - Commissioning and Social Work,Employees,08/07/2013 00:00,559532,1509.6,REVENUE,Medicare First,
Peterborough,http://opendatacommunities.org/id/unitary-authority/peterborough,Peterborough City Council,Children's & Education Services - Children's Social Care,Children's Services - Commissioning and Social Work,Employees,08/07/2013 00:00,559536,2131.2,REVENUE,Medicare First,
Peterborough,http://opendatacommunities.org/id/unitary-authority/peterborough,Peterborough City Council,Cultural and Related Services,Recreation & Sport,Supplies and Services,08/07/2013 00:00,559594,720,REVENUE,RMIS Ltd,
Peterborough,http://opendatacommunities.org/id/unitary-authority/peterborough,Peterborough City Council,Adult Social Care,Older People,Supplies and Services,08/07/2013 00:00,559746,953.48,REVENUE,Mayfield Residential Home,
Peterborough,http://opendatacommunities.org/id/unitary-authority/peterborough,Peterborough City Council,Children's & Education Services - Children's Social Care,Children Looked After,Supplies and Services - Transfer Payments,08/07/2013 00:00,560334,6728.57,REVENUE,Family Options,
Peterborough,http://opendatacommunities.org/id/unitary-authority/peterborough,Peterborough City Council,Corporate & Democratic Core,Corporate Management,Supplies and Services,08/07/2013 00:00,560378,38880,REVENUE,PricewaterhouseCoopers LLP,
Peterborough,http://opendatacommunities.org/id/unitary-authority/peterborough,Peterborough City Council,Central Services to the Public,Registrar,Premises,08/07/2013 00:00,560445,3050,REVENUE,The Lawns(Peterborough) Ltd,
Peterborough,http://opendatacommunities.org/id/unitary-authority/peterborough,Peterborough City Council,Deficit/(Surplus) on Trading Undertakings,Trading Account Surpluses & Deficits,Supplies and Services,08/07/2013 00:00,560453,853.2,REVENUE,Thomas Dudley Ltd,
Peterborough,http://opendatacommunities.org/id/unitary-authority/peterborough,Peterborough City Council,Children's & Education Services - Children's Social Care,Family Support Services,Supplies and Services,08/07/2013 00:00,560465,1049.12,REVENUE,Mangar Internations,
Peterborough,http://opendatacommunities.org/id/unitary-authority/peterborough,Peterborough City Council,Children's & Education Services - Children's Social Care,Children Looked After,Supplies and Services,08/07/2013 00:00,560476,675.92,REVENUE,Excell Network Solutions Ltd,
Peterborough,http://opendatacommunities.org/id/unitary-authority/peterborough,Peterborough City Council,Planning Services,Community Development,Supplies and Services,08/07/2013 00:00,560601,3924,REVENUE,A1 Fencing,
Peterborough,http://opendatacommunities.org/id/unitary-authority/peterborough,Peterborough City Council,Planning Services,Planning Policy,Supplies and Services,08/07/2013 00:00,560663,780,REVENUE,Covergold Ltd,
Peterborough,http://opendatacommunities.org/id/unitary-authority/peterborough,Peterborough City Council,Children's & Education Services - Children's Social Care,Children Looked After,Supplies and Services - Transfer Payments,08/07/2013 00:00,560747,8352.95,REVENUE,Heath Farm Family Services Ltd,
Peterborough,http://opendatacommunities.org/id/unitary-authority/peterborough,Peterborough City Council,Children's & Education Services - Children's Social Care,Family Support Services,Employees,08/07/2013 00:00,560761,1465.2,REVENUE,SWP Consulting,
Peterborough,http://opendatacommunities.org/id/unitary-authority/peterborough,Peterborough City Council,Children's & Education Services - Education,Other School -related Education Functions,Supplies and Services - Transfer Payments,08/07/2013 00:00,560915,23352.33,REVENUE,Priors Court School,
Peterborough,http://opendatacommunities.org/id/unitary-authority/peterborough,Peterborough City Council,Adult Social Care,Older People,Supplies and Services,08/07/2013 00:00,560963,849.71,REVENUE,COMFORCARE SENIOR SERVICES,
Peterborough,http://opendatacommunities.org/id/unitary-authority/peterborough,Peterborough City Council,Adult Social Care,Older People,Supplies and Services,08/07/2013 00:00,560974,1039.2,REVENUE,COMFORCARE SENIOR SERVICES,
Peterborough,http://opendatacommunities.org/id/unitary-authority/peterborough,Peterborough City Council,Adult Social Care,Older People,Supplies and Services,08/07/2013 00:00,560982,935.42,REVENUE,COMFORCARE SENIOR SERVICES,
Peterborough,http://opendatacommunities.org/id/unitary-authority/peterborough,Peterborough City Council,Adult Social Care,Older People,Supplies and Services,08/07/2013 00:00,560984,1313.19,REVENUE,COMFORCARE SENIOR SERVICES,
Peterborough,http://opendatacommunities.org/id/unitary-authority/peterborough,Peterborough City Council,Adult Social Care,Older People,Supplies and Services,08/07/2013 00:00,560986,2053.56,REVENUE,COMFORCARE SENIOR SERVICES,
Peterborough,http://opendatacommunities.org/id/unitary-authority/peterborough,Peterborough City Council,Adult Social Care,Older People,Supplies and Services,08/07/2013 00:00,560989,673.05,REVENUE,COMFORCARE SENIOR SERVICES,
Peterborough,http://opendatacommunities.org/id/unitary-authority/peterborough,Peterborough City Council,Adult Social Care,Older People,Supplies and Services,08/07/2013 00:00,560993,1964.55,REVENUE,COMFORCARE SENIOR SERVICES,
Peterborough,http://opendatacommunities.org/id/unitary-authority/peterborough,Peterborough City Council,Adult Social Care,Older People,Supplies and Services,08/07/2013 00:00,560995,788.38,REVENUE,COMFORCARE SENIOR SERVICES,
Peterborough,http://opendatacommunities.org/id/unitary-authority/peterborough,Peterborough City Council,Adult Social Care,Older People,Supplies and Services,08/07/2013 00:00,561002,711.61,REVENUE,COMFORCARE SENIOR SERVICES,
Peterborough,http://opendatacommunities.org/id/unitary-authority/peterborough,Peterborough City Council,Adult Social Care,Older People,Supplies and Services,08/07/2013 00:00,561006,1052.55,REVENUE,COMFORCARE SENIOR SERVICES,
Peterborough,http://opendatacommunities.org/id/unitary-authority/peterborough,Peterborough City Council,Children's & Education Services - Children's Social Care,Family Support Services,Employees,08/07/2013 00:00,561083,999.9,REVENUE,Cambridgeshire County Council,
Peterborough,http://opendatacommunities.org/id/unitary-authority/peterborough,Peterborough City Council,Highways and Transport Services,"Transport planning, policy and strategy",Supplies and Services,08/07/2013 00:00,561351,3150,REVENUE,Pedibus,
Peterborough,http://opendatacommunities.org/id/unitary-authority/peterborough,Peterborough City Council,Adult Social Care,Older People,Supplies and Services,08/07/2013 00:00,561551,1548.12,REVENUE,ABBEYGATE REST HOME,
Peterborough,http://opendatacommunities.org/id/unitary-authority/peterborough,Peterborough City Council,Adult Social Care,Older People,Supplies and Services,08/07/2013 00:00,561660,542.86,REVENUE,CHRISTIES CARE LTD,
Peterborough,http://opendatacommunities.org/id/unitary-authority/peterborough,Peterborough City Council,Adult Social Care,Older People,Supplies and Services,08/07/2013 00:00,561662,3040,REVENUE,CHRISTIES CARE LTD,
Peterborough,http://opendatacommunities.org/id/unitary-authority/peterborough,Peterborough City Council,Adult Social Care,Older People,Supplies and Services,08/07/2013 00:00,561904,689.44,REVENUE,COMFORCARE SENIOR SERVICES,
Peterborough,http://opendatacommunities.org/id/unitary-authority/peterborough,Peterborough City Council,Adult Social Care,Older People,Supplies and Services,08/07/2013 00:00,561909,733.72,REVENUE,COMFORCARE SENIOR SERVICES,
Peterborough,http://opendatacommunities.org/id/unitary-authority/peterborough,Peterborough City Council,Adult Social Care,Older People,Supplies and Services,08/07/2013 00:00,561954,665.28,REVENUE,West Anglia Crossroads Ltd,
Peterborough,http://opendatacommunities.org/id/unitary-authority/peterborough,Peterborough City Council,Adult Social Care,Adult Learning Disabilities,Supplies and Services,08/07/2013 00:00,561963,8801.38,REVENUE,SOCIAL CARE SOLUTIONS LTD,
Peterborough,http://opendatacommunities.org/id/unitary-authority/peterborough,Peterborough City Council,Adult Social Care,Older People,Supplies and Services,08/07/2013 00:00,561981,3077.23,REVENUE,LEONARD CHESHIRE DISABILITY,
Peterborough,http://opendatacommunities.org/id/unitary-authority/peterborough,Peterborough City Council,Adult Social Care,Adult Learning Disabilities,Supplies and Services,08/07/2013 00:00,561982,4279.8,REVENUE,LEONARD CHESHIRE DISABILITY,
Peterborough,http://opendatacommunities.org/id/unitary-authority/peterborough,Peterborough City Council,Adult Social Care,Older People,Supplies and Services,08/07/2013 00:00,561983,2946.36,REVENUE,LEONARD CHESHIRE DISABILITY,
Peterborough,http://opendatacommunities.org/id/unitary-authority/peterborough,Peterborough City Council,Adult Social Care,Older People,Supplies and Services,08/07/2013 00:00,562261,1086.12,REVENUE,Park Road Baptist Housing Association Ltd,
Peterborough,http://opendatacommunities.org/id/unitary-authority/peterborough,Peterborough City Council,Adult Social Care,Older People,Supplies and Services,08/07/2013 00:00,562265,819.6,REVENUE,Park Road Baptist Housing Association Ltd,
Peterborough,http://opendatacommunities.org/id/unitary-authority/peterborough,Peterborough City Council,Adult Social Care,Older People,Supplies and Services,08/07/2013 00:00,562267,1062.12,REVENUE,Park Road Baptist Housing Association Ltd,
Peterborough,http://opendatacommunities.org/id/unitary-authority/peterborough,Peterborough City Council,Adult Social Care,Older People,Supplies and Services,08/07/2013 00:00,562268,1086.12,REVENUE,Park Road Baptist Housing Association Ltd,
Peterborough,http://opendatacommunities.org/id/unitary-authority/peterborough,Peterborough City Council,Adult Social Care,Older People,Supplies and Services,08/07/2013 00:00,562271,819.6,REVENUE,Park Road Baptist Housing Association Ltd,
Peterborough,http://opendatacommunities.org/id/unitary-authority/peterborough,Peterborough City Council,Adult Social Care,Older People,Supplies and Services,08/07/2013 00:00,562273,1062.12,REVENUE,Park Road Baptist Housing Association Ltd,
Peterborough,http://opendatacommunities.org/id/unitary-authority/peterborough,Peterborough City Council,Adult Social Care,Older People,Supplies and Services,08/07/2013 00:00,562282,1548.12,REVENUE,Park Road Baptist Housing Association Ltd,
Peterborough,http://opendatacommunities.org/id/unitary-authority/peterborough,Peterborough City Council,Adult Social Care,Adult Learning Disabilities,Supplies and Services,08/07/2013 00:00,562676,167614.57,REVENUE,Turning Point Services Ltd,
Peterborough,http://opendatacommunities.org/id/unitary-authority/peterborough,Peterborough City Council,Adult Social Care,Adult Physical Disability & Sensory Impairment,Supplies and Services,08/07/2013 00:00,562691,641.16,REVENUE,Sense,
Peterborough,http://opendatacommunities.org/id/unitary-authority/peterborough,Peterborough City Council,Adult Social Care,Adult Physical Disability & Sensory Impairment,Supplies and Services,08/07/2013 00:00,562692,641.16,REVENUE,Sense,
Peterborough,http://opendatacommunities.org/id/unitary-authority/peterborough,Peterborough City Council,Children's & Education Services - Children's Social Care,Children's Services - Commissioning and Social Work,Supplies and Services - Transfer Payments,08/07/2013 00:00,562781,1830,REVENUE,Transition Care Peterborough Ltd,
Peterborough,http://opendatacommunities.org/id/unitary-authority/peterborough,Peterborough City Council,More than one Service Area Category,More than one Service Division,Equity,08/07/2013 00:00,562788,186700,"Mixture of Capital, Revenue and/or Balance Sheet",Redacted Personal Data,
Peterborough,http://opendatacommunities.org/id/unitary-authority/peterborough,Peterborough City Council,Housing Services,Homelessness,Supplies and Services,08/07/2013 00:00,562855,1740,REVENUE,"Earle, Mr James",
Peterborough,http://opendatacommunities.org/id/unitary-authority/peterborough,Peterborough City Council,Planning Services,Environmental Initiatives,Supplies and Services,08/07/2013 00:00,562867,810.95,REVENUE,Cyclescheme Ltd,
Peterborough,http://opendatacommunities.org/id/unitary-authority/peterborough,Peterborough City Council,Adult Social Care,Older People,Supplies and Services,08/07/2013 00:00,563052,1054.73,REVENUE,Sahara Community Care Services,
Peterborough,http://opendatacommunities.org/id/unitary-authority/peterborough,Peterborough City Council,Adult Social Care,Older People,Supplies and Services,08/07/2013 00:00,563054,1151.2,REVENUE,Sahara Community Care Services,
Peterborough,http://opendatacommunities.org/id/unitary-authority/peterborough,Peterborough City Council,Adult Social Care,Adult Learning Disabilities,Supplies and Services,08/07/2013 00:00,563055,612.28,REVENUE,Sahara Community Care Services,
Peterborough,http://opendatacommunities.org/id/unitary-authority/peterborough,Peterborough City Council,Adult Social Care,Older People,Supplies and Services,08/07/2013 00:00,563056,1584.77,REVENUE,Sahara Community Care Services,
Peterborough,http://opendatacommunities.org/id/unitary-authority/peterborough,Peterborough City Council,Adult Social Care,Adult Learning Disabilities,Supplies and Services,08/07/2013 00:00,563060,2799.28,REVENUE,Augusta Care Ltd,
Peterborough,http://opendatacommunities.org/id/unitary-authority/peterborough,Peterborough City Council,Adult Social Care,Adult Learning Disabilities,Supplies and Services,08/07/2013 00:00,563063,5327.12,REVENUE,Augusta Care Ltd,
Peterborough,http://opendatacommunities.org/id/unitary-authority/peterborough,Peterborough City Council,Adult Social Care,Adult Learning Disabilities,Supplies and Services,08/07/2013 00:00,563064,1703.2,REVENUE,Augusta Care Ltd,
Peterborough,http://opendatacommunities.org/id/unitary-authority/peterborough,Peterborough City Council,Adult Social Care,Adult Learning Disabilities,Supplies and Services,08/07/2013 00:00,563065,2864.12,REVENUE,Augusta Care Ltd,
Peterborough,http://opendatacommunities.org/id/unitary-authority/peterborough,Peterborough City Council,Adult Social Care,Adult Learning Disabilities,Supplies and Services,08/07/2013 00:00,563066,4578.92,REVENUE,Augusta Care Ltd,
Peterborough,http://opendatacommunities.org/id/unitary-authority/peterborough,Peterborough City Council,Adult Social Care,Adult Learning Disabilities,Supplies and Services,08/07/2013 00:00,563067,4503.76,REVENUE,Augusta Care Ltd,
Peterborough,http://opendatacommunities.org/id/unitary-authority/peterborough,Peterborough City Council,Adult Social Care,Adult Learning Disabilities,Supplies and Services,08/07/2013 00:00,563068,4294.72,REVENUE,Augusta Care Ltd,
Peterborough,http://opendatacommunities.org/id/unitary-authority/peterborough,Peterborough City Council,Adult Social Care,Adult Learning Disabilities,Supplies and Services,08/07/2013 00:00,563069,4114.4,REVENUE,Augusta Care Ltd,
Peterborough,http://opendatacommunities.org/id/unitary-authority/peterborough,Peterborough City Council,Adult Social Care,Adult Learning Disabilities,Supplies and Services,08/07/2013 00:00,563070,8612.8,REVENUE,Augusta Care Ltd,
Peterborough,http://opendatacommunities.org/id/unitary-authority/peterborough,Peterborough City Council,Adult Social Care,Adult Learning Disabilities,Supplies and Services,08/07/2013 00:00,563071,2709.64,REVENUE,Augusta Care Ltd,
Peterborough,http://opendatacommunities.org/id/unitary-authority/peterborough,Peterborough City Council,Adult Social Care,Adult Learning Disabilities,Supplies and Services,08/07/2013 00:00,563072,1155.16,REVENUE,Augusta Care Ltd,
Peterborough,http://opendatacommunities.org/id/unitary-authority/peterborough,Peterborough City Council,Adult Social Care,Adult Learning Disabilities,Supplies and Services,08/07/2013 00:00,563073,1866.2,REVENUE,Augusta Care Ltd,
Peterborough,http://opendatacommunities.org/id/unitary-authority/peterborough,Peterborough City Council,Adult Social Care,Adult Learning Disabilities,Supplies and Services,08/07/2013 00:00,563076,1866.2,REVENUE,Augusta Care Ltd,
Peterborough,http://opendatacommunities.org/id/unitary-authority/peterborough,Peterborough City Council,Adult Social Care,More than one Service Division,Supplies and Services,08/07/2013 00:00,563814,19671.01,REVENUE,P'Boro Council For Voluntary Srvs (PCVS),
Peterborough,http://opendatacommunities.org/id/unitary-authority/peterborough,Peterborough City Council,Children's & Education Services - Children's Social Care,More than one Service Division,Supplies and Services - Transfer Payments,08/07/2013 00:00,564072,40300,REVENUE,Cotswold Chine School,
Peterborough,http://opendatacommunities.org/id/unitary-authority/peterborough,Peterborough City Council,Planning Services,Economic Development,Third Party Payments,08/07/2013 00:00,564158,30000,REVENUE,Dial Peterborough,
Peterborough,http://opendatacommunities.org/id/unitary-authority/peterborough,Peterborough City Council,Deficit/(Surplus) on Trading Undertakings,Trading Account Surpluses & Deficits,Supplies and Services,08/07/2013 00:00,564290,783.6,REVENUE,Barron Clark Castings Ltd,
Peterborough,http://opendatacommunities.org/id/unitary-authority/peterborough,Peterborough City Council,Deficit/(Surplus) on Trading Undertakings,Trading Account Surpluses & Deficits,Supplies and Services,08/07/2013 00:00,564291,897.12,REVENUE,Barron Clark Castings Ltd,
Peterborough,http://opendatacommunities.org/id/unitary-authority/peterborough,Peterborough City Council,Deficit/(Surplus) on Trading Undertakings,Trading Account Surpluses & Deficits,Supplies and Services,08/07/2013 00:00,564296,1367.28,REVENUE,Barron Clark Castings Ltd,
Peterborough,http://opendatacommunities.org/id/unitary-authority/peterborough,Peterborough City Council,Adult Social Care,More than one Service Division,Employees,08/07/2013 00:00,564331,551.4,REVENUE,Randstad Care Ltd,
Peterborough,http://opendatacommunities.org/id/unitary-authority/peterborough,Peterborough City Council,Adult Social Care,Older People,Supplies and Services,08/07/2013 00:00,564419,-1285.52,REVENUE,BUPA Care  Homes,
Peterborough,http://opendatacommunities.org/id/unitary-authority/peterborough,Peterborough City Council,Adult Social Care,Older People,Supplies and Services,08/07/2013 00:00,564765,671.34,REVENUE,Sagecare,
Peterborough,http://opendatacommunities.org/id/unitary-authority/peterborough,Peterborough City Council,More than one Service Area Category,More than one Service Division,More than one Expenses Type,08/07/2013 00:00,564766,5740,"Mixture of Capital, Revenue and/or Balance Sheet",Richards Carpentry & Construction,
Peterborough,http://opendatacommunities.org/id/unitary-authority/peterborough,Peterborough City Council,Children's & Education Services - Children's Social Care,Children Looked After,Premises,08/07/2013 00:00,564769,5625,REVENUE,Jellings Properties Ltd,
Peterborough,http://opendatacommunities.org/id/unitary-authority/peterborough,Peterborough City Council,Adult Social Care,Older People,Fees and Charges,08/07/2013 00:00,564783,1022.9,REVENUE,The Orders of St John Care Trust,
Peterborough,http://opendatacommunities.org/id/unitary-authority/peterborough,Peterborough City Council,Adult Social Care,Older People,Supplies and Services,08/07/2013 00:00,564786,2391.72,REVENUE,THE CLAIR FRANCIS RETIREMENT HOME,
Peterborough,http://opendatacommunities.org/id/unitary-authority/peterborough,Peterborough City Council,Adult Social Care,Older People,Supplies and Services,08/07/2013 00:00,564798,1334.97,REVENUE,STAR RESIDENTIAL HOME LTD,
Peterborough,http://opendatacommunities.org/id/unitary-authority/peterborough,Peterborough City Council,Adult Social Care,Adult Learning Disabilities,Supplies and Services,08/07/2013 00:00,564814,5759.88,REVENUE,Positive Steps (Care Services) Ltd,
Peterborough,http://opendatacommunities.org/id/unitary-authority/peterborough,Peterborough City Council,Adult Social Care,Support Services & Management Costs,Third Party Payments,08/07/2013 00:00,564824,2990,REVENUE,P'Boro Council For Voluntary Srvs (PCVS),
Peterborough,http://opendatacommunities.org/id/unitary-authority/peterborough,Peterborough City Council,Adult Social Care,Older People,Supplies and Services,08/07/2013 00:00,564845,1863.56,REVENUE,MEARS GROUP,
Peterborough,http://opendatacommunities.org/id/unitary-authority/peterborough,Peterborough City Council,Corporate & Democratic Core,Corporate Management,Supplies and Services,08/07/2013 00:00,564847,9991.2,REVENUE,The Copyright Licencing Agency Ltd,
Peterborough,http://opendatacommunities.org/id/unitary-authority/peterborough,Peterborough City Council,Adult Social Care,Adult Learning Disabilities,Supplies and Services,08/07/2013 00:00,564860,4802.24,REVENUE,K2 CARE LTD,
Peterborough,http://opendatacommunities.org/id/unitary-authority/peterborough,Peterborough City Council,Adult Social Care,Older People,Supplies and Services,08/07/2013 00:00,564862,4802.24,REVENUE,K2 CARE LTD,
Peterborough,http://opendatacommunities.org/id/unitary-authority/peterborough,Peterborough City Council,Adult Social Care,Older People,Supplies and Services,08/07/2013 00:00,564864,719.99,REVENUE,K2 CARE LTD,
Peterborough,http://opendatacommunities.org/id/unitary-authority/peterborough,Peterborough City Council,More than one Service Area Category,More than one Service Division,Balance Sheet,08/07/2013 00:00,564871,505.6,Balance Sheet,Weightmans LLP,
Peterborough,http://opendatacommunities.org/id/unitary-authority/peterborough,Peterborough City Council,More than one Service Area Category,More than one Service Division,Premises,08/07/2013 00:00,564909,1122.4,REVENUE,British Gas Business,
Peterborough,http://opendatacommunities.org/id/unitary-authority/peterborough,Peterborough City Council,Adult Social Care,Older People,Supplies and Services,08/07/2013 00:00,564940,711.6,REVENUE,Just Checking,
Peterborough,http://opendatacommunities.org/id/unitary-authority/peterborough,Peterborough City Council,Adult Social Care,Adult Learning Disabilities,Supplies and Services,08/07/2013 00:00,564975,5170.32,REVENUE,SOCIAL CARE SOLUTIONS LTD,
Peterborough,http://opendatacommunities.org/id/unitary-authority/peterborough,Peterborough City Council,Adult Social Care,Adult Learning Disabilities,Supplies and Services,08/07/2013 00:00,564978,4289.6,REVENUE,SOCIAL CARE SOLUTIONS LTD,
Peterborough,http://opendatacommunities.org/id/unitary-authority/peterborough,Peterborough City Council,Adult Social Care,Older People,Supplies and Services,08/07/2013 00:00,564981,1285.52,REVENUE,The Orders of St John Care Trust,
Peterborough,http://opendatacommunities.org/id/unitary-authority/peterborough,Peterborough City Council,Adult Social Care,Older People,Supplies and Services,08/07/2013 00:00,564984,1260.22,REVENUE,The Orders of St John Care Trust,
Peterborough,http://opendatacommunities.org/id/unitary-authority/peterborough,Peterborough City Council,Adult Social Care,Older People,Supplies and Services,08/07/2013 00:00,564985,1658.7,REVENUE,BUPA Care  Homes,
Peterborough,http://opendatacommunities.org/id/unitary-authority/peterborough,Peterborough City Council,Capital,Capital,Capital Pending Update to BS,08/07/2013 00:00,564986,604476.85,CAPITAL,Carillion Building,
Peterborough,http://opendatacommunities.org/id/unitary-authority/peterborough,Peterborough City Council,Adult Social Care,Older People,Supplies and Services,08/07/2013 00:00,564989,858.8,REVENUE,BUPA Care  Homes,
Peterborough,http://opendatacommunities.org/id/unitary-authority/peterborough,Peterborough City Council,Adult Social Care,Older People,Supplies and Services,08/07/2013 00:00,564992,1326.96,REVENUE,BUPA Care  Homes,
Peterborough,http://opendatacommunities.org/id/unitary-authority/peterborough,Peterborough City Council,Children's & Education Services - Children's Social Care,Children Looked After,Supplies and Services - Transfer Payments,08/07/2013 00:00,564998,3150,REVENUE,Alliance Foster Care,
Peterborough,http://opendatacommunities.org/id/unitary-authority/peterborough,Peterborough City Council,Children's & Education Services - Children's Social Care,Children Looked After,Supplies and Services - Transfer Payments,08/07/2013 00:00,565000,3155.7,REVENUE,Alliance Foster Care,
Peterborough,http://opendatacommunities.org/id/unitary-authority/peterborough,Peterborough City Council,Children's & Education Services - Children's Social Care,Children Looked After,Supplies and Services - Transfer Payments,08/07/2013 00:00,565003,2631.3,REVENUE,Alliance Foster Care,
Peterborough,http://opendatacommunities.org/id/unitary-authority/peterborough,Peterborough City Council,Children's & Education Services - Children's Social Care,Children Looked After,Supplies and Services - Transfer Payments,08/07/2013 00:00,565005,3150,REVENUE,Alliance Foster Care,
Peterborough,http://opendatacommunities.org/id/unitary-authority/peterborough,Peterborough City Council,Children's & Education Services - Children's Social Care,Children Looked After,Supplies and Services - Transfer Payments,08/07/2013 00:00,565007,3155.7,REVENUE,Alliance Foster Care,
Peterborough,http://opendatacommunities.org/id/unitary-authority/peterborough,Peterborough City Council,Support Services,Support Services,Supplies and Services,08/07/2013 00:00,565015,900,REVENUE,Jardine Lloyd Thompson (JLT),
Peterborough,http://opendatacommunities.org/id/unitary-authority/peterborough,Peterborough City Council,Adult Social Care,Adult Learning Disabilities,Supplies and Services,08/07/2013 00:00,565020,1872,REVENUE,K2 CARE LTD,
Peterborough,http://opendatacommunities.org/id/unitary-authority/peterborough,Peterborough City Council,Children's & Education Services - Children's Social Care,Family Support Services,More than one Expenses Type,08/07/2013 00:00,565040,997.68,REVENUE,Cherry Lodge,
Peterborough,http://opendatacommunities.org/id/unitary-authority/peterborough,Peterborough City Council,Children's & Education Services - Children's Social Care,Children Looked After,Supplies and Services - Transfer Payments,08/07/2013 00:00,565098,3260.89,REVENUE,Alliance Foster Care,
Peterborough,http://opendatacommunities.org/id/unitary-authority/peterborough,Peterborough City Council,Children's & Education Services - Children's Social Care,Children Looked After,More than one Expenses Type,08/07/2013 00:00,565101,798.9,REVENUE,Clare Lodge Secure Unit,
Peterborough,http://opendatacommunities.org/id/unitary-authority/peterborough,Peterborough City Council,Children's & Education Services - Children's Social Care,Children Looked After,Supplies and Services - Transfer Payments,08/07/2013 00:00,565104,3260.89,REVENUE,Alliance Foster Care,
Peterborough,http://opendatacommunities.org/id/unitary-authority/peterborough,Peterborough City Council,Children's & Education Services - Children's Social Care,Children Looked After,Supplies and Services - Transfer Payments,08/07/2013 00:00,565106,3260.89,REVENUE,Alliance Foster Care,
